{"text_format":"1","workbook":"xlsx","n_sheets":12,"sheets":["Registro de cambios","configuracion","DIGITADOR","DATOS","REFERENTES","OTRAS REFERENCIAS","Resumen","AGD_MUESTREOS","AGD_PARAMETRO","AGD_MUESTRAS","AGD_MUESTRAS_VARIABLES","AGD_AUTORIAS"],"not_rendered":{"charts":0,"images":0,"macros":1,"external_links":1,"defined_names":30,"comments":1,"pivot_tables":1},"unopened":[],"bounds":{"document_bytes":16777216,"sheet_cells":100000,"rows_first":2000,"rows_last":500,"rows_between":2000,"halvings":0,"cell_chars":16384,"cell_head_chars":4096},"cells_cut":0,"cells_raw":0,"read":"whole","date_system":"1900"}

{"sheet":"Registro de cambios","index":0,"n_rows":9,"n_cols":7,"rows_kept":9,"cut":false,"hidden":true,"merged":[[1,3,1,6]]}
[]
[null,null,null,"REGISTRO DE CAMBIOS"]
[null,null,null,"VERSIÓN No.","CAMBIO REALIZADO","AUTOR","VIGENTE DESDE"]
[null,null,null,"20241113i","Actualización del código de la macro.\n\nSe eliminó la URL de la antigua API de portete:\n       http://portete.invemar.org.co:7003/ArgosWebServices-RESTWebService-context-root/rest/1.0\n\nFue reemplazada por la URL de la API de ARGOS:\n       https://argos.invemar.org.co/api/\n\nLa API contiene End Points que permiten tener mayor control, facilitan la descarga de referentes (listas de usuarios, estaciones, especies, etc.) que corresponden a criterios específicos como el proyecto usado en la plantilla para evitar descargar data innecesaria.\n\nDel mismo modo, también permite la carga de información a la BDD del INVEMAR.\n\nLa macro toma los Endpoints desde la hoja configuracion de una tabla llamada \"Configuración referentes\", a la que se le puede modificar las rutas de la API o agregar nuevas. cabe resaltar que se puede \"quemar\" directamente en la macro los Endpoints que lo requieran","Juan Palomino","2024-11-13"]
[null,null,null,"20200130i","Para trazabilididad la hoja se incluye el nombre del archivo fuente y la posibilidad de anotar el DOI principal del metadato\nPor usabilidad las pestañas que son de interes para el usuario son las verdes\nSi se define mas de un proyecto los referentes de estaciones e investigadores se descargan consecutivo en las mismas columnas\nSe controla la versión para la plantilla mediante comparación dato en AGLOV de la BD.\n***CATEGORIA DE VIDA:Esta asignada como unica para la especie en la lista AG_ESPECIE 1480 27. Si es asi no se ingresa a la plantilla, aunque una especie de coral puede tener mas de una categoria de vida. Si se decide ingresar la categoria, se debe definir en agm_campos.\n",null,"2020-01-30"]
[null,null,null,"20180413i","Se modifica la generación de los ID de muestreo y se agrega macro que genera número aleatorio en la hoja DIGITADOR.",null,"2018-04-13"]
[null,null,null,"20180525m","Se corrige bug al seleccionar la región en la hoja DIGITADOR (la hoja se encontraba bloqueada desde el inicio y no se dejaba manipular).",null,"2018-05-25"]
[null,null,null,"20180724m","Se corrige la hoja de configuración. Valores mal asignados.",null,"2018-07-24"]
[null,null,null,"20180926m","Se bloquea el campo de consecutivo con el que se arma el ID_MUESTRA para que la macro no lo modifique",null,"2018-09-26"]

{"sheet":"configuracion","index":1,"n_rows":71,"n_cols":8,"rows_kept":71,"cut":false,"hidden":true,"merged":[[61,0,61,2],[28,0,35,0],[37,0,42,0],[45,0,45,1],[0,0,2,0],[3,0,5,0],[7,0,8,0],[9,0,15,0],[17,0,21,0],[23,0,26,0]]}
["general","urlServicio","https://argos.invemar.org.co/api/"]
[null,"fila de inicio",5]
[null,"fila de fin",104]
["metodologias","Metodologias",25]
[null,"Referentes",104]
[null,"Cantidad maxima de referentes ",104]
["estaciones/investigadores","proyectos",{"$f":"DIGITADOR!B9","v":1480}]
["Lista especies","metodologias",25]
[null,"proyectos",{"$f":"DIGITADOR!B9","v":1480}]
["MUESTREOS","ID_MUESTREO","DATOS,D"]
[null,"ID_ESTACION","DATOS,T"]
[null,"ID_PROYECTO",1480]
[null,"ID_METODOLOGIA",25]
[null,"ID_TEMATICAS",206]
[null,"FECHA","DATOS,G"]
[null,"NOTAS","DATOS,N"]
[null,"cantidad",104]
["parametro muestreo","ID_MUESTREO","DATOS,D","DATOS,D","DATOS,D","DATOS,D","DATOS,D"]
[null,"ID_PARAMETRO",829,1055,1169,1170,1170]
[null,"ID_METODOLOGIA",25,25,25,25,25]
[null,"ID_UNIDAD_MEDIDA",0,100,100,100,100]
[null,"VALOR","DIGITADOR,B,17","DIGITADOR,B,5","DIGITADOR,B,12","DIGITADOR,B,11","DIGITADOR,B,11"]
[null,"cantidad",104,104,104,104,104]
["muestra","ID_MUESTRA","DATOS,P"]
[null,"ID_MUESTREO","DATOS,D"]
[null,"NOTAS","DATOS,AI"]
[null,"ES_REPLICA",1]
[null,"cantidad",104]
["muestra variable","ID_PARAMETRO",827,585,850,823,841,828]
[null,"ID_METODOLOGIA",25,25,25,25,25,25]
[null,"ID_UNIDAD_MEDIDA",100,100,100,19,100,100]
[null,"ID_MUESTRA","DATOS,P","DATOS,P","DATOS,P","DATOS,P","DATOS,P","DATOS,P"]
[null,"ID_METODO",732,732,732,732,732]
[null,"VALOR","DATOS,Z","DATOS,AD","DATOS,AF","DATOS,AH","DATOS,AA","DATOS,M"]
[null,"QUALITY_FLAG"]
[null,"PRECISION"]
[null,"cantidad",104,104,104,104,104,104]
["autoria","ID_FUNCIONARIO","DIGITADOR,B,2","DATOS,K"]
[null,"ID_TAREA",5,4]
[null,"ORDEN",1,2]
[null,"FECHA","DIGITADOR,B,7","DATOS,G"]
[null,"ID_MUESTREO","DATOS,D","DATOS,D"]
[null,"ENTIDAD","DIGITADOR,B,4","DATOS,M"]
[null,"cantidad",104,104]
[]
["REGISTROS GENERADOS",null,"REGISTROS CARGADOS",null,null,"ID_PARAMETRO","ID_UNIDAD_MEDIDA","NOMBRE_COLUMNA"]
["MUESTREOS",null,null,null,null,585,100,"ESPECIE"]
["parametro muestreo",null,null,null,null,823,19,"VALOR"]
["muestra",null,null,null,null,827,100,"UBICACION_ESPECIFICA"]
["muestra variable",null,null,null,null,828,100,"ENTIDAD"]
["autoria",null,null,null,null,829,0,"REGION"]
["registros correctos",null,null,null,null,841,100,"CUADRANTE"]
["Fecha de carga",null,null,null,null,850,100,"ESTADO_SALUD"]
["json error",null,null,null,null,1055,100,"VERSION_PLANTILLA"]
["error",null,null,null,null,1169,100,"URL_METADATO"]
[null,null,null,null,null,1170,100,"ARCHIVO_FUENTE"]
[]
["Atributo","Descripción","Código"]
["Tipo Nodo","Estaciones",{"$f":"VLOOKUP(B59,'OTRAS REFERENCIAS'!$A$29:$C$39,2,FALSE)","v":40}]
[]
[]
["CONFIGURACION REFERENTES"]
["Ruta de la API","Endpoint","Descripción"]
["URL - AGM Campo",{"$f":"CONCATENATE(\"parametros/agmcampo/\",$C$4,\"\")","v":"parametros/agmcampo/25"},"Listado de referentes AGM_CAMPO."]
["URL - Especies",{"$f":"IF($C$8=\"\",\"\",CONCATENATE(\"especies/filt/\",$C$9,\",\",$C$8,\"/\"))","v":"especies/filt/1480,25/"},"Especies por proyecto\n(No todos los proyectos tienen asociados una lista de especies)"]
["URL - Estaciones",{"$f":"CONCATENATE(\"estaciones/\", $C$59, \"/\",$C$9,\"\")","v":"estaciones/40/1480"},"Estaciones/parcelas por proyecto, cambia dependiendo del Tipo de Nodo, cuyo estado sea VIGENTE."]
["URL - Usuarios",{"$f":"CONCATENATE(\"parametros/usersByProject/\",$C$7,\"\")","v":"parametros/usersByProject/1480"},"Usuarios por proyecto."]
["URL - Entidades","estaciones/get-entidades","Listado de entidades."]
["Atributos de la API","codigo_in","nombre_in"]
["Rango de atributos de la API","B70:C71","nombre_in"]
["URL - Plantillas","plantillas/","Endpoint para la carga de datos al sistema."]

{"sheet":"DIGITADOR","index":2,"n_rows":29,"n_cols":4,"rows_kept":29,"cut":false,"hidden":false,"merged":[[20,0,20,1],[14,3,16,9],[5,0,6,0],[0,0,0,1],[0,3,5,9],[14,0,14,1],[6,3,11,9],[12,3,13,9]]}
["Plantilla para la Recolección de Datos Salud Coralina",null,null,"Recomendaciones generales: \n¡Precaución! No inserte Filas o Columnas.\nEn los casos en que falte un valor a ingresar que provenga de la hoja de referencias, informe para que el administrador del sistema haga las adiciones necesarias.\nEsta es una plantilla programada. Las columnas de color oscuro se llenan automaticamente, principalmente a partir de los contenidos de la hoja de referencias. \nNO UTILICE PUNTO Y COMA (;) en ningun campo, por ser el separador de variables (columnas). Tampoco escriba las unidades de medida, no son necesarias.\nPara el correcto funcionamiento de la hoja debe estar activa la opcion de Excel de ejecutar macros (al abrir la hoja acepte la opcion habilitar macros, mensaje de Excel que aparece en la parte superior de la hoja en un recuadro amarillo). La extensión del archivo debe ser .xlsm\nSe recomienda renombrar el archivo de la siguiente manera: SIMAC_Salud_NombreEstacion_FechaMonitoreo.xlsm"]
["Código investigador",{"$f":"IF(B3=\"\",\"\",INDEX(REFERENTES!Y:Z,MATCH(B3,REFERENTES!Z:Z,0),1))","v":""}]
["Nombre del investigador"]
["Entidad","INVEMAR"]
["Versión plantilla",{"$f":"'Registro de cambios'!$D$4","v":"20241113i"}]
["Fecha en la que ingresa los datos en esta hoja","DD/MM/AAAA"]
[null,"3000-12-12",null,"Previamente a iniciar el llenado de la plantilla, debe presionar el botón \"Descargar referentes\" para que los referentes de ésta plantilla sean actualizados. \nLuego de llenar completamente la plantilla, haga clic sobre el botón \"Generar tablas\" para que los datos sean organizados antes de cargarlos al Sistema de Información.\nAntes de presionar el botón \"Generar tablas\" verifique que:\na. No haya celdas con valores como \"#N/A\" o \"#¡REF!\"\nb. No se esten aplicando filtros en la hoja de datos \nPara finalizar, presione el botón \"Cargar datos\"."]
[]
["Código proyecto",1480]
["Nombre proyecto","Sistema de Monitoreo de los Arrecifes Coralinos en Colombia"]
["Archivo fuente",{"$f":"MID(CELL(\"FILENAME\",N40),FIND(\"[\",CELL(\"FILENAME\",N40))+1,   FIND(\"]\",CELL(\"FILENAME\",N40))-FIND(\"[\",CELL(\"FILENAME\",N40))-1)","v":"SIMAC_Salud_20241113i.xlsm"}]
["DOI Metadato"]
["Fuente Plantilla","http://cinto.invemar.org.co/download/Plantillas_ARGOS_Plus/",null,"Si requiere ayuda contacte a:\nKevin S. Moreno (kevin.moreno@invemar.org.co)  - Apoyo técnico software"]
[]
["Seleccione la región de la cual va a ingresar la información:",null,null,"El custodio de los datos es el único autorizado para distribuir este conjunto de datos. El observador y el digitador se comprometen a tomar las medidas necesarias para salvaguardar este conjunto de datos de modo que copia de los mismos no sean obtenidas y/o usadas por terceros no relacionados con el propósito para la cual se recolectó."]
["Región"]
["Código",{"$f":"IF(B16=\"\",\"\",IF(B16=\"Caribe\",10,20))","v":""}]
[]
[]
[]
["REGISTROS GENERADOS",null,"CARGADOS"]
["Muestreos",{"$f":"IF(configuracion!B47=\"\",\"\",configuracion!B47)","v":""},{"$f":"IF(configuracion!C47=\"\",\"\",configuracion!C47)","v":""}]
["Parámetros del muestreo",{"$f":"IF(configuracion!B48=\"\",\"\",configuracion!B48)","v":""},{"$f":"IF(configuracion!C48=\"\",\"\",configuracion!C48)","v":""}]
["Registros",{"$f":"IF(configuracion!B49=\"\",\"\",configuracion!B49)","v":""},{"$f":"IF(configuracion!C49=\"\",\"\",configuracion!C49)","v":""}]
["Variables",{"$f":"IF(configuracion!B50=\"\",\"\",configuracion!B50)","v":""},{"$f":"IF(configuracion!C50=\"\",\"\",configuracion!C50)","v":""}]
["Autorías",{"$f":"IF(configuracion!B51=\"\",\"\",configuracion!B51)","v":""},{"$f":"IF(configuracion!C51=\"\",\"\",configuracion!C51)","v":""}]
["Registros correctos",{"$f":"IF(configuracion!B52=\"\",\"\",configuracion!B52)","v":""},{"$f":"IF(configuracion!C52=\"\",\"\",configuracion!C52)","v":""}]
["json error",{"$f":"IF(configuracion!B53=\"\",\"\",configuracion!B53)","v":""},{"$f":"IF(configuracion!C53=\"\",\"\",configuracion!C53)","v":""}]
["error",{"$f":"IF(configuracion!B54=\"\",\"\",configuracion!B54)","v":""},{"$f":"IF(configuracion!C54=\"\",\"\",configuracion!C54)","v":""}]

{"sheet":"DATOS","index":3,"n_rows":104,"n_cols":35,"rows_kept":104,"cut":false,"hidden":false,"merged":[[1,33,1,34],[1,2,3,2],[0,3,1,6],[1,9,1,10],[1,22,1,25],[1,28,1,32],[1,14,1,19],[3,20,3,21]]}
[{"$f":"DIGITADOR!B7+F5","v":"3000-12-12"},null,null,"Fecha"]
[{"$f":"TEXT(A1,\"yyyymmdd\")","v":"30001212"},null,"CODIGO",null,null,null,null,null,null,null,null,null,null,null,null,null,null,null,null,null,null,null,null,null,null,null,null,null,null,null,null,null,null,"NUMERO DE COLONIAS"]
[null,null,null,null,null,null,"DATE","MES","TEMPO",null,null,"UNIKE_KEY",null,null,null,null,null,null,null,null,null,null,null,null,null,null,null,null,null,null,null,null,null,"NC"]
[null,null,null,"CODMUESTREO","FECHA","HORA","DATE",null,"Temporada","DATOS TOMADOS POR","COD USUARIO","UNIKE_KEY","ENTIDAD","OBSERVACIONES MUESTREO","CONSECUTIVO","ID_MUESTRA","ID_MUESTREO (AGD_MUESTREOS)",null,"ESTACION","ID ESTACION",null,null,"PROF","COD","TRANSECTO","UBICACION","CUADRANTE","REPLICA","CAT_VIDA","ESPECIE","DESCRIPCION - ESPECIE","CAT\nSALUD","DESCRIPCION_SALUD","VALOR","OBSERVACIONES MUESTRA"]
[null,null,{"$f":"IF(L5=L4,C4,C4+1)","v":1},{"$f":"IF(Q5=\"\",\"\",IF(COUNTIF($Q5:Q5, Q5)>1, \"\", Q5))","v":""},null,null,{"$f":"IF(E5=\"\",\"\",E5+F5)","v":""},{"$f":"IF(G5<>\"\",MONTH(G5),\"\")","v":""},{"$f":"IF(D5=\"\",\"\",1)","v":""},null,{"$f":"IF(J5=\"\",\"\",INDEX(REFERENTES!$Y:$Z,MATCH(J5,REFERENTES!$Z:$Z,0),1))","v":""},{"$f":"IF(G5=\"\",\"\",CONCATENATE(G5,T5,K5,AB5))","v":""},null,null,1,{"$f":"IF(Q5=\"\",\"\",CONCATENATE(Q5,ROW()-2))","v":""},{"$f":"IF(E5<>\"\",CONCATENATE($A$2,DIGITADOR!$B$2,DIGITADOR!$M$1,ROW()-4),\"\")","v":""},null,null,{"$f":"IF(S5=\"\",\"\",INDEX('OTRAS REFERENCIAS'!$L$5:$M$150,MATCH(S5,'OTRAS REFERENCIAS'!$L$5:$L$150,0),2))","v":""},null,null,null,{"$f":"IF(W5=\"\",\"\",VLOOKUP(W5,'OTRAS REFERENCIAS'!$A$7:$B$9,2,FALSE))","v":""},null,{"$f":"CONCATENATE(X5,Y5)","v":""},null,null,{"$f":"IF(AD5=\"\",\"\",INDEX(REFERENTES!$J:$K,MATCH(AD5,REFERENTES!$K:$K,0),2))","v":""},null,{"$f":"IF(AD5=\"\",\"\",INDEX(REFERENTES!$J:$L,MATCH(AD5,REFERENTES!$K:$K,0),1))","v":""},null,{"$f":"IF(AF5=\"\",\"\",INDEX(REFERENTES!$D:$E,MATCH(AF5,REFERENTES!$E:$E,0),1))","v":""}]
[null,null,1,{"$f":"IF(Q6=\"\",\"\",IF(COUNTIF($Q6:Q6, Q6)>1, \"\", Q6))","v":""},null,null,{"$f":"IF(E6=\"\",\"\",E6+F6)","v":""},{"$f":"IF(G6<>\"\",MONTH(G6),\"\")","v":""},{"$f":"IF(D6=\"\",\"\",1)","v":""},null,{"$f":"IF(J6=\"\",\"\",INDEX(REFERENTES!$Y:$Z,MATCH(J6,REFERENTES!$Z:$Z,0),1))","v":""},{"$f":"IF(G6=\"\",\"\",CONCATENATE(G6,T6,K6,AB6))","v":""},null,null,2,{"$f":"IF(Q6=\"\",\"\",CONCATENATE(Q6,ROW()-2))","v":""},{"$f":"IF(E6<>\"\",CONCATENATE($A$2,DIGITADOR!$B$2,DIGITADOR!$M$1,ROW()-4),\"\")","v":""},null,null,{"$f":"IF(S6=\"\",\"\",INDEX('OTRAS REFERENCIAS'!$L$5:$M$150,MATCH(S6,'OTRAS REFERENCIAS'!$L$5:$L$150,0),2))","v":""},null,null,null,{"$f":"IF(W6=\"\",\"\",VLOOKUP(W6,'OTRAS REFERENCIAS'!$A$7:$B$9,2,FALSE))","v":""},null,{"$f":"CONCATENATE(X6,Y6)","v":""},null,null,{"$f":"IF(AD6=\"\",\"\",INDEX(REFERENTES!$J:$K,MATCH(AD6,REFERENTES!$K:$K,0),2))","v":""},null,{"$f":"IF(AD6=\"\",\"\",INDEX(REFERENTES!$J:$L,MATCH(AD6,REFERENTES!$K:$K,0),1))","v":""},null,{"$f":"IF(AF6=\"\",\"\",INDEX(REFERENTES!$D:$E,MATCH(AF6,REFERENTES!$E:$E,0),1))","v":""}]
[null,null,1,{"$f":"IF(Q7=\"\",\"\",IF(COUNTIF($Q7:Q7, Q7)>1, \"\", Q7))","v":""},null,null,"","",{"$f":"IF(D7=\"\",\"\",1)","v":""},null,{"$f":"IF(J7=\"\",\"\",INDEX(REFERENTES!$Y:$Z,MATCH(J7,REFERENTES!$Z:$Z,0),1))","v":""},{"$f":"IF(G7=\"\",\"\",CONCATENATE(G7,T7,K7,AB7))","v":""},null,null,3,"",{"$f":"IF(E7<>\"\",CONCATENATE($A$2,DIGITADOR!$B$2,DIGITADOR!$M$1,ROW()-4),\"\")","v":""},null,null,{"$f":"IF(S7=\"\",\"\",INDEX('OTRAS REFERENCIAS'!$L$5:$M$150,MATCH(S7,'OTRAS REFERENCIAS'!$L$5:$L$150,0),2))","v":""},null,null,null,{"$f":"IF(W7=\"\",\"\",VLOOKUP(W7,'OTRAS REFERENCIAS'!$A$7:$B$9,2,FALSE))","v":""},null,"",null,null,{"$f":"IF(AD7=\"\",\"\",INDEX(REFERENTES!$J:$K,MATCH(AD7,REFERENTES!$K:$K,0),2))","v":""},null,{"$f":"IF(AD7=\"\",\"\",INDEX(REFERENTES!$J:$L,MATCH(AD7,REFERENTES!$K:$K,0),1))","v":""},null,{"$f":"IF(AF7=\"\",\"\",INDEX(REFERENTES!$D:$E,MATCH(AF7,REFERENTES!$E:$E,0),1))","v":""}]
[null,null,1,{"$f":"IF(Q8=\"\",\"\",IF(COUNTIF($Q8:Q8, Q8)>1, \"\", Q8))","v":""},null,null,"","",{"$f":"IF(D8=\"\",\"\",1)","v":""},null,{"$f":"IF(J8=\"\",\"\",INDEX(REFERENTES!$Y:$Z,MATCH(J8,REFERENTES!$Z:$Z,0),1))","v":""},{"$f":"IF(G8=\"\",\"\",CONCATENATE(G8,T8,K8,AB8))","v":""},null,null,4,"",{"$f":"IF(E8<>\"\",CONCATENATE($A$2,DIGITADOR!$B$2,DIGITADOR!$M$1,ROW()-4),\"\")","v":""},null,null,{"$f":"IF(S8=\"\",\"\",INDEX('OTRAS REFERENCIAS'!$L$5:$M$150,MATCH(S8,'OTRAS REFERENCIAS'!$L$5:$L$150,0),2))","v":""},null,null,null,{"$f":"IF(W8=\"\",\"\",VLOOKUP(W8,'OTRAS REFERENCIAS'!$A$7:$B$9,2,FALSE))","v":""},null,"",null,null,{"$f":"IF(AD8=\"\",\"\",INDEX(REFERENTES!$J:$K,MATCH(AD8,REFERENTES!$K:$K,0),2))","v":""},null,{"$f":"IF(AD8=\"\",\"\",INDEX(REFERENTES!$J:$L,MATCH(AD8,REFERENTES!$K:$K,0),1))","v":""},null,{"$f":"IF(AF8=\"\",\"\",INDEX(REFERENTES!$D:$E,MATCH(AF8,REFERENTES!$E:$E,0),1))","v":""}]
[null,null,1,{"$f":"IF(Q9=\"\",\"\",IF(COUNTIF($Q9:Q9, Q9)>1, \"\", Q9))","v":""},null,null,"","",{"$f":"IF(D9=\"\",\"\",1)","v":""},null,{"$f":"IF(J9=\"\",\"\",INDEX(REFERENTES!$Y:$Z,MATCH(J9,REFERENTES!$Z:$Z,0),1))","v":""},"",null,null,5,"",{"$f":"IF(E9<>\"\",CONCATENATE($A$2,DIGITADOR!$B$2,DIGITADOR!$M$1,ROW()-4),\"\")","v":""},null,null,{"$f":"IF(S9=\"\",\"\",INDEX('OTRAS REFERENCIAS'!$L$5:$M$150,MATCH(S9,'OTRAS REFERENCIAS'!$L$5:$L$150,0),2))","v":""},null,null,null,{"$f":"IF(W9=\"\",\"\",VLOOKUP(W9,'OTRAS REFERENCIAS'!$A$7:$B$9,2,FALSE))","v":""},null,"",null,null,{"$f":"IF(AD9=\"\",\"\",INDEX(REFERENTES!$J:$K,MATCH(AD9,REFERENTES!$K:$K,0),2))","v":""},null,{"$f":"IF(AD9=\"\",\"\",INDEX(REFERENTES!$J:$L,MATCH(AD9,REFERENTES!$K:$K,0),1))","v":""},null,{"$f":"IF(AF9=\"\",\"\",INDEX(REFERENTES!$D:$E,MATCH(AF9,REFERENTES!$E:$E,0),1))","v":""}]
[null,null,1,{"$f":"IF(Q10=\"\",\"\",IF(COUNTIF($Q10:Q10, Q10)>1, \"\", Q10))","v":""},null,null,"","","",null,{"$f":"IF(J10=\"\",\"\",INDEX(REFERENTES!$Y:$Z,MATCH(J10,REFERENTES!$Z:$Z,0),1))","v":""},"",null,null,6,"",{"$f":"IF(E10<>\"\",CONCATENATE($A$2,DIGITADOR!$B$2,DIGITADOR!$M$1,ROW()-4),\"\")","v":""},null,null,{"$f":"IF(S10=\"\",\"\",INDEX('OTRAS REFERENCIAS'!$L$5:$M$150,MATCH(S10,'OTRAS REFERENCIAS'!$L$5:$L$150,0),2))","v":""},null,null,null,{"$f":"IF(W10=\"\",\"\",VLOOKUP(W10,'OTRAS REFERENCIAS'!$A$7:$B$9,2,FALSE))","v":""},null,"",null,null,{"$f":"IF(AD10=\"\",\"\",INDEX(REFERENTES!$J:$K,MATCH(AD10,REFERENTES!$K:$K,0),2))","v":""},null,{"$f":"IF(AD10=\"\",\"\",INDEX(REFERENTES!$J:$L,MATCH(AD10,REFERENTES!$K:$K,0),1))","v":""},null,{"$f":"IF(AF10=\"\",\"\",INDEX(REFERENTES!$D:$E,MATCH(AF10,REFERENTES!$E:$E,0),1))","v":""}]
[null,null,1,{"$f":"IF(Q11=\"\",\"\",IF(COUNTIF($Q11:Q11, Q11)>1, \"\", Q11))","v":""},null,null,"","","",null,{"$f":"IF(J11=\"\",\"\",INDEX(REFERENTES!$Y:$Z,MATCH(J11,REFERENTES!$Z:$Z,0),1))","v":""},"",null,null,7,"",{"$f":"IF(E11<>\"\",CONCATENATE($A$2,DIGITADOR!$B$2,DIGITADOR!$M$1,ROW()-4),\"\")","v":""},null,null,{"$f":"IF(S11=\"\",\"\",INDEX('OTRAS REFERENCIAS'!$L$5:$M$150,MATCH(S11,'OTRAS REFERENCIAS'!$L$5:$L$150,0),2))","v":""},null,null,null,{"$f":"IF(W11=\"\",\"\",VLOOKUP(W11,'OTRAS REFERENCIAS'!$A$7:$B$9,2,FALSE))","v":""},null,"",null,null,{"$f":"IF(AD11=\"\",\"\",INDEX(REFERENTES!$J:$K,MATCH(AD11,REFERENTES!$K:$K,0),2))","v":""},null,{"$f":"IF(AD11=\"\",\"\",INDEX(REFERENTES!$J:$L,MATCH(AD11,REFERENTES!$K:$K,0),1))","v":""},null,{"$f":"IF(AF11=\"\",\"\",INDEX(REFERENTES!$D:$E,MATCH(AF11,REFERENTES!$E:$E,0),1))","v":""}]
[null,null,1,{"$f":"IF(Q12=\"\",\"\",IF(COUNTIF($Q12:Q12, Q12)>1, \"\", Q12))","v":""},null,null,"","","",null,{"$f":"IF(J12=\"\",\"\",INDEX(REFERENTES!$Y:$Z,MATCH(J12,REFERENTES!$Z:$Z,0),1))","v":""},"",null,null,8,"",{"$f":"IF(E12<>\"\",CONCATENATE($A$2,DIGITADOR!$B$2,DIGITADOR!$M$1,ROW()-4),\"\")","v":""},null,null,{"$f":"IF(S12=\"\",\"\",INDEX('OTRAS REFERENCIAS'!$L$5:$M$150,MATCH(S12,'OTRAS REFERENCIAS'!$L$5:$L$150,0),2))","v":""},null,null,null,{"$f":"IF(W12=\"\",\"\",VLOOKUP(W12,'OTRAS REFERENCIAS'!$A$7:$B$9,2,FALSE))","v":""},null,"",null,null,{"$f":"IF(AD12=\"\",\"\",INDEX(REFERENTES!$J:$K,MATCH(AD12,REFERENTES!$K:$K,0),2))","v":""},null,{"$f":"IF(AD12=\"\",\"\",INDEX(REFERENTES!$J:$L,MATCH(AD12,REFERENTES!$K:$K,0),1))","v":""},null,{"$f":"IF(AF12=\"\",\"\",INDEX(REFERENTES!$D:$E,MATCH(AF12,REFERENTES!$E:$E,0),1))","v":""}]
[null,null,1,{"$f":"IF(Q13=\"\",\"\",IF(COUNTIF($Q13:Q13, Q13)>1, \"\", Q13))","v":""},null,null,"","","",null,{"$f":"IF(J13=\"\",\"\",INDEX(REFERENTES!$Y:$Z,MATCH(J13,REFERENTES!$Z:$Z,0),1))","v":""},"",null,null,9,"",{"$f":"IF(E13<>\"\",CONCATENATE($A$2,DIGITADOR!$B$2,DIGITADOR!$M$1,ROW()-4),\"\")","v":""},null,null,{"$f":"IF(S13=\"\",\"\",INDEX('OTRAS REFERENCIAS'!$L$5:$M$150,MATCH(S13,'OTRAS REFERENCIAS'!$L$5:$L$150,0),2))","v":""},null,null,null,{"$f":"IF(W13=\"\",\"\",VLOOKUP(W13,'OTRAS REFERENCIAS'!$A$7:$B$9,2,FALSE))","v":""},null,"",null,null,{"$f":"IF(AD13=\"\",\"\",INDEX(REFERENTES!$J:$K,MATCH(AD13,REFERENTES!$K:$K,0),2))","v":""},null,{"$f":"IF(AD13=\"\",\"\",INDEX(REFERENTES!$J:$L,MATCH(AD13,REFERENTES!$K:$K,0),1))","v":""},null,{"$f":"IF(AF13=\"\",\"\",INDEX(REFERENTES!$D:$E,MATCH(AF13,REFERENTES!$E:$E,0),1))","v":""}]
[null,null,1,{"$f":"IF(Q14=\"\",\"\",IF(COUNTIF($Q14:Q14, Q14)>1, \"\", Q14))","v":""},null,null,"","","",null,{"$f":"IF(J14=\"\",\"\",INDEX(REFERENTES!$Y:$Z,MATCH(J14,REFERENTES!$Z:$Z,0),1))","v":""},"",null,null,10,"",{"$f":"IF(E14<>\"\",CONCATENATE($A$2,DIGITADOR!$B$2,DIGITADOR!$M$1,ROW()-4),\"\")","v":""},null,null,{"$f":"IF(S14=\"\",\"\",INDEX('OTRAS REFERENCIAS'!$L$5:$M$150,MATCH(S14,'OTRAS REFERENCIAS'!$L$5:$L$150,0),2))","v":""},null,null,null,{"$f":"IF(W14=\"\",\"\",VLOOKUP(W14,'OTRAS REFERENCIAS'!$A$7:$B$9,2,FALSE))","v":""},null,"",null,null,{"$f":"IF(AD14=\"\",\"\",INDEX(REFERENTES!$J:$K,MATCH(AD14,REFERENTES!$K:$K,0),2))","v":""},null,{"$f":"IF(AD14=\"\",\"\",INDEX(REFERENTES!$J:$L,MATCH(AD14,REFERENTES!$K:$K,0),1))","v":""},null,{"$f":"IF(AF14=\"\",\"\",INDEX(REFERENTES!$D:$E,MATCH(AF14,REFERENTES!$E:$E,0),1))","v":""}]
[null,null,1,{"$f":"IF(Q15=\"\",\"\",IF(COUNTIF($Q15:Q15, Q15)>1, \"\", Q15))","v":""},null,null,"","","",null,{"$f":"IF(J15=\"\",\"\",INDEX(REFERENTES!$Y:$Z,MATCH(J15,REFERENTES!$Z:$Z,0),1))","v":""},"",null,null,11,"",{"$f":"IF(E15<>\"\",CONCATENATE($A$2,DIGITADOR!$B$2,DIGITADOR!$M$1,ROW()-4),\"\")","v":""},null,null,{"$f":"IF(S15=\"\",\"\",INDEX('OTRAS REFERENCIAS'!$L$5:$M$150,MATCH(S15,'OTRAS REFERENCIAS'!$L$5:$L$150,0),2))","v":""},null,null,null,{"$f":"IF(W15=\"\",\"\",VLOOKUP(W15,'OTRAS REFERENCIAS'!$A$7:$B$9,2,FALSE))","v":""},null,"",null,null,{"$f":"IF(AD15=\"\",\"\",INDEX(REFERENTES!$J:$K,MATCH(AD15,REFERENTES!$K:$K,0),2))","v":""},null,{"$f":"IF(AD15=\"\",\"\",INDEX(REFERENTES!$J:$L,MATCH(AD15,REFERENTES!$K:$K,0),1))","v":""},null,{"$f":"IF(AF15=\"\",\"\",INDEX(REFERENTES!$D:$E,MATCH(AF15,REFERENTES!$E:$E,0),1))","v":""}]
[null,null,1,{"$f":"IF(Q16=\"\",\"\",IF(COUNTIF($Q16:Q16, Q16)>1, \"\", Q16))","v":""},null,null,"","","",null,{"$f":"IF(J16=\"\",\"\",INDEX(REFERENTES!$Y:$Z,MATCH(J16,REFERENTES!$Z:$Z,0),1))","v":""},"",null,null,12,"",{"$f":"IF(E16<>\"\",CONCATENATE($A$2,DIGITADOR!$B$2,DIGITADOR!$M$1,ROW()-4),\"\")","v":""},null,null,{"$f":"IF(S16=\"\",\"\",INDEX('OTRAS REFERENCIAS'!$L$5:$M$150,MATCH(S16,'OTRAS REFERENCIAS'!$L$5:$L$150,0),2))","v":""},null,null,null,{"$f":"IF(W16=\"\",\"\",VLOOKUP(W16,'OTRAS REFERENCIAS'!$A$7:$B$9,2,FALSE))","v":""},null,"",null,null,{"$f":"IF(AD16=\"\",\"\",INDEX(REFERENTES!$J:$K,MATCH(AD16,REFERENTES!$K:$K,0),2))","v":""},null,{"$f":"IF(AD16=\"\",\"\",INDEX(REFERENTES!$J:$L,MATCH(AD16,REFERENTES!$K:$K,0),1))","v":""},null,{"$f":"IF(AF16=\"\",\"\",INDEX(REFERENTES!$D:$E,MATCH(AF16,REFERENTES!$E:$E,0),1))","v":""}]
[null,null,1,{"$f":"IF(Q17=\"\",\"\",IF(COUNTIF($Q17:Q17, Q17)>1, \"\", Q17))","v":""},null,null,"","","",null,{"$f":"IF(J17=\"\",\"\",INDEX(REFERENTES!$Y:$Z,MATCH(J17,REFERENTES!$Z:$Z,0),1))","v":""},"",null,null,13,"",{"$f":"IF(E17<>\"\",CONCATENATE($A$2,DIGITADOR!$B$2,DIGITADOR!$M$1,ROW()-4),\"\")","v":""},null,null,{"$f":"IF(S17=\"\",\"\",INDEX('OTRAS REFERENCIAS'!$L$5:$M$150,MATCH(S17,'OTRAS REFERENCIAS'!$L$5:$L$150,0),2))","v":""},null,null,null,{"$f":"IF(W17=\"\",\"\",VLOOKUP(W17,'OTRAS REFERENCIAS'!$A$7:$B$9,2,FALSE))","v":""},null,"",null,null,{"$f":"IF(AD17=\"\",\"\",INDEX(REFERENTES!$J:$K,MATCH(AD17,REFERENTES!$K:$K,0),2))","v":""},null,{"$f":"IF(AD17=\"\",\"\",INDEX(REFERENTES!$J:$L,MATCH(AD17,REFERENTES!$K:$K,0),1))","v":""},null,{"$f":"IF(AF17=\"\",\"\",INDEX(REFERENTES!$D:$E,MATCH(AF17,REFERENTES!$E:$E,0),1))","v":""}]
[null,null,1,{"$f":"IF(Q18=\"\",\"\",IF(COUNTIF($Q18:Q18, Q18)>1, \"\", Q18))","v":""},null,null,"","","",null,{"$f":"IF(J18=\"\",\"\",INDEX(REFERENTES!$Y:$Z,MATCH(J18,REFERENTES!$Z:$Z,0),1))","v":""},"",null,null,14,"",{"$f":"IF(E18<>\"\",CONCATENATE($A$2,DIGITADOR!$B$2,DIGITADOR!$M$1,ROW()-4),\"\")","v":""},null,null,{"$f":"IF(S18=\"\",\"\",INDEX('OTRAS REFERENCIAS'!$L$5:$M$150,MATCH(S18,'OTRAS REFERENCIAS'!$L$5:$L$150,0),2))","v":""},null,null,null,{"$f":"IF(W18=\"\",\"\",VLOOKUP(W18,'OTRAS REFERENCIAS'!$A$7:$B$9,2,FALSE))","v":""},null,"",null,null,{"$f":"IF(AD18=\"\",\"\",INDEX(REFERENTES!$J:$K,MATCH(AD18,REFERENTES!$K:$K,0),2))","v":""},null,{"$f":"IF(AD18=\"\",\"\",INDEX(REFERENTES!$J:$L,MATCH(AD18,REFERENTES!$K:$K,0),1))","v":""},null,{"$f":"IF(AF18=\"\",\"\",INDEX(REFERENTES!$D:$E,MATCH(AF18,REFERENTES!$E:$E,0),1))","v":""}]
[null,null,1,{"$f":"IF(Q19=\"\",\"\",IF(COUNTIF($Q19:Q19, Q19)>1, \"\", Q19))","v":""},null,null,"","","",null,{"$f":"IF(J19=\"\",\"\",INDEX(REFERENTES!$Y:$Z,MATCH(J19,REFERENTES!$Z:$Z,0),1))","v":""},"",null,null,15,"",{"$f":"IF(E19<>\"\",CONCATENATE($A$2,DIGITADOR!$B$2,DIGITADOR!$M$1,ROW()-4),\"\")","v":""},null,null,{"$f":"IF(S19=\"\",\"\",INDEX('OTRAS REFERENCIAS'!$L$5:$M$150,MATCH(S19,'OTRAS REFERENCIAS'!$L$5:$L$150,0),2))","v":""},null,null,null,{"$f":"IF(W19=\"\",\"\",VLOOKUP(W19,'OTRAS REFERENCIAS'!$A$7:$B$9,2,FALSE))","v":""},null,"",null,null,{"$f":"IF(AD19=\"\",\"\",INDEX(REFERENTES!$J:$K,MATCH(AD19,REFERENTES!$K:$K,0),2))","v":""},null,{"$f":"IF(AD19=\"\",\"\",INDEX(REFERENTES!$J:$L,MATCH(AD19,REFERENTES!$K:$K,0),1))","v":""},null,{"$f":"IF(AF19=\"\",\"\",INDEX(REFERENTES!$D:$E,MATCH(AF19,REFERENTES!$E:$E,0),1))","v":""}]
[null,null,1,{"$f":"IF(Q20=\"\",\"\",IF(COUNTIF($Q20:Q20, Q20)>1, \"\", Q20))","v":""},null,null,"","","",null,{"$f":"IF(J20=\"\",\"\",INDEX(REFERENTES!$Y:$Z,MATCH(J20,REFERENTES!$Z:$Z,0),1))","v":""},"",null,null,16,"",{"$f":"IF(E20<>\"\",CONCATENATE($A$2,DIGITADOR!$B$2,DIGITADOR!$M$1,ROW()-4),\"\")","v":""},null,null,{"$f":"IF(S20=\"\",\"\",INDEX('OTRAS REFERENCIAS'!$L$5:$M$150,MATCH(S20,'OTRAS REFERENCIAS'!$L$5:$L$150,0),2))","v":""},null,null,null,{"$f":"IF(W20=\"\",\"\",VLOOKUP(W20,'OTRAS REFERENCIAS'!$A$7:$B$9,2,FALSE))","v":""},null,"",null,null,{"$f":"IF(AD20=\"\",\"\",INDEX(REFERENTES!$J:$K,MATCH(AD20,REFERENTES!$K:$K,0),2))","v":""},null,{"$f":"IF(AD20=\"\",\"\",INDEX(REFERENTES!$J:$L,MATCH(AD20,REFERENTES!$K:$K,0),1))","v":""},null,{"$f":"IF(AF20=\"\",\"\",INDEX(REFERENTES!$D:$E,MATCH(AF20,REFERENTES!$E:$E,0),1))","v":""}]
[null,null,1,{"$f":"IF(Q21=\"\",\"\",IF(COUNTIF($Q21:Q21, Q21)>1, \"\", Q21))","v":""},null,null,"","","",null,{"$f":"IF(J21=\"\",\"\",INDEX(REFERENTES!$Y:$Z,MATCH(J21,REFERENTES!$Z:$Z,0),1))","v":""},"",null,null,17,"",{"$f":"IF(E21<>\"\",CONCATENATE($A$2,DIGITADOR!$B$2,DIGITADOR!$M$1,ROW()-4),\"\")","v":""},null,null,{"$f":"IF(S21=\"\",\"\",INDEX('OTRAS REFERENCIAS'!$L$5:$M$150,MATCH(S21,'OTRAS REFERENCIAS'!$L$5:$L$150,0),2))","v":""},null,null,null,{"$f":"IF(W21=\"\",\"\",VLOOKUP(W21,'OTRAS REFERENCIAS'!$A$7:$B$9,2,FALSE))","v":""},null,"",null,null,{"$f":"IF(AD21=\"\",\"\",INDEX(REFERENTES!$J:$K,MATCH(AD21,REFERENTES!$K:$K,0),2))","v":""},null,{"$f":"IF(AD21=\"\",\"\",INDEX(REFERENTES!$J:$L,MATCH(AD21,REFERENTES!$K:$K,0),1))","v":""},null,{"$f":"IF(AF21=\"\",\"\",INDEX(REFERENTES!$D:$E,MATCH(AF21,REFERENTES!$E:$E,0),1))","v":""}]
[null,null,1,{"$f":"IF(Q22=\"\",\"\",IF(COUNTIF($Q22:Q22, Q22)>1, \"\", Q22))","v":""},null,null,"","","",null,{"$f":"IF(J22=\"\",\"\",INDEX(REFERENTES!$Y:$Z,MATCH(J22,REFERENTES!$Z:$Z,0),1))","v":""},"",null,null,18,"",{"$f":"IF(E22<>\"\",CONCATENATE($A$2,DIGITADOR!$B$2,DIGITADOR!$M$1,ROW()-4),\"\")","v":""},null,null,{"$f":"IF(S22=\"\",\"\",INDEX('OTRAS REFERENCIAS'!$L$5:$M$150,MATCH(S22,'OTRAS REFERENCIAS'!$L$5:$L$150,0),2))","v":""},null,null,null,{"$f":"IF(W22=\"\",\"\",VLOOKUP(W22,'OTRAS REFERENCIAS'!$A$7:$B$9,2,FALSE))","v":""},null,"",null,null,{"$f":"IF(AD22=\"\",\"\",INDEX(REFERENTES!$J:$K,MATCH(AD22,REFERENTES!$K:$K,0),2))","v":""},null,{"$f":"IF(AD22=\"\",\"\",INDEX(REFERENTES!$J:$L,MATCH(AD22,REFERENTES!$K:$K,0),1))","v":""},null,{"$f":"IF(AF22=\"\",\"\",INDEX(REFERENTES!$D:$E,MATCH(AF22,REFERENTES!$E:$E,0),1))","v":""}]
[null,null,1,{"$f":"IF(Q23=\"\",\"\",IF(COUNTIF($Q23:Q23, Q23)>1, \"\", Q23))","v":""},null,null,"","","",null,{"$f":"IF(J23=\"\",\"\",INDEX(REFERENTES!$Y:$Z,MATCH(J23,REFERENTES!$Z:$Z,0),1))","v":""},"",null,null,19,"",{"$f":"IF(E23<>\"\",CONCATENATE($A$2,DIGITADOR!$B$2,DIGITADOR!$M$1,ROW()-4),\"\")","v":""},null,null,{"$f":"IF(S23=\"\",\"\",INDEX('OTRAS REFERENCIAS'!$L$5:$M$150,MATCH(S23,'OTRAS REFERENCIAS'!$L$5:$L$150,0),2))","v":""},null,null,null,{"$f":"IF(W23=\"\",\"\",VLOOKUP(W23,'OTRAS REFERENCIAS'!$A$7:$B$9,2,FALSE))","v":""},null,"",null,null,{"$f":"IF(AD23=\"\",\"\",INDEX(REFERENTES!$J:$K,MATCH(AD23,REFERENTES!$K:$K,0),2))","v":""},null,{"$f":"IF(AD23=\"\",\"\",INDEX(REFERENTES!$J:$L,MATCH(AD23,REFERENTES!$K:$K,0),1))","v":""},null,{"$f":"IF(AF23=\"\",\"\",INDEX(REFERENTES!$D:$E,MATCH(AF23,REFERENTES!$E:$E,0),1))","v":""}]
[null,null,1,{"$f":"IF(Q24=\"\",\"\",IF(COUNTIF($Q24:Q24, Q24)>1, \"\", Q24))","v":""},null,null,"","","",null,{"$f":"IF(J24=\"\",\"\",INDEX(REFERENTES!$Y:$Z,MATCH(J24,REFERENTES!$Z:$Z,0),1))","v":""},"",null,null,20,"",{"$f":"IF(E24<>\"\",CONCATENATE($A$2,DIGITADOR!$B$2,DIGITADOR!$M$1,ROW()-4),\"\")","v":""},null,null,{"$f":"IF(S24=\"\",\"\",INDEX('OTRAS REFERENCIAS'!$L$5:$M$150,MATCH(S24,'OTRAS REFERENCIAS'!$L$5:$L$150,0),2))","v":""},null,null,null,{"$f":"IF(W24=\"\",\"\",VLOOKUP(W24,'OTRAS REFERENCIAS'!$A$7:$B$9,2,FALSE))","v":""},null,"",null,null,{"$f":"IF(AD24=\"\",\"\",INDEX(REFERENTES!$J:$K,MATCH(AD24,REFERENTES!$K:$K,0),2))","v":""},null,{"$f":"IF(AD24=\"\",\"\",INDEX(REFERENTES!$J:$L,MATCH(AD24,REFERENTES!$K:$K,0),1))","v":""},null,{"$f":"IF(AF24=\"\",\"\",INDEX(REFERENTES!$D:$E,MATCH(AF24,REFERENTES!$E:$E,0),1))","v":""}]
[null,null,1,{"$f":"IF(Q25=\"\",\"\",IF(COUNTIF($Q25:Q25, Q25)>1, \"\", Q25))","v":""},null,null,"","","",null,{"$f":"IF(J25=\"\",\"\",INDEX(REFERENTES!$Y:$Z,MATCH(J25,REFERENTES!$Z:$Z,0),1))","v":""},"",null,null,21,"",{"$f":"IF(E25<>\"\",CONCATENATE($A$2,DIGITADOR!$B$2,DIGITADOR!$M$1,ROW()-4),\"\")","v":""},null,null,{"$f":"IF(S25=\"\",\"\",INDEX('OTRAS REFERENCIAS'!$L$5:$M$150,MATCH(S25,'OTRAS REFERENCIAS'!$L$5:$L$150,0),2))","v":""},null,null,null,{"$f":"IF(W25=\"\",\"\",VLOOKUP(W25,'OTRAS REFERENCIAS'!$A$7:$B$9,2,FALSE))","v":""},null,"",null,null,{"$f":"IF(AD25=\"\",\"\",INDEX(REFERENTES!$J:$K,MATCH(AD25,REFERENTES!$K:$K,0),2))","v":""},null,{"$f":"IF(AD25=\"\",\"\",INDEX(REFERENTES!$J:$L,MATCH(AD25,REFERENTES!$K:$K,0),1))","v":""},null,{"$f":"IF(AF25=\"\",\"\",INDEX(REFERENTES!$D:$E,MATCH(AF25,REFERENTES!$E:$E,0),1))","v":""}]
[null,null,1,{"$f":"IF(Q26=\"\",\"\",IF(COUNTIF($Q26:Q26, Q26)>1, \"\", Q26))","v":""},null,null,"","","",null,{"$f":"IF(J26=\"\",\"\",INDEX(REFERENTES!$Y:$Z,MATCH(J26,REFERENTES!$Z:$Z,0),1))","v":""},"",null,null,22,"",{"$f":"IF(E26<>\"\",CONCATENATE($A$2,DIGITADOR!$B$2,DIGITADOR!$M$1,ROW()-4),\"\")","v":""},null,null,{"$f":"IF(S26=\"\",\"\",INDEX('OTRAS REFERENCIAS'!$L$5:$M$150,MATCH(S26,'OTRAS REFERENCIAS'!$L$5:$L$150,0),2))","v":""},null,null,null,{"$f":"IF(W26=\"\",\"\",VLOOKUP(W26,'OTRAS REFERENCIAS'!$A$7:$B$9,2,FALSE))","v":""},null,"",null,null,{"$f":"IF(AD26=\"\",\"\",INDEX(REFERENTES!$J:$K,MATCH(AD26,REFERENTES!$K:$K,0),2))","v":""},null,{"$f":"IF(AD26=\"\",\"\",INDEX(REFERENTES!$J:$L,MATCH(AD26,REFERENTES!$K:$K,0),1))","v":""},null,{"$f":"IF(AF26=\"\",\"\",INDEX(REFERENTES!$D:$E,MATCH(AF26,REFERENTES!$E:$E,0),1))","v":""}]
[null,null,1,{"$f":"IF(Q27=\"\",\"\",IF(COUNTIF($Q27:Q27, Q27)>1, \"\", Q27))","v":""},null,null,"","","",null,{"$f":"IF(J27=\"\",\"\",INDEX(REFERENTES!$Y:$Z,MATCH(J27,REFERENTES!$Z:$Z,0),1))","v":""},"",null,null,23,"",{"$f":"IF(E27<>\"\",CONCATENATE($A$2,DIGITADOR!$B$2,DIGITADOR!$M$1,ROW()-4),\"\")","v":""},null,null,{"$f":"IF(S27=\"\",\"\",INDEX('OTRAS REFERENCIAS'!$L$5:$M$150,MATCH(S27,'OTRAS REFERENCIAS'!$L$5:$L$150,0),2))","v":""},null,null,null,{"$f":"IF(W27=\"\",\"\",VLOOKUP(W27,'OTRAS REFERENCIAS'!$A$7:$B$9,2,FALSE))","v":""},null,"",null,null,{"$f":"IF(AD27=\"\",\"\",INDEX(REFERENTES!$J:$K,MATCH(AD27,REFERENTES!$K:$K,0),2))","v":""},null,{"$f":"IF(AD27=\"\",\"\",INDEX(REFERENTES!$J:$L,MATCH(AD27,REFERENTES!$K:$K,0),1))","v":""},null,{"$f":"IF(AF27=\"\",\"\",INDEX(REFERENTES!$D:$E,MATCH(AF27,REFERENTES!$E:$E,0),1))","v":""}]
[null,null,1,{"$f":"IF(Q28=\"\",\"\",IF(COUNTIF($Q28:Q28, Q28)>1, \"\", Q28))","v":""},null,null,"","","",null,{"$f":"IF(J28=\"\",\"\",INDEX(REFERENTES!$Y:$Z,MATCH(J28,REFERENTES!$Z:$Z,0),1))","v":""},"",null,null,24,"",{"$f":"IF(E28<>\"\",CONCATENATE($A$2,DIGITADOR!$B$2,DIGITADOR!$M$1,ROW()-4),\"\")","v":""},null,null,{"$f":"IF(S28=\"\",\"\",INDEX('OTRAS REFERENCIAS'!$L$5:$M$150,MATCH(S28,'OTRAS REFERENCIAS'!$L$5:$L$150,0),2))","v":""},null,null,null,{"$f":"IF(W28=\"\",\"\",VLOOKUP(W28,'OTRAS REFERENCIAS'!$A$7:$B$9,2,FALSE))","v":""},null,"",null,null,{"$f":"IF(AD28=\"\",\"\",INDEX(REFERENTES!$J:$K,MATCH(AD28,REFERENTES!$K:$K,0),2))","v":""},null,{"$f":"IF(AD28=\"\",\"\",INDEX(REFERENTES!$J:$L,MATCH(AD28,REFERENTES!$K:$K,0),1))","v":""},null,{"$f":"IF(AF28=\"\",\"\",INDEX(REFERENTES!$D:$E,MATCH(AF28,REFERENTES!$E:$E,0),1))","v":""}]
[null,null,1,{"$f":"IF(Q29=\"\",\"\",IF(COUNTIF($Q29:Q29, Q29)>1, \"\", Q29))","v":""},null,null,"","","",null,{"$f":"IF(J29=\"\",\"\",INDEX(REFERENTES!$Y:$Z,MATCH(J29,REFERENTES!$Z:$Z,0),1))","v":""},"",null,null,25,"",{"$f":"IF(E29<>\"\",CONCATENATE($A$2,DIGITADOR!$B$2,DIGITADOR!$M$1,ROW()-4),\"\")","v":""},null,null,{"$f":"IF(S29=\"\",\"\",INDEX('OTRAS REFERENCIAS'!$L$5:$M$150,MATCH(S29,'OTRAS REFERENCIAS'!$L$5:$L$150,0),2))","v":""},null,null,null,{"$f":"IF(W29=\"\",\"\",VLOOKUP(W29,'OTRAS REFERENCIAS'!$A$7:$B$9,2,FALSE))","v":""},null,"",null,null,{"$f":"IF(AD29=\"\",\"\",INDEX(REFERENTES!$J:$K,MATCH(AD29,REFERENTES!$K:$K,0),2))","v":""},null,{"$f":"IF(AD29=\"\",\"\",INDEX(REFERENTES!$J:$L,MATCH(AD29,REFERENTES!$K:$K,0),1))","v":""},null,{"$f":"IF(AF29=\"\",\"\",INDEX(REFERENTES!$D:$E,MATCH(AF29,REFERENTES!$E:$E,0),1))","v":""}]
[null,null,1,{"$f":"IF(Q30=\"\",\"\",IF(COUNTIF($Q30:Q30, Q30)>1, \"\", Q30))","v":""},null,null,"","","",null,{"$f":"IF(J30=\"\",\"\",INDEX(REFERENTES!$Y:$Z,MATCH(J30,REFERENTES!$Z:$Z,0),1))","v":""},"",null,null,26,"",{"$f":"IF(E30<>\"\",CONCATENATE($A$2,DIGITADOR!$B$2,DIGITADOR!$M$1,ROW()-4),\"\")","v":""},null,null,{"$f":"IF(S30=\"\",\"\",INDEX('OTRAS REFERENCIAS'!$L$5:$M$150,MATCH(S30,'OTRAS REFERENCIAS'!$L$5:$L$150,0),2))","v":""},null,null,null,{"$f":"IF(W30=\"\",\"\",VLOOKUP(W30,'OTRAS REFERENCIAS'!$A$7:$B$9,2,FALSE))","v":""},null,"",null,null,{"$f":"IF(AD30=\"\",\"\",INDEX(REFERENTES!$J:$K,MATCH(AD30,REFERENTES!$K:$K,0),2))","v":""},null,{"$f":"IF(AD30=\"\",\"\",INDEX(REFERENTES!$J:$L,MATCH(AD30,REFERENTES!$K:$K,0),1))","v":""},null,{"$f":"IF(AF30=\"\",\"\",INDEX(REFERENTES!$D:$E,MATCH(AF30,REFERENTES!$E:$E,0),1))","v":""}]
[null,null,1,{"$f":"IF(Q31=\"\",\"\",IF(COUNTIF($Q31:Q31, Q31)>1, \"\", Q31))","v":""},null,null,"","","",null,{"$f":"IF(J31=\"\",\"\",INDEX(REFERENTES!$Y:$Z,MATCH(J31,REFERENTES!$Z:$Z,0),1))","v":""},"",null,null,27,"",{"$f":"IF(E31<>\"\",CONCATENATE($A$2,DIGITADOR!$B$2,DIGITADOR!$M$1,ROW()-4),\"\")","v":""},null,null,{"$f":"IF(S31=\"\",\"\",INDEX('OTRAS REFERENCIAS'!$L$5:$M$150,MATCH(S31,'OTRAS REFERENCIAS'!$L$5:$L$150,0),2))","v":""},null,null,null,{"$f":"IF(W31=\"\",\"\",VLOOKUP(W31,'OTRAS REFERENCIAS'!$A$7:$B$9,2,FALSE))","v":""},null,"",null,null,{"$f":"IF(AD31=\"\",\"\",INDEX(REFERENTES!$J:$K,MATCH(AD31,REFERENTES!$K:$K,0),2))","v":""},null,{"$f":"IF(AD31=\"\",\"\",INDEX(REFERENTES!$J:$L,MATCH(AD31,REFERENTES!$K:$K,0),1))","v":""},null,{"$f":"IF(AF31=\"\",\"\",INDEX(REFERENTES!$D:$E,MATCH(AF31,REFERENTES!$E:$E,0),1))","v":""}]
[null,null,1,{"$f":"IF(Q32=\"\",\"\",IF(COUNTIF($Q32:Q32, Q32)>1, \"\", Q32))","v":""},null,null,"","","",null,{"$f":"IF(J32=\"\",\"\",INDEX(REFERENTES!$Y:$Z,MATCH(J32,REFERENTES!$Z:$Z,0),1))","v":""},"",null,null,28,"",{"$f":"IF(E32<>\"\",CONCATENATE($A$2,DIGITADOR!$B$2,DIGITADOR!$M$1,ROW()-4),\"\")","v":""},null,null,{"$f":"IF(S32=\"\",\"\",INDEX('OTRAS REFERENCIAS'!$L$5:$M$150,MATCH(S32,'OTRAS REFERENCIAS'!$L$5:$L$150,0),2))","v":""},null,null,null,{"$f":"IF(W32=\"\",\"\",VLOOKUP(W32,'OTRAS REFERENCIAS'!$A$7:$B$9,2,FALSE))","v":""},null,"",null,null,{"$f":"IF(AD32=\"\",\"\",INDEX(REFERENTES!$J:$K,MATCH(AD32,REFERENTES!$K:$K,0),2))","v":""},null,{"$f":"IF(AD32=\"\",\"\",INDEX(REFERENTES!$J:$L,MATCH(AD32,REFERENTES!$K:$K,0),1))","v":""},null,{"$f":"IF(AF32=\"\",\"\",INDEX(REFERENTES!$D:$E,MATCH(AF32,REFERENTES!$E:$E,0),1))","v":""}]
[null,null,1,{"$f":"IF(Q33=\"\",\"\",IF(COUNTIF($Q33:Q33, Q33)>1, \"\", Q33))","v":""},null,null,"","","",null,{"$f":"IF(J33=\"\",\"\",INDEX(REFERENTES!$Y:$Z,MATCH(J33,REFERENTES!$Z:$Z,0),1))","v":""},"",null,null,29,"",{"$f":"IF(E33<>\"\",CONCATENATE($A$2,DIGITADOR!$B$2,DIGITADOR!$M$1,ROW()-4),\"\")","v":""},null,null,{"$f":"IF(S33=\"\",\"\",INDEX('OTRAS REFERENCIAS'!$L$5:$M$150,MATCH(S33,'OTRAS REFERENCIAS'!$L$5:$L$150,0),2))","v":""},null,null,null,{"$f":"IF(W33=\"\",\"\",VLOOKUP(W33,'OTRAS REFERENCIAS'!$A$7:$B$9,2,FALSE))","v":""},null,"",null,null,{"$f":"IF(AD33=\"\",\"\",INDEX(REFERENTES!$J:$K,MATCH(AD33,REFERENTES!$K:$K,0),2))","v":""},null,{"$f":"IF(AD33=\"\",\"\",INDEX(REFERENTES!$J:$L,MATCH(AD33,REFERENTES!$K:$K,0),1))","v":""},null,{"$f":"IF(AF33=\"\",\"\",INDEX(REFERENTES!$D:$E,MATCH(AF33,REFERENTES!$E:$E,0),1))","v":""}]
[null,null,1,{"$f":"IF(Q34=\"\",\"\",IF(COUNTIF($Q34:Q34, Q34)>1, \"\", Q34))","v":""},null,null,"","","",null,{"$f":"IF(J34=\"\",\"\",INDEX(REFERENTES!$Y:$Z,MATCH(J34,REFERENTES!$Z:$Z,0),1))","v":""},"",null,null,30,"",{"$f":"IF(E34<>\"\",CONCATENATE($A$2,DIGITADOR!$B$2,DIGITADOR!$M$1,ROW()-4),\"\")","v":""},null,null,{"$f":"IF(S34=\"\",\"\",INDEX('OTRAS REFERENCIAS'!$L$5:$M$150,MATCH(S34,'OTRAS REFERENCIAS'!$L$5:$L$150,0),2))","v":""},null,null,null,{"$f":"IF(W34=\"\",\"\",VLOOKUP(W34,'OTRAS REFERENCIAS'!$A$7:$B$9,2,FALSE))","v":""},null,"",null,null,{"$f":"IF(AD34=\"\",\"\",INDEX(REFERENTES!$J:$K,MATCH(AD34,REFERENTES!$K:$K,0),2))","v":""},null,{"$f":"IF(AD34=\"\",\"\",INDEX(REFERENTES!$J:$L,MATCH(AD34,REFERENTES!$K:$K,0),1))","v":""},null,{"$f":"IF(AF34=\"\",\"\",INDEX(REFERENTES!$D:$E,MATCH(AF34,REFERENTES!$E:$E,0),1))","v":""}]
[null,null,1,{"$f":"IF(Q35=\"\",\"\",IF(COUNTIF($Q35:Q35, Q35)>1, \"\", Q35))","v":""},null,null,"","","",null,{"$f":"IF(J35=\"\",\"\",INDEX(REFERENTES!$Y:$Z,MATCH(J35,REFERENTES!$Z:$Z,0),1))","v":""},"",null,null,31,"",{"$f":"IF(E35<>\"\",CONCATENATE($A$2,DIGITADOR!$B$2,DIGITADOR!$M$1,ROW()-4),\"\")","v":""},null,null,{"$f":"IF(S35=\"\",\"\",INDEX('OTRAS REFERENCIAS'!$L$5:$M$150,MATCH(S35,'OTRAS REFERENCIAS'!$L$5:$L$150,0),2))","v":""},null,null,null,{"$f":"IF(W35=\"\",\"\",VLOOKUP(W35,'OTRAS REFERENCIAS'!$A$7:$B$9,2,FALSE))","v":""},null,"",null,null,{"$f":"IF(AD35=\"\",\"\",INDEX(REFERENTES!$J:$K,MATCH(AD35,REFERENTES!$K:$K,0),2))","v":""},null,{"$f":"IF(AD35=\"\",\"\",INDEX(REFERENTES!$J:$L,MATCH(AD35,REFERENTES!$K:$K,0),1))","v":""},null,{"$f":"IF(AF35=\"\",\"\",INDEX(REFERENTES!$D:$E,MATCH(AF35,REFERENTES!$E:$E,0),1))","v":""}]
[null,null,1,{"$f":"IF(Q36=\"\",\"\",IF(COUNTIF($Q36:Q36, Q36)>1, \"\", Q36))","v":""},null,null,"","","",null,{"$f":"IF(J36=\"\",\"\",INDEX(REFERENTES!$Y:$Z,MATCH(J36,REFERENTES!$Z:$Z,0),1))","v":""},"",null,null,32,"",{"$f":"IF(E36<>\"\",CONCATENATE($A$2,DIGITADOR!$B$2,DIGITADOR!$M$1,ROW()-4),\"\")","v":""},null,null,{"$f":"IF(S36=\"\",\"\",INDEX('OTRAS REFERENCIAS'!$L$5:$M$150,MATCH(S36,'OTRAS REFERENCIAS'!$L$5:$L$150,0),2))","v":""},null,null,null,{"$f":"IF(W36=\"\",\"\",VLOOKUP(W36,'OTRAS REFERENCIAS'!$A$7:$B$9,2,FALSE))","v":""},null,"",null,null,{"$f":"IF(AD36=\"\",\"\",INDEX(REFERENTES!$J:$K,MATCH(AD36,REFERENTES!$K:$K,0),2))","v":""},null,{"$f":"IF(AD36=\"\",\"\",INDEX(REFERENTES!$J:$L,MATCH(AD36,REFERENTES!$K:$K,0),1))","v":""},null,{"$f":"IF(AF36=\"\",\"\",INDEX(REFERENTES!$D:$E,MATCH(AF36,REFERENTES!$E:$E,0),1))","v":""}]
[null,null,1,{"$f":"IF(Q37=\"\",\"\",IF(COUNTIF($Q37:Q37, Q37)>1, \"\", Q37))","v":""},null,null,"","","",null,{"$f":"IF(J37=\"\",\"\",INDEX(REFERENTES!$Y:$Z,MATCH(J37,REFERENTES!$Z:$Z,0),1))","v":""},{"$f":"IF(G37=\"\",\"\",CONCATENATE(G37,T37,K37,AB37))","v":""},null,null,33,"",{"$f":"IF(E37<>\"\",CONCATENATE($A$2,DIGITADOR!$B$2,DIGITADOR!$M$1,ROW()-4),\"\")","v":""},null,null,{"$f":"IF(S37=\"\",\"\",INDEX('OTRAS REFERENCIAS'!$L$5:$M$150,MATCH(S37,'OTRAS REFERENCIAS'!$L$5:$L$150,0),2))","v":""},null,null,null,{"$f":"IF(W37=\"\",\"\",VLOOKUP(W37,'OTRAS REFERENCIAS'!$A$7:$B$9,2,FALSE))","v":""},null,"",null,null,{"$f":"IF(AD37=\"\",\"\",INDEX(REFERENTES!$J:$K,MATCH(AD37,REFERENTES!$K:$K,0),2))","v":""},null,{"$f":"IF(AD37=\"\",\"\",INDEX(REFERENTES!$J:$L,MATCH(AD37,REFERENTES!$K:$K,0),1))","v":""},null,{"$f":"IF(AF37=\"\",\"\",INDEX(REFERENTES!$D:$E,MATCH(AF37,REFERENTES!$E:$E,0),1))","v":""}]
[null,null,1,{"$f":"IF(Q38=\"\",\"\",IF(COUNTIF($Q38:Q38, Q38)>1, \"\", Q38))","v":""},null,null,"","","",null,{"$f":"IF(J38=\"\",\"\",INDEX(REFERENTES!$Y:$Z,MATCH(J38,REFERENTES!$Z:$Z,0),1))","v":""},"",null,null,34,"",{"$f":"IF(E38<>\"\",CONCATENATE($A$2,DIGITADOR!$B$2,DIGITADOR!$M$1,ROW()-4),\"\")","v":""},null,null,{"$f":"IF(S38=\"\",\"\",INDEX('OTRAS REFERENCIAS'!$L$5:$M$150,MATCH(S38,'OTRAS REFERENCIAS'!$L$5:$L$150,0),2))","v":""},null,null,null,{"$f":"IF(W38=\"\",\"\",VLOOKUP(W38,'OTRAS REFERENCIAS'!$A$7:$B$9,2,FALSE))","v":""},null,"",null,null,{"$f":"IF(AD38=\"\",\"\",INDEX(REFERENTES!$J:$K,MATCH(AD38,REFERENTES!$K:$K,0),2))","v":""},null,{"$f":"IF(AD38=\"\",\"\",INDEX(REFERENTES!$J:$L,MATCH(AD38,REFERENTES!$K:$K,0),1))","v":""},null,{"$f":"IF(AF38=\"\",\"\",INDEX(REFERENTES!$D:$E,MATCH(AF38,REFERENTES!$E:$E,0),1))","v":""}]
[null,null,1,{"$f":"IF(Q39=\"\",\"\",IF(COUNTIF($Q39:Q39, Q39)>1, \"\", Q39))","v":""},null,null,"","","",null,{"$f":"IF(J39=\"\",\"\",INDEX(REFERENTES!$Y:$Z,MATCH(J39,REFERENTES!$Z:$Z,0),1))","v":""},"",null,null,35,"",{"$f":"IF(E39<>\"\",CONCATENATE($A$2,DIGITADOR!$B$2,DIGITADOR!$M$1,ROW()-4),\"\")","v":""},null,null,{"$f":"IF(S39=\"\",\"\",INDEX('OTRAS REFERENCIAS'!$L$5:$M$150,MATCH(S39,'OTRAS REFERENCIAS'!$L$5:$L$150,0),2))","v":""},null,null,null,{"$f":"IF(W39=\"\",\"\",VLOOKUP(W39,'OTRAS REFERENCIAS'!$A$7:$B$9,2,FALSE))","v":""},null,"",null,null,{"$f":"IF(AD39=\"\",\"\",INDEX(REFERENTES!$J:$K,MATCH(AD39,REFERENTES!$K:$K,0),2))","v":""},null,{"$f":"IF(AD39=\"\",\"\",INDEX(REFERENTES!$J:$L,MATCH(AD39,REFERENTES!$K:$K,0),1))","v":""},null,{"$f":"IF(AF39=\"\",\"\",INDEX(REFERENTES!$D:$E,MATCH(AF39,REFERENTES!$E:$E,0),1))","v":""}]
[null,null,1,{"$f":"IF(Q40=\"\",\"\",IF(COUNTIF($Q40:Q40, Q40)>1, \"\", Q40))","v":""},null,null,"","","",null,{"$f":"IF(J40=\"\",\"\",INDEX(REFERENTES!$Y:$Z,MATCH(J40,REFERENTES!$Z:$Z,0),1))","v":""},"",null,null,36,"",{"$f":"IF(E40<>\"\",CONCATENATE($A$2,DIGITADOR!$B$2,DIGITADOR!$M$1,ROW()-4),\"\")","v":""},null,null,{"$f":"IF(S40=\"\",\"\",INDEX('OTRAS REFERENCIAS'!$L$5:$M$150,MATCH(S40,'OTRAS REFERENCIAS'!$L$5:$L$150,0),2))","v":""},null,null,null,{"$f":"IF(W40=\"\",\"\",VLOOKUP(W40,'OTRAS REFERENCIAS'!$A$7:$B$9,2,FALSE))","v":""},null,"",null,null,{"$f":"IF(AD40=\"\",\"\",INDEX(REFERENTES!$J:$K,MATCH(AD40,REFERENTES!$K:$K,0),2))","v":""},null,{"$f":"IF(AD40=\"\",\"\",INDEX(REFERENTES!$J:$L,MATCH(AD40,REFERENTES!$K:$K,0),1))","v":""},null,{"$f":"IF(AF40=\"\",\"\",INDEX(REFERENTES!$D:$E,MATCH(AF40,REFERENTES!$E:$E,0),1))","v":""}]
[null,null,1,{"$f":"IF(Q41=\"\",\"\",IF(COUNTIF($Q41:Q41, Q41)>1, \"\", Q41))","v":""},null,null,"","","",null,{"$f":"IF(J41=\"\",\"\",INDEX(REFERENTES!$Y:$Z,MATCH(J41,REFERENTES!$Z:$Z,0),1))","v":""},"",null,null,37,"",{"$f":"IF(E41<>\"\",CONCATENATE($A$2,DIGITADOR!$B$2,DIGITADOR!$M$1,ROW()-4),\"\")","v":""},null,null,{"$f":"IF(S41=\"\",\"\",INDEX('OTRAS REFERENCIAS'!$L$5:$M$150,MATCH(S41,'OTRAS REFERENCIAS'!$L$5:$L$150,0),2))","v":""},null,null,null,{"$f":"IF(W41=\"\",\"\",VLOOKUP(W41,'OTRAS REFERENCIAS'!$A$7:$B$9,2,FALSE))","v":""},null,"",null,null,{"$f":"IF(AD41=\"\",\"\",INDEX(REFERENTES!$J:$K,MATCH(AD41,REFERENTES!$K:$K,0),2))","v":""},null,{"$f":"IF(AD41=\"\",\"\",INDEX(REFERENTES!$J:$L,MATCH(AD41,REFERENTES!$K:$K,0),1))","v":""},null,{"$f":"IF(AF41=\"\",\"\",INDEX(REFERENTES!$D:$E,MATCH(AF41,REFERENTES!$E:$E,0),1))","v":""}]
[null,null,1,{"$f":"IF(Q42=\"\",\"\",IF(COUNTIF($Q42:Q42, Q42)>1, \"\", Q42))","v":""},null,null,"","","",null,{"$f":"IF(J42=\"\",\"\",INDEX(REFERENTES!$Y:$Z,MATCH(J42,REFERENTES!$Z:$Z,0),1))","v":""},"",null,null,38,"",{"$f":"IF(E42<>\"\",CONCATENATE($A$2,DIGITADOR!$B$2,DIGITADOR!$M$1,ROW()-4),\"\")","v":""},null,null,{"$f":"IF(S42=\"\",\"\",INDEX('OTRAS REFERENCIAS'!$L$5:$M$150,MATCH(S42,'OTRAS REFERENCIAS'!$L$5:$L$150,0),2))","v":""},null,null,null,{"$f":"IF(W42=\"\",\"\",VLOOKUP(W42,'OTRAS REFERENCIAS'!$A$7:$B$9,2,FALSE))","v":""},null,"",null,null,{"$f":"IF(AD42=\"\",\"\",INDEX(REFERENTES!$J:$K,MATCH(AD42,REFERENTES!$K:$K,0),2))","v":""},null,{"$f":"IF(AD42=\"\",\"\",INDEX(REFERENTES!$J:$L,MATCH(AD42,REFERENTES!$K:$K,0),1))","v":""},null,{"$f":"IF(AF42=\"\",\"\",INDEX(REFERENTES!$D:$E,MATCH(AF42,REFERENTES!$E:$E,0),1))","v":""}]
[null,null,1,{"$f":"IF(Q43=\"\",\"\",IF(COUNTIF($Q43:Q43, Q43)>1, \"\", Q43))","v":""},null,null,"","","",null,{"$f":"IF(J43=\"\",\"\",INDEX(REFERENTES!$Y:$Z,MATCH(J43,REFERENTES!$Z:$Z,0),1))","v":""},"",null,null,38,"",{"$f":"IF(E43<>\"\",CONCATENATE($A$2,DIGITADOR!$B$2,DIGITADOR!$M$1,ROW()-4),\"\")","v":""},null,null,{"$f":"IF(S43=\"\",\"\",INDEX('OTRAS REFERENCIAS'!$L$5:$M$150,MATCH(S43,'OTRAS REFERENCIAS'!$L$5:$L$150,0),2))","v":""},null,null,null,{"$f":"IF(W43=\"\",\"\",VLOOKUP(W43,'OTRAS REFERENCIAS'!$A$7:$B$9,2,FALSE))","v":""},null,"",null,null,{"$f":"IF(AD43=\"\",\"\",INDEX(REFERENTES!$J:$K,MATCH(AD43,REFERENTES!$K:$K,0),2))","v":""},null,{"$f":"IF(AD43=\"\",\"\",INDEX(REFERENTES!$J:$L,MATCH(AD43,REFERENTES!$K:$K,0),1))","v":""},null,{"$f":"IF(AF43=\"\",\"\",INDEX(REFERENTES!$D:$E,MATCH(AF43,REFERENTES!$E:$E,0),1))","v":""}]
[null,null,1,{"$f":"IF(Q44=\"\",\"\",IF(COUNTIF($Q44:Q44, Q44)>1, \"\", Q44))","v":""},null,null,"","","",null,{"$f":"IF(J44=\"\",\"\",INDEX(REFERENTES!$Y:$Z,MATCH(J44,REFERENTES!$Z:$Z,0),1))","v":""},"",null,null,38,"",{"$f":"IF(E44<>\"\",CONCATENATE($A$2,DIGITADOR!$B$2,DIGITADOR!$M$1,ROW()-4),\"\")","v":""},null,null,{"$f":"IF(S44=\"\",\"\",INDEX('OTRAS REFERENCIAS'!$L$5:$M$150,MATCH(S44,'OTRAS REFERENCIAS'!$L$5:$L$150,0),2))","v":""},null,null,null,{"$f":"IF(W44=\"\",\"\",VLOOKUP(W44,'OTRAS REFERENCIAS'!$A$7:$B$9,2,FALSE))","v":""},null,"",null,null,{"$f":"IF(AD44=\"\",\"\",INDEX(REFERENTES!$J:$K,MATCH(AD44,REFERENTES!$K:$K,0),2))","v":""},null,{"$f":"IF(AD44=\"\",\"\",INDEX(REFERENTES!$J:$L,MATCH(AD44,REFERENTES!$K:$K,0),1))","v":""},null,{"$f":"IF(AF44=\"\",\"\",INDEX(REFERENTES!$D:$E,MATCH(AF44,REFERENTES!$E:$E,0),1))","v":""}]
[null,null,1,{"$f":"IF(Q45=\"\",\"\",IF(COUNTIF($Q45:Q45, Q45)>1, \"\", Q45))","v":""},null,null,"","","",null,{"$f":"IF(J45=\"\",\"\",INDEX(REFERENTES!$Y:$Z,MATCH(J45,REFERENTES!$Z:$Z,0),1))","v":""},"",null,null,41,"",{"$f":"IF(E45<>\"\",CONCATENATE($A$2,DIGITADOR!$B$2,DIGITADOR!$M$1,ROW()-4),\"\")","v":""},null,null,{"$f":"IF(S45=\"\",\"\",INDEX('OTRAS REFERENCIAS'!$L$5:$M$150,MATCH(S45,'OTRAS REFERENCIAS'!$L$5:$L$150,0),2))","v":""},null,null,null,{"$f":"IF(W45=\"\",\"\",VLOOKUP(W45,'OTRAS REFERENCIAS'!$A$7:$B$9,2,FALSE))","v":""},null,"",null,null,{"$f":"IF(AD45=\"\",\"\",INDEX(REFERENTES!$J:$K,MATCH(AD45,REFERENTES!$K:$K,0),2))","v":""},null,{"$f":"IF(AD45=\"\",\"\",INDEX(REFERENTES!$J:$L,MATCH(AD45,REFERENTES!$K:$K,0),1))","v":""},null,{"$f":"IF(AF45=\"\",\"\",INDEX(REFERENTES!$D:$E,MATCH(AF45,REFERENTES!$E:$E,0),1))","v":""}]
[null,null,1,{"$f":"IF(Q46=\"\",\"\",IF(COUNTIF($Q46:Q46, Q46)>1, \"\", Q46))","v":""},null,null,"","","",null,{"$f":"IF(J46=\"\",\"\",INDEX(REFERENTES!$Y:$Z,MATCH(J46,REFERENTES!$Z:$Z,0),1))","v":""},"",null,null,42,"",{"$f":"IF(E46<>\"\",CONCATENATE($A$2,DIGITADOR!$B$2,DIGITADOR!$M$1,ROW()-4),\"\")","v":""},null,null,{"$f":"IF(S46=\"\",\"\",INDEX('OTRAS REFERENCIAS'!$L$5:$M$150,MATCH(S46,'OTRAS REFERENCIAS'!$L$5:$L$150,0),2))","v":""},null,null,null,{"$f":"IF(W46=\"\",\"\",VLOOKUP(W46,'OTRAS REFERENCIAS'!$A$7:$B$9,2,FALSE))","v":""},null,"",null,null,{"$f":"IF(AD46=\"\",\"\",INDEX(REFERENTES!$J:$K,MATCH(AD46,REFERENTES!$K:$K,0),2))","v":""},null,{"$f":"IF(AD46=\"\",\"\",INDEX(REFERENTES!$J:$L,MATCH(AD46,REFERENTES!$K:$K,0),1))","v":""},null,{"$f":"IF(AF46=\"\",\"\",INDEX(REFERENTES!$D:$E,MATCH(AF46,REFERENTES!$E:$E,0),1))","v":""}]
[null,null,1,{"$f":"IF(Q47=\"\",\"\",IF(COUNTIF($Q47:Q47, Q47)>1, \"\", Q47))","v":""},null,null,"","","",null,{"$f":"IF(J47=\"\",\"\",INDEX(REFERENTES!$Y:$Z,MATCH(J47,REFERENTES!$Z:$Z,0),1))","v":""},"",null,null,43,"",{"$f":"IF(E47<>\"\",CONCATENATE($A$2,DIGITADOR!$B$2,DIGITADOR!$M$1,ROW()-4),\"\")","v":""},null,null,{"$f":"IF(S47=\"\",\"\",INDEX('OTRAS REFERENCIAS'!$L$5:$M$150,MATCH(S47,'OTRAS REFERENCIAS'!$L$5:$L$150,0),2))","v":""},null,null,null,{"$f":"IF(W47=\"\",\"\",VLOOKUP(W47,'OTRAS REFERENCIAS'!$A$7:$B$9,2,FALSE))","v":""},null,"",null,null,{"$f":"IF(AD47=\"\",\"\",INDEX(REFERENTES!$J:$K,MATCH(AD47,REFERENTES!$K:$K,0),2))","v":""},null,{"$f":"IF(AD47=\"\",\"\",INDEX(REFERENTES!$J:$L,MATCH(AD47,REFERENTES!$K:$K,0),1))","v":""},null,{"$f":"IF(AF47=\"\",\"\",INDEX(REFERENTES!$D:$E,MATCH(AF47,REFERENTES!$E:$E,0),1))","v":""}]
[null,null,1,{"$f":"IF(Q48=\"\",\"\",IF(COUNTIF($Q48:Q48, Q48)>1, \"\", Q48))","v":""},null,null,"","","",null,{"$f":"IF(J48=\"\",\"\",INDEX(REFERENTES!$Y:$Z,MATCH(J48,REFERENTES!$Z:$Z,0),1))","v":""},"",null,null,44,"",{"$f":"IF(E48<>\"\",CONCATENATE($A$2,DIGITADOR!$B$2,DIGITADOR!$M$1,ROW()-4),\"\")","v":""},null,null,{"$f":"IF(S48=\"\",\"\",INDEX('OTRAS REFERENCIAS'!$L$5:$M$150,MATCH(S48,'OTRAS REFERENCIAS'!$L$5:$L$150,0),2))","v":""},null,null,null,{"$f":"IF(W48=\"\",\"\",VLOOKUP(W48,'OTRAS REFERENCIAS'!$A$7:$B$9,2,FALSE))","v":""},null,"",null,null,{"$f":"IF(AD48=\"\",\"\",INDEX(REFERENTES!$J:$K,MATCH(AD48,REFERENTES!$K:$K,0),2))","v":""},null,{"$f":"IF(AD48=\"\",\"\",INDEX(REFERENTES!$J:$L,MATCH(AD48,REFERENTES!$K:$K,0),1))","v":""},null,{"$f":"IF(AF48=\"\",\"\",INDEX(REFERENTES!$D:$E,MATCH(AF48,REFERENTES!$E:$E,0),1))","v":""}]
[null,null,1,{"$f":"IF(Q49=\"\",\"\",IF(COUNTIF($Q49:Q49, Q49)>1, \"\", Q49))","v":""},null,null,"","","",null,{"$f":"IF(J49=\"\",\"\",INDEX(REFERENTES!$Y:$Z,MATCH(J49,REFERENTES!$Z:$Z,0),1))","v":""},"",null,null,45,"",{"$f":"IF(E49<>\"\",CONCATENATE($A$2,DIGITADOR!$B$2,DIGITADOR!$M$1,ROW()-4),\"\")","v":""},null,null,{"$f":"IF(S49=\"\",\"\",INDEX('OTRAS REFERENCIAS'!$L$5:$M$150,MATCH(S49,'OTRAS REFERENCIAS'!$L$5:$L$150,0),2))","v":""},null,null,null,{"$f":"IF(W49=\"\",\"\",VLOOKUP(W49,'OTRAS REFERENCIAS'!$A$7:$B$9,2,FALSE))","v":""},null,"",null,null,{"$f":"IF(AD49=\"\",\"\",INDEX(REFERENTES!$J:$K,MATCH(AD49,REFERENTES!$K:$K,0),2))","v":""},null,{"$f":"IF(AD49=\"\",\"\",INDEX(REFERENTES!$J:$L,MATCH(AD49,REFERENTES!$K:$K,0),1))","v":""},null,{"$f":"IF(AF49=\"\",\"\",INDEX(REFERENTES!$D:$E,MATCH(AF49,REFERENTES!$E:$E,0),1))","v":""}]
[null,null,1,{"$f":"IF(Q50=\"\",\"\",IF(COUNTIF($Q50:Q50, Q50)>1, \"\", Q50))","v":""},null,null,"","","",null,{"$f":"IF(J50=\"\",\"\",INDEX(REFERENTES!$Y:$Z,MATCH(J50,REFERENTES!$Z:$Z,0),1))","v":""},"",null,null,46,"",{"$f":"IF(E50<>\"\",CONCATENATE($A$2,DIGITADOR!$B$2,DIGITADOR!$M$1,ROW()-4),\"\")","v":""},null,null,{"$f":"IF(S50=\"\",\"\",INDEX('OTRAS REFERENCIAS'!$L$5:$M$150,MATCH(S50,'OTRAS REFERENCIAS'!$L$5:$L$150,0),2))","v":""},null,null,null,{"$f":"IF(W50=\"\",\"\",VLOOKUP(W50,'OTRAS REFERENCIAS'!$A$7:$B$9,2,FALSE))","v":""},null,"",null,null,{"$f":"IF(AD50=\"\",\"\",INDEX(REFERENTES!$J:$K,MATCH(AD50,REFERENTES!$K:$K,0),2))","v":""},null,{"$f":"IF(AD50=\"\",\"\",INDEX(REFERENTES!$J:$L,MATCH(AD50,REFERENTES!$K:$K,0),1))","v":""},null,{"$f":"IF(AF50=\"\",\"\",INDEX(REFERENTES!$D:$E,MATCH(AF50,REFERENTES!$E:$E,0),1))","v":""}]
[null,null,1,{"$f":"IF(Q51=\"\",\"\",IF(COUNTIF($Q51:Q51, Q51)>1, \"\", Q51))","v":""},null,null,"","","",null,{"$f":"IF(J51=\"\",\"\",INDEX(REFERENTES!$Y:$Z,MATCH(J51,REFERENTES!$Z:$Z,0),1))","v":""},"",null,null,47,"",{"$f":"IF(E51<>\"\",CONCATENATE($A$2,DIGITADOR!$B$2,DIGITADOR!$M$1,ROW()-4),\"\")","v":""},null,null,{"$f":"IF(S51=\"\",\"\",INDEX('OTRAS REFERENCIAS'!$L$5:$M$150,MATCH(S51,'OTRAS REFERENCIAS'!$L$5:$L$150,0),2))","v":""},null,null,null,{"$f":"IF(W51=\"\",\"\",VLOOKUP(W51,'OTRAS REFERENCIAS'!$A$7:$B$9,2,FALSE))","v":""},null,"",null,null,{"$f":"IF(AD51=\"\",\"\",INDEX(REFERENTES!$J:$K,MATCH(AD51,REFERENTES!$K:$K,0),2))","v":""},null,{"$f":"IF(AD51=\"\",\"\",INDEX(REFERENTES!$J:$L,MATCH(AD51,REFERENTES!$K:$K,0),1))","v":""},null,{"$f":"IF(AF51=\"\",\"\",INDEX(REFERENTES!$D:$E,MATCH(AF51,REFERENTES!$E:$E,0),1))","v":""}]
[null,null,1,{"$f":"IF(Q52=\"\",\"\",IF(COUNTIF($Q52:Q52, Q52)>1, \"\", Q52))","v":""},null,null,"","","",null,{"$f":"IF(J52=\"\",\"\",INDEX(REFERENTES!$Y:$Z,MATCH(J52,REFERENTES!$Z:$Z,0),1))","v":""},"",null,null,48,"",{"$f":"IF(E52<>\"\",CONCATENATE($A$2,DIGITADOR!$B$2,DIGITADOR!$M$1,ROW()-4),\"\")","v":""},null,null,{"$f":"IF(S52=\"\",\"\",INDEX('OTRAS REFERENCIAS'!$L$5:$M$150,MATCH(S52,'OTRAS REFERENCIAS'!$L$5:$L$150,0),2))","v":""},null,null,null,{"$f":"IF(W52=\"\",\"\",VLOOKUP(W52,'OTRAS REFERENCIAS'!$A$7:$B$9,2,FALSE))","v":""},null,"",null,null,{"$f":"IF(AD52=\"\",\"\",INDEX(REFERENTES!$J:$K,MATCH(AD52,REFERENTES!$K:$K,0),2))","v":""},null,{"$f":"IF(AD52=\"\",\"\",INDEX(REFERENTES!$J:$L,MATCH(AD52,REFERENTES!$K:$K,0),1))","v":""},null,{"$f":"IF(AF52=\"\",\"\",INDEX(REFERENTES!$D:$E,MATCH(AF52,REFERENTES!$E:$E,0),1))","v":""}]
[null,null,1,{"$f":"IF(Q53=\"\",\"\",IF(COUNTIF($Q53:Q53, Q53)>1, \"\", Q53))","v":""},null,null,"","","",null,{"$f":"IF(J53=\"\",\"\",INDEX(REFERENTES!$Y:$Z,MATCH(J53,REFERENTES!$Z:$Z,0),1))","v":""},"",null,null,49,"",{"$f":"IF(E53<>\"\",CONCATENATE($A$2,DIGITADOR!$B$2,DIGITADOR!$M$1,ROW()-4),\"\")","v":""},null,null,{"$f":"IF(S53=\"\",\"\",INDEX('OTRAS REFERENCIAS'!$L$5:$M$150,MATCH(S53,'OTRAS REFERENCIAS'!$L$5:$L$150,0),2))","v":""},null,null,null,{"$f":"IF(W53=\"\",\"\",VLOOKUP(W53,'OTRAS REFERENCIAS'!$A$7:$B$9,2,FALSE))","v":""},null,"",null,null,{"$f":"IF(AD53=\"\",\"\",INDEX(REFERENTES!$J:$K,MATCH(AD53,REFERENTES!$K:$K,0),2))","v":""},null,{"$f":"IF(AD53=\"\",\"\",INDEX(REFERENTES!$J:$L,MATCH(AD53,REFERENTES!$K:$K,0),1))","v":""},null,{"$f":"IF(AF53=\"\",\"\",INDEX(REFERENTES!$D:$E,MATCH(AF53,REFERENTES!$E:$E,0),1))","v":""}]
[null,null,1,{"$f":"IF(Q54=\"\",\"\",IF(COUNTIF($Q54:Q54, Q54)>1, \"\", Q54))","v":""},null,null,"","","",null,{"$f":"IF(J54=\"\",\"\",INDEX(REFERENTES!$Y:$Z,MATCH(J54,REFERENTES!$Z:$Z,0),1))","v":""},"",null,null,50,"",{"$f":"IF(E54<>\"\",CONCATENATE($A$2,DIGITADOR!$B$2,DIGITADOR!$M$1,ROW()-4),\"\")","v":""},null,null,{"$f":"IF(S54=\"\",\"\",INDEX('OTRAS REFERENCIAS'!$L$5:$M$150,MATCH(S54,'OTRAS REFERENCIAS'!$L$5:$L$150,0),2))","v":""},null,null,null,{"$f":"IF(W54=\"\",\"\",VLOOKUP(W54,'OTRAS REFERENCIAS'!$A$7:$B$9,2,FALSE))","v":""},null,"",null,null,{"$f":"IF(AD54=\"\",\"\",INDEX(REFERENTES!$J:$K,MATCH(AD54,REFERENTES!$K:$K,0),2))","v":""},null,{"$f":"IF(AD54=\"\",\"\",INDEX(REFERENTES!$J:$L,MATCH(AD54,REFERENTES!$K:$K,0),1))","v":""},null,{"$f":"IF(AF54=\"\",\"\",INDEX(REFERENTES!$D:$E,MATCH(AF54,REFERENTES!$E:$E,0),1))","v":""}]
[null,null,1,{"$f":"IF(Q55=\"\",\"\",IF(COUNTIF($Q55:Q55, Q55)>1, \"\", Q55))","v":""},null,null,"","","",null,{"$f":"IF(J55=\"\",\"\",INDEX(REFERENTES!$Y:$Z,MATCH(J55,REFERENTES!$Z:$Z,0),1))","v":""},"",null,null,51,"",{"$f":"IF(E55<>\"\",CONCATENATE($A$2,DIGITADOR!$B$2,DIGITADOR!$M$1,ROW()-4),\"\")","v":""},null,null,{"$f":"IF(S55=\"\",\"\",INDEX('OTRAS REFERENCIAS'!$L$5:$M$150,MATCH(S55,'OTRAS REFERENCIAS'!$L$5:$L$150,0),2))","v":""},null,null,null,{"$f":"IF(W55=\"\",\"\",VLOOKUP(W55,'OTRAS REFERENCIAS'!$A$7:$B$9,2,FALSE))","v":""},null,"",null,null,{"$f":"IF(AD55=\"\",\"\",INDEX(REFERENTES!$J:$K,MATCH(AD55,REFERENTES!$K:$K,0),2))","v":""},null,{"$f":"IF(AD55=\"\",\"\",INDEX(REFERENTES!$J:$L,MATCH(AD55,REFERENTES!$K:$K,0),1))","v":""},null,{"$f":"IF(AF55=\"\",\"\",INDEX(REFERENTES!$D:$E,MATCH(AF55,REFERENTES!$E:$E,0),1))","v":""}]
[null,null,1,{"$f":"IF(Q56=\"\",\"\",IF(COUNTIF($Q56:Q56, Q56)>1, \"\", Q56))","v":""},null,null,"","","",null,{"$f":"IF(J56=\"\",\"\",INDEX(REFERENTES!$Y:$Z,MATCH(J56,REFERENTES!$Z:$Z,0),1))","v":""},"",null,null,52,"",{"$f":"IF(E56<>\"\",CONCATENATE($A$2,DIGITADOR!$B$2,DIGITADOR!$M$1,ROW()-4),\"\")","v":""},null,null,{"$f":"IF(S56=\"\",\"\",INDEX('OTRAS REFERENCIAS'!$L$5:$M$150,MATCH(S56,'OTRAS REFERENCIAS'!$L$5:$L$150,0),2))","v":""},null,null,null,{"$f":"IF(W56=\"\",\"\",VLOOKUP(W56,'OTRAS REFERENCIAS'!$A$7:$B$9,2,FALSE))","v":""},null,"",null,null,{"$f":"IF(AD56=\"\",\"\",INDEX(REFERENTES!$J:$K,MATCH(AD56,REFERENTES!$K:$K,0),2))","v":""},null,{"$f":"IF(AD56=\"\",\"\",INDEX(REFERENTES!$J:$L,MATCH(AD56,REFERENTES!$K:$K,0),1))","v":""},null,{"$f":"IF(AF56=\"\",\"\",INDEX(REFERENTES!$D:$E,MATCH(AF56,REFERENTES!$E:$E,0),1))","v":""}]
[null,null,1,{"$f":"IF(Q57=\"\",\"\",IF(COUNTIF($Q57:Q57, Q57)>1, \"\", Q57))","v":""},null,null,"","","",null,{"$f":"IF(J57=\"\",\"\",INDEX(REFERENTES!$Y:$Z,MATCH(J57,REFERENTES!$Z:$Z,0),1))","v":""},"",null,null,53,"",{"$f":"IF(E57<>\"\",CONCATENATE($A$2,DIGITADOR!$B$2,DIGITADOR!$M$1,ROW()-4),\"\")","v":""},null,null,{"$f":"IF(S57=\"\",\"\",INDEX('OTRAS REFERENCIAS'!$L$5:$M$150,MATCH(S57,'OTRAS REFERENCIAS'!$L$5:$L$150,0),2))","v":""},null,null,null,{"$f":"IF(W57=\"\",\"\",VLOOKUP(W57,'OTRAS REFERENCIAS'!$A$7:$B$9,2,FALSE))","v":""},null,"",null,null,{"$f":"IF(AD57=\"\",\"\",INDEX(REFERENTES!$J:$K,MATCH(AD57,REFERENTES!$K:$K,0),2))","v":""},null,{"$f":"IF(AD57=\"\",\"\",INDEX(REFERENTES!$J:$L,MATCH(AD57,REFERENTES!$K:$K,0),1))","v":""},null,{"$f":"IF(AF57=\"\",\"\",INDEX(REFERENTES!$D:$E,MATCH(AF57,REFERENTES!$E:$E,0),1))","v":""}]
[null,null,1,{"$f":"IF(Q58=\"\",\"\",IF(COUNTIF($Q58:Q58, Q58)>1, \"\", Q58))","v":""},null,null,"","","",null,{"$f":"IF(J58=\"\",\"\",INDEX(REFERENTES!$Y:$Z,MATCH(J58,REFERENTES!$Z:$Z,0),1))","v":""},"",null,null,54,"",{"$f":"IF(E58<>\"\",CONCATENATE($A$2,DIGITADOR!$B$2,DIGITADOR!$M$1,ROW()-4),\"\")","v":""},null,null,{"$f":"IF(S58=\"\",\"\",INDEX('OTRAS REFERENCIAS'!$L$5:$M$150,MATCH(S58,'OTRAS REFERENCIAS'!$L$5:$L$150,0),2))","v":""},null,null,null,{"$f":"IF(W58=\"\",\"\",VLOOKUP(W58,'OTRAS REFERENCIAS'!$A$7:$B$9,2,FALSE))","v":""},null,"",null,null,{"$f":"IF(AD58=\"\",\"\",INDEX(REFERENTES!$J:$K,MATCH(AD58,REFERENTES!$K:$K,0),2))","v":""},null,{"$f":"IF(AD58=\"\",\"\",INDEX(REFERENTES!$J:$L,MATCH(AD58,REFERENTES!$K:$K,0),1))","v":""},null,{"$f":"IF(AF58=\"\",\"\",INDEX(REFERENTES!$D:$E,MATCH(AF58,REFERENTES!$E:$E,0),1))","v":""}]
[null,null,1,{"$f":"IF(Q59=\"\",\"\",IF(COUNTIF($Q59:Q59, Q59)>1, \"\", Q59))","v":""},null,null,"","","",null,{"$f":"IF(J59=\"\",\"\",INDEX(REFERENTES!$Y:$Z,MATCH(J59,REFERENTES!$Z:$Z,0),1))","v":""},"",null,null,55,"",{"$f":"IF(E59<>\"\",CONCATENATE($A$2,DIGITADOR!$B$2,DIGITADOR!$M$1,ROW()-4),\"\")","v":""},null,null,{"$f":"IF(S59=\"\",\"\",INDEX('OTRAS REFERENCIAS'!$L$5:$M$150,MATCH(S59,'OTRAS REFERENCIAS'!$L$5:$L$150,0),2))","v":""},null,null,null,{"$f":"IF(W59=\"\",\"\",VLOOKUP(W59,'OTRAS REFERENCIAS'!$A$7:$B$9,2,FALSE))","v":""},null,"",null,null,{"$f":"IF(AD59=\"\",\"\",INDEX(REFERENTES!$J:$K,MATCH(AD59,REFERENTES!$K:$K,0),2))","v":""},null,{"$f":"IF(AD59=\"\",\"\",INDEX(REFERENTES!$J:$L,MATCH(AD59,REFERENTES!$K:$K,0),1))","v":""},null,{"$f":"IF(AF59=\"\",\"\",INDEX(REFERENTES!$D:$E,MATCH(AF59,REFERENTES!$E:$E,0),1))","v":""}]
[null,null,1,{"$f":"IF(Q60=\"\",\"\",IF(COUNTIF($Q60:Q60, Q60)>1, \"\", Q60))","v":""},null,null,"","","",null,{"$f":"IF(J60=\"\",\"\",INDEX(REFERENTES!$Y:$Z,MATCH(J60,REFERENTES!$Z:$Z,0),1))","v":""},"",null,null,56,"",{"$f":"IF(E60<>\"\",CONCATENATE($A$2,DIGITADOR!$B$2,DIGITADOR!$M$1,ROW()-4),\"\")","v":""},null,null,{"$f":"IF(S60=\"\",\"\",INDEX('OTRAS REFERENCIAS'!$L$5:$M$150,MATCH(S60,'OTRAS REFERENCIAS'!$L$5:$L$150,0),2))","v":""},null,null,null,{"$f":"IF(W60=\"\",\"\",VLOOKUP(W60,'OTRAS REFERENCIAS'!$A$7:$B$9,2,FALSE))","v":""},null,"",null,null,{"$f":"IF(AD60=\"\",\"\",INDEX(REFERENTES!$J:$K,MATCH(AD60,REFERENTES!$K:$K,0),2))","v":""},null,{"$f":"IF(AD60=\"\",\"\",INDEX(REFERENTES!$J:$L,MATCH(AD60,REFERENTES!$K:$K,0),1))","v":""},null,{"$f":"IF(AF60=\"\",\"\",INDEX(REFERENTES!$D:$E,MATCH(AF60,REFERENTES!$E:$E,0),1))","v":""}]
[null,null,1,{"$f":"IF(Q61=\"\",\"\",IF(COUNTIF($Q61:Q61, Q61)>1, \"\", Q61))","v":""},null,null,"","","",null,{"$f":"IF(J61=\"\",\"\",INDEX(REFERENTES!$Y:$Z,MATCH(J61,REFERENTES!$Z:$Z,0),1))","v":""},"",null,null,57,"",{"$f":"IF(E61<>\"\",CONCATENATE($A$2,DIGITADOR!$B$2,DIGITADOR!$M$1,ROW()-4),\"\")","v":""},null,null,{"$f":"IF(S61=\"\",\"\",INDEX('OTRAS REFERENCIAS'!$L$5:$M$150,MATCH(S61,'OTRAS REFERENCIAS'!$L$5:$L$150,0),2))","v":""},null,null,null,{"$f":"IF(W61=\"\",\"\",VLOOKUP(W61,'OTRAS REFERENCIAS'!$A$7:$B$9,2,FALSE))","v":""},null,"",null,null,{"$f":"IF(AD61=\"\",\"\",INDEX(REFERENTES!$J:$K,MATCH(AD61,REFERENTES!$K:$K,0),2))","v":""},null,{"$f":"IF(AD61=\"\",\"\",INDEX(REFERENTES!$J:$L,MATCH(AD61,REFERENTES!$K:$K,0),1))","v":""},null,{"$f":"IF(AF61=\"\",\"\",INDEX(REFERENTES!$D:$E,MATCH(AF61,REFERENTES!$E:$E,0),1))","v":""}]
[null,null,1,{"$f":"IF(Q62=\"\",\"\",IF(COUNTIF($Q62:Q62, Q62)>1, \"\", Q62))","v":""},null,null,"","","",null,{"$f":"IF(J62=\"\",\"\",INDEX(REFERENTES!$Y:$Z,MATCH(J62,REFERENTES!$Z:$Z,0),1))","v":""},"",null,null,58,"",{"$f":"IF(E62<>\"\",CONCATENATE($A$2,DIGITADOR!$B$2,DIGITADOR!$M$1,ROW()-4),\"\")","v":""},null,null,{"$f":"IF(S62=\"\",\"\",INDEX('OTRAS REFERENCIAS'!$L$5:$M$150,MATCH(S62,'OTRAS REFERENCIAS'!$L$5:$L$150,0),2))","v":""},null,null,null,{"$f":"IF(W62=\"\",\"\",VLOOKUP(W62,'OTRAS REFERENCIAS'!$A$7:$B$9,2,FALSE))","v":""},null,"",null,null,{"$f":"IF(AD62=\"\",\"\",INDEX(REFERENTES!$J:$K,MATCH(AD62,REFERENTES!$K:$K,0),2))","v":""},null,{"$f":"IF(AD62=\"\",\"\",INDEX(REFERENTES!$J:$L,MATCH(AD62,REFERENTES!$K:$K,0),1))","v":""},null,{"$f":"IF(AF62=\"\",\"\",INDEX(REFERENTES!$D:$E,MATCH(AF62,REFERENTES!$E:$E,0),1))","v":""}]
[null,null,1,{"$f":"IF(Q63=\"\",\"\",IF(COUNTIF($Q63:Q63, Q63)>1, \"\", Q63))","v":""},null,null,"","","",null,{"$f":"IF(J63=\"\",\"\",INDEX(REFERENTES!$Y:$Z,MATCH(J63,REFERENTES!$Z:$Z,0),1))","v":""},"",null,null,59,"",{"$f":"IF(E63<>\"\",CONCATENATE($A$2,DIGITADOR!$B$2,DIGITADOR!$M$1,ROW()-4),\"\")","v":""},null,null,{"$f":"IF(S63=\"\",\"\",INDEX('OTRAS REFERENCIAS'!$L$5:$M$150,MATCH(S63,'OTRAS REFERENCIAS'!$L$5:$L$150,0),2))","v":""},null,null,null,{"$f":"IF(W63=\"\",\"\",VLOOKUP(W63,'OTRAS REFERENCIAS'!$A$7:$B$9,2,FALSE))","v":""},null,"",null,null,{"$f":"IF(AD63=\"\",\"\",INDEX(REFERENTES!$J:$K,MATCH(AD63,REFERENTES!$K:$K,0),2))","v":""},null,{"$f":"IF(AD63=\"\",\"\",INDEX(REFERENTES!$J:$L,MATCH(AD63,REFERENTES!$K:$K,0),1))","v":""},null,{"$f":"IF(AF63=\"\",\"\",INDEX(REFERENTES!$D:$E,MATCH(AF63,REFERENTES!$E:$E,0),1))","v":""}]
[null,null,1,{"$f":"IF(Q64=\"\",\"\",IF(COUNTIF($Q64:Q64, Q64)>1, \"\", Q64))","v":""},null,null,"","","",null,{"$f":"IF(J64=\"\",\"\",INDEX(REFERENTES!$Y:$Z,MATCH(J64,REFERENTES!$Z:$Z,0),1))","v":""},"",null,null,60,"",{"$f":"IF(E64<>\"\",CONCATENATE($A$2,DIGITADOR!$B$2,DIGITADOR!$M$1,ROW()-4),\"\")","v":""},null,null,{"$f":"IF(S64=\"\",\"\",INDEX('OTRAS REFERENCIAS'!$L$5:$M$150,MATCH(S64,'OTRAS REFERENCIAS'!$L$5:$L$150,0),2))","v":""},null,null,null,{"$f":"IF(W64=\"\",\"\",VLOOKUP(W64,'OTRAS REFERENCIAS'!$A$7:$B$9,2,FALSE))","v":""},null,"",null,null,{"$f":"IF(AD64=\"\",\"\",INDEX(REFERENTES!$J:$K,MATCH(AD64,REFERENTES!$K:$K,0),2))","v":""},null,{"$f":"IF(AD64=\"\",\"\",INDEX(REFERENTES!$J:$L,MATCH(AD64,REFERENTES!$K:$K,0),1))","v":""},null,{"$f":"IF(AF64=\"\",\"\",INDEX(REFERENTES!$D:$E,MATCH(AF64,REFERENTES!$E:$E,0),1))","v":""}]
[null,null,1,{"$f":"IF(Q65=\"\",\"\",IF(COUNTIF($Q65:Q65, Q65)>1, \"\", Q65))","v":""},null,null,"","","",null,{"$f":"IF(J65=\"\",\"\",INDEX(REFERENTES!$Y:$Z,MATCH(J65,REFERENTES!$Z:$Z,0),1))","v":""},"",null,null,61,"",{"$f":"IF(E65<>\"\",CONCATENATE($A$2,DIGITADOR!$B$2,DIGITADOR!$M$1,ROW()-4),\"\")","v":""},null,null,{"$f":"IF(S65=\"\",\"\",INDEX('OTRAS REFERENCIAS'!$L$5:$M$150,MATCH(S65,'OTRAS REFERENCIAS'!$L$5:$L$150,0),2))","v":""},null,null,null,{"$f":"IF(W65=\"\",\"\",VLOOKUP(W65,'OTRAS REFERENCIAS'!$A$7:$B$9,2,FALSE))","v":""},null,"",null,null,{"$f":"IF(AD65=\"\",\"\",INDEX(REFERENTES!$J:$K,MATCH(AD65,REFERENTES!$K:$K,0),2))","v":""},null,{"$f":"IF(AD65=\"\",\"\",INDEX(REFERENTES!$J:$L,MATCH(AD65,REFERENTES!$K:$K,0),1))","v":""},null,{"$f":"IF(AF65=\"\",\"\",INDEX(REFERENTES!$D:$E,MATCH(AF65,REFERENTES!$E:$E,0),1))","v":""}]
[null,null,1,{"$f":"IF(Q66=\"\",\"\",IF(COUNTIF($Q66:Q66, Q66)>1, \"\", Q66))","v":""},null,null,"","","",null,{"$f":"IF(J66=\"\",\"\",INDEX(REFERENTES!$Y:$Z,MATCH(J66,REFERENTES!$Z:$Z,0),1))","v":""},"",null,null,62,"",{"$f":"IF(E66<>\"\",CONCATENATE($A$2,DIGITADOR!$B$2,DIGITADOR!$M$1,ROW()-4),\"\")","v":""},null,null,{"$f":"IF(S66=\"\",\"\",INDEX('OTRAS REFERENCIAS'!$L$5:$M$150,MATCH(S66,'OTRAS REFERENCIAS'!$L$5:$L$150,0),2))","v":""},null,null,null,{"$f":"IF(W66=\"\",\"\",VLOOKUP(W66,'OTRAS REFERENCIAS'!$A$7:$B$9,2,FALSE))","v":""},null,"",null,null,{"$f":"IF(AD66=\"\",\"\",INDEX(REFERENTES!$J:$K,MATCH(AD66,REFERENTES!$K:$K,0),2))","v":""},null,{"$f":"IF(AD66=\"\",\"\",INDEX(REFERENTES!$J:$L,MATCH(AD66,REFERENTES!$K:$K,0),1))","v":""},null,{"$f":"IF(AF66=\"\",\"\",INDEX(REFERENTES!$D:$E,MATCH(AF66,REFERENTES!$E:$E,0),1))","v":""}]
[null,null,1,{"$f":"IF(Q67=\"\",\"\",IF(COUNTIF($Q67:Q67, Q67)>1, \"\", Q67))","v":""},null,null,"","","",null,{"$f":"IF(J67=\"\",\"\",INDEX(REFERENTES!$Y:$Z,MATCH(J67,REFERENTES!$Z:$Z,0),1))","v":""},"",null,null,63,"",{"$f":"IF(E67<>\"\",CONCATENATE($A$2,DIGITADOR!$B$2,DIGITADOR!$M$1,ROW()-4),\"\")","v":""},null,null,{"$f":"IF(S67=\"\",\"\",INDEX('OTRAS REFERENCIAS'!$L$5:$M$150,MATCH(S67,'OTRAS REFERENCIAS'!$L$5:$L$150,0),2))","v":""},null,null,null,{"$f":"IF(W67=\"\",\"\",VLOOKUP(W67,'OTRAS REFERENCIAS'!$A$7:$B$9,2,FALSE))","v":""},null,"",null,null,{"$f":"IF(AD67=\"\",\"\",INDEX(REFERENTES!$J:$K,MATCH(AD67,REFERENTES!$K:$K,0),2))","v":""},null,{"$f":"IF(AD67=\"\",\"\",INDEX(REFERENTES!$J:$L,MATCH(AD67,REFERENTES!$K:$K,0),1))","v":""},null,{"$f":"IF(AF67=\"\",\"\",INDEX(REFERENTES!$D:$E,MATCH(AF67,REFERENTES!$E:$E,0),1))","v":""}]
[null,null,1,{"$f":"IF(Q68=\"\",\"\",IF(COUNTIF($Q68:Q68, Q68)>1, \"\", Q68))","v":""},null,null,"","","",null,{"$f":"IF(J68=\"\",\"\",INDEX(REFERENTES!$Y:$Z,MATCH(J68,REFERENTES!$Z:$Z,0),1))","v":""},"",null,null,64,"",{"$f":"IF(E68<>\"\",CONCATENATE($A$2,DIGITADOR!$B$2,DIGITADOR!$M$1,ROW()-4),\"\")","v":""},null,null,{"$f":"IF(S68=\"\",\"\",INDEX('OTRAS REFERENCIAS'!$L$5:$M$150,MATCH(S68,'OTRAS REFERENCIAS'!$L$5:$L$150,0),2))","v":""},null,null,null,{"$f":"IF(W68=\"\",\"\",VLOOKUP(W68,'OTRAS REFERENCIAS'!$A$7:$B$9,2,FALSE))","v":""},null,"",null,null,{"$f":"IF(AD68=\"\",\"\",INDEX(REFERENTES!$J:$K,MATCH(AD68,REFERENTES!$K:$K,0),2))","v":""},null,{"$f":"IF(AD68=\"\",\"\",INDEX(REFERENTES!$J:$L,MATCH(AD68,REFERENTES!$K:$K,0),1))","v":""},null,{"$f":"IF(AF68=\"\",\"\",INDEX(REFERENTES!$D:$E,MATCH(AF68,REFERENTES!$E:$E,0),1))","v":""}]
[null,null,{"$f":"IF(L69=L68,C68,C68+1)","v":1},{"$f":"IF(Q69=\"\",\"\",IF(COUNTIF($Q69:Q69, Q69)>1, \"\", Q69))","v":""},null,null,"",{"$f":"IF(G69<>\"\",MONTH(G69),\"\")","v":""},"",null,{"$f":"IF(J69=\"\",\"\",INDEX(REFERENTES!$Y:$Z,MATCH(J69,REFERENTES!$Z:$Z,0),1))","v":""},{"$f":"IF(G69=\"\",\"\",CONCATENATE(G69,T69,K69,AB69))","v":""},null,null,65,"",{"$f":"IF(E69<>\"\",CONCATENATE($A$2,DIGITADOR!$B$2,DIGITADOR!$M$1,ROW()-4),\"\")","v":""},null,null,{"$f":"IF(S69=\"\",\"\",INDEX('OTRAS REFERENCIAS'!$L$5:$M$150,MATCH(S69,'OTRAS REFERENCIAS'!$L$5:$L$150,0),2))","v":""},null,null,null,{"$f":"IF(W69=\"\",\"\",VLOOKUP(W69,'OTRAS REFERENCIAS'!$A$7:$B$9,2,FALSE))","v":""},null,"",null,null,{"$f":"IF(AD69=\"\",\"\",INDEX(REFERENTES!$J:$K,MATCH(AD69,REFERENTES!$K:$K,0),2))","v":""},null,{"$f":"IF(AD69=\"\",\"\",INDEX(REFERENTES!$J:$L,MATCH(AD69,REFERENTES!$K:$K,0),1))","v":""},null,{"$f":"IF(AF69=\"\",\"\",INDEX(REFERENTES!$D:$E,MATCH(AF69,REFERENTES!$E:$E,0),1))","v":""}]
[null,null,1,{"$f":"IF(Q70=\"\",\"\",IF(COUNTIF($Q70:Q70, Q70)>1, \"\", Q70))","v":""},null,null,{"$f":"IF(E70=\"\",\"\",E70+F70)","v":""},"",{"$f":"IF(D70=\"\",\"\",1)","v":""},null,{"$f":"IF(J70=\"\",\"\",INDEX(REFERENTES!$Y:$Z,MATCH(J70,REFERENTES!$Z:$Z,0),1))","v":""},"",null,null,66,{"$f":"IF(Q70=\"\",\"\",CONCATENATE(Q70,ROW()-2))","v":""},{"$f":"IF(E70<>\"\",CONCATENATE($A$2,DIGITADOR!$B$2,DIGITADOR!$M$1,ROW()-4),\"\")","v":""},null,null,{"$f":"IF(S70=\"\",\"\",INDEX('OTRAS REFERENCIAS'!$L$5:$M$150,MATCH(S70,'OTRAS REFERENCIAS'!$L$5:$L$150,0),2))","v":""},null,null,null,{"$f":"IF(W70=\"\",\"\",VLOOKUP(W70,'OTRAS REFERENCIAS'!$A$7:$B$9,2,FALSE))","v":""},null,{"$f":"CONCATENATE(X70,Y70)","v":""},null,null,{"$f":"IF(AD70=\"\",\"\",INDEX(REFERENTES!$J:$K,MATCH(AD70,REFERENTES!$K:$K,0),2))","v":""},null,{"$f":"IF(AD70=\"\",\"\",INDEX(REFERENTES!$J:$L,MATCH(AD70,REFERENTES!$K:$K,0),1))","v":""},null,{"$f":"IF(AF70=\"\",\"\",INDEX(REFERENTES!$D:$E,MATCH(AF70,REFERENTES!$E:$E,0),1))","v":""}]
[null,null,1,{"$f":"IF(Q71=\"\",\"\",IF(COUNTIF($Q71:Q71, Q71)>1, \"\", Q71))","v":""},null,null,"","","",null,{"$f":"IF(J71=\"\",\"\",INDEX(REFERENTES!$Y:$Z,MATCH(J71,REFERENTES!$Z:$Z,0),1))","v":""},"",null,null,67,"",{"$f":"IF(E71<>\"\",CONCATENATE($A$2,DIGITADOR!$B$2,DIGITADOR!$M$1,ROW()-4),\"\")","v":""},null,null,{"$f":"IF(S71=\"\",\"\",INDEX('OTRAS REFERENCIAS'!$L$5:$M$150,MATCH(S71,'OTRAS REFERENCIAS'!$L$5:$L$150,0),2))","v":""},null,null,null,{"$f":"IF(W71=\"\",\"\",VLOOKUP(W71,'OTRAS REFERENCIAS'!$A$7:$B$9,2,FALSE))","v":""},null,"",null,null,{"$f":"IF(AD71=\"\",\"\",INDEX(REFERENTES!$J:$K,MATCH(AD71,REFERENTES!$K:$K,0),2))","v":""},null,{"$f":"IF(AD71=\"\",\"\",INDEX(REFERENTES!$J:$L,MATCH(AD71,REFERENTES!$K:$K,0),1))","v":""},null,{"$f":"IF(AF71=\"\",\"\",INDEX(REFERENTES!$D:$E,MATCH(AF71,REFERENTES!$E:$E,0),1))","v":""}]
[null,null,1,{"$f":"IF(Q72=\"\",\"\",IF(COUNTIF($Q72:Q72, Q72)>1, \"\", Q72))","v":""},null,null,"","","",null,{"$f":"IF(J72=\"\",\"\",INDEX(REFERENTES!$Y:$Z,MATCH(J72,REFERENTES!$Z:$Z,0),1))","v":""},"",null,null,68,"",{"$f":"IF(E72<>\"\",CONCATENATE($A$2,DIGITADOR!$B$2,DIGITADOR!$M$1,ROW()-4),\"\")","v":""},null,null,{"$f":"IF(S72=\"\",\"\",INDEX('OTRAS REFERENCIAS'!$L$5:$M$150,MATCH(S72,'OTRAS REFERENCIAS'!$L$5:$L$150,0),2))","v":""},null,null,null,{"$f":"IF(W72=\"\",\"\",VLOOKUP(W72,'OTRAS REFERENCIAS'!$A$7:$B$9,2,FALSE))","v":""},null,"",null,null,{"$f":"IF(AD72=\"\",\"\",INDEX(REFERENTES!$J:$K,MATCH(AD72,REFERENTES!$K:$K,0),2))","v":""},null,{"$f":"IF(AD72=\"\",\"\",INDEX(REFERENTES!$J:$L,MATCH(AD72,REFERENTES!$K:$K,0),1))","v":""},null,{"$f":"IF(AF72=\"\",\"\",INDEX(REFERENTES!$D:$E,MATCH(AF72,REFERENTES!$E:$E,0),1))","v":""}]
[null,null,1,{"$f":"IF(Q73=\"\",\"\",IF(COUNTIF($Q73:Q73, Q73)>1, \"\", Q73))","v":""},null,null,"","","",null,{"$f":"IF(J73=\"\",\"\",INDEX(REFERENTES!$Y:$Z,MATCH(J73,REFERENTES!$Z:$Z,0),1))","v":""},"",null,null,69,"",{"$f":"IF(E73<>\"\",CONCATENATE($A$2,DIGITADOR!$B$2,DIGITADOR!$M$1,ROW()-4),\"\")","v":""},null,null,{"$f":"IF(S73=\"\",\"\",INDEX('OTRAS REFERENCIAS'!$L$5:$M$150,MATCH(S73,'OTRAS REFERENCIAS'!$L$5:$L$150,0),2))","v":""},null,null,null,{"$f":"IF(W73=\"\",\"\",VLOOKUP(W73,'OTRAS REFERENCIAS'!$A$7:$B$9,2,FALSE))","v":""},null,"",null,null,{"$f":"IF(AD73=\"\",\"\",INDEX(REFERENTES!$J:$K,MATCH(AD73,REFERENTES!$K:$K,0),2))","v":""},null,{"$f":"IF(AD73=\"\",\"\",INDEX(REFERENTES!$J:$L,MATCH(AD73,REFERENTES!$K:$K,0),1))","v":""},null,{"$f":"IF(AF73=\"\",\"\",INDEX(REFERENTES!$D:$E,MATCH(AF73,REFERENTES!$E:$E,0),1))","v":""}]
[null,null,1,{"$f":"IF(Q74=\"\",\"\",IF(COUNTIF($Q74:Q74, Q74)>1, \"\", Q74))","v":""},null,null,"","","",null,{"$f":"IF(J74=\"\",\"\",INDEX(REFERENTES!$Y:$Z,MATCH(J74,REFERENTES!$Z:$Z,0),1))","v":""},"",null,null,70,"",{"$f":"IF(E74<>\"\",CONCATENATE($A$2,DIGITADOR!$B$2,DIGITADOR!$M$1,ROW()-4),\"\")","v":""},null,null,{"$f":"IF(S74=\"\",\"\",INDEX('OTRAS REFERENCIAS'!$L$5:$M$150,MATCH(S74,'OTRAS REFERENCIAS'!$L$5:$L$150,0),2))","v":""},null,null,null,{"$f":"IF(W74=\"\",\"\",VLOOKUP(W74,'OTRAS REFERENCIAS'!$A$7:$B$9,2,FALSE))","v":""},null,"",null,null,{"$f":"IF(AD74=\"\",\"\",INDEX(REFERENTES!$J:$K,MATCH(AD74,REFERENTES!$K:$K,0),2))","v":""},null,{"$f":"IF(AD74=\"\",\"\",INDEX(REFERENTES!$J:$L,MATCH(AD74,REFERENTES!$K:$K,0),1))","v":""},null,{"$f":"IF(AF74=\"\",\"\",INDEX(REFERENTES!$D:$E,MATCH(AF74,REFERENTES!$E:$E,0),1))","v":""}]
[null,null,1,{"$f":"IF(Q75=\"\",\"\",IF(COUNTIF($Q75:Q75, Q75)>1, \"\", Q75))","v":""},null,null,"","","",null,{"$f":"IF(J75=\"\",\"\",INDEX(REFERENTES!$Y:$Z,MATCH(J75,REFERENTES!$Z:$Z,0),1))","v":""},"",null,null,71,"",{"$f":"IF(E75<>\"\",CONCATENATE($A$2,DIGITADOR!$B$2,DIGITADOR!$M$1,ROW()-4),\"\")","v":""},null,null,{"$f":"IF(S75=\"\",\"\",INDEX('OTRAS REFERENCIAS'!$L$5:$M$150,MATCH(S75,'OTRAS REFERENCIAS'!$L$5:$L$150,0),2))","v":""},null,null,null,{"$f":"IF(W75=\"\",\"\",VLOOKUP(W75,'OTRAS REFERENCIAS'!$A$7:$B$9,2,FALSE))","v":""},null,"",null,null,{"$f":"IF(AD75=\"\",\"\",INDEX(REFERENTES!$J:$K,MATCH(AD75,REFERENTES!$K:$K,0),2))","v":""},null,{"$f":"IF(AD75=\"\",\"\",INDEX(REFERENTES!$J:$L,MATCH(AD75,REFERENTES!$K:$K,0),1))","v":""},null,{"$f":"IF(AF75=\"\",\"\",INDEX(REFERENTES!$D:$E,MATCH(AF75,REFERENTES!$E:$E,0),1))","v":""}]
[null,null,1,{"$f":"IF(Q76=\"\",\"\",IF(COUNTIF($Q76:Q76, Q76)>1, \"\", Q76))","v":""},null,null,"","","",null,{"$f":"IF(J76=\"\",\"\",INDEX(REFERENTES!$Y:$Z,MATCH(J76,REFERENTES!$Z:$Z,0),1))","v":""},"",null,null,72,"",{"$f":"IF(E76<>\"\",CONCATENATE($A$2,DIGITADOR!$B$2,DIGITADOR!$M$1,ROW()-4),\"\")","v":""},null,null,{"$f":"IF(S76=\"\",\"\",INDEX('OTRAS REFERENCIAS'!$L$5:$M$150,MATCH(S76,'OTRAS REFERENCIAS'!$L$5:$L$150,0),2))","v":""},null,null,null,{"$f":"IF(W76=\"\",\"\",VLOOKUP(W76,'OTRAS REFERENCIAS'!$A$7:$B$9,2,FALSE))","v":""},null,"",null,null,{"$f":"IF(AD76=\"\",\"\",INDEX(REFERENTES!$J:$K,MATCH(AD76,REFERENTES!$K:$K,0),2))","v":""},null,{"$f":"IF(AD76=\"\",\"\",INDEX(REFERENTES!$J:$L,MATCH(AD76,REFERENTES!$K:$K,0),1))","v":""},null,{"$f":"IF(AF76=\"\",\"\",INDEX(REFERENTES!$D:$E,MATCH(AF76,REFERENTES!$E:$E,0),1))","v":""}]
[null,null,1,{"$f":"IF(Q77=\"\",\"\",IF(COUNTIF($Q77:Q77, Q77)>1, \"\", Q77))","v":""},null,null,"","","",null,{"$f":"IF(J77=\"\",\"\",INDEX(REFERENTES!$Y:$Z,MATCH(J77,REFERENTES!$Z:$Z,0),1))","v":""},"",null,null,73,"",{"$f":"IF(E77<>\"\",CONCATENATE($A$2,DIGITADOR!$B$2,DIGITADOR!$M$1,ROW()-4),\"\")","v":""},null,null,{"$f":"IF(S77=\"\",\"\",INDEX('OTRAS REFERENCIAS'!$L$5:$M$150,MATCH(S77,'OTRAS REFERENCIAS'!$L$5:$L$150,0),2))","v":""},null,null,null,{"$f":"IF(W77=\"\",\"\",VLOOKUP(W77,'OTRAS REFERENCIAS'!$A$7:$B$9,2,FALSE))","v":""},null,"",null,null,{"$f":"IF(AD77=\"\",\"\",INDEX(REFERENTES!$J:$K,MATCH(AD77,REFERENTES!$K:$K,0),2))","v":""},null,{"$f":"IF(AD77=\"\",\"\",INDEX(REFERENTES!$J:$L,MATCH(AD77,REFERENTES!$K:$K,0),1))","v":""},null,{"$f":"IF(AF77=\"\",\"\",INDEX(REFERENTES!$D:$E,MATCH(AF77,REFERENTES!$E:$E,0),1))","v":""}]
[null,null,1,{"$f":"IF(Q78=\"\",\"\",IF(COUNTIF($Q78:Q78, Q78)>1, \"\", Q78))","v":""},null,null,"","","",null,{"$f":"IF(J78=\"\",\"\",INDEX(REFERENTES!$Y:$Z,MATCH(J78,REFERENTES!$Z:$Z,0),1))","v":""},"",null,null,74,"",{"$f":"IF(E78<>\"\",CONCATENATE($A$2,DIGITADOR!$B$2,DIGITADOR!$M$1,ROW()-4),\"\")","v":""},null,null,{"$f":"IF(S78=\"\",\"\",INDEX('OTRAS REFERENCIAS'!$L$5:$M$150,MATCH(S78,'OTRAS REFERENCIAS'!$L$5:$L$150,0),2))","v":""},null,null,null,{"$f":"IF(W78=\"\",\"\",VLOOKUP(W78,'OTRAS REFERENCIAS'!$A$7:$B$9,2,FALSE))","v":""},null,"",null,null,{"$f":"IF(AD78=\"\",\"\",INDEX(REFERENTES!$J:$K,MATCH(AD78,REFERENTES!$K:$K,0),2))","v":""},null,{"$f":"IF(AD78=\"\",\"\",INDEX(REFERENTES!$J:$L,MATCH(AD78,REFERENTES!$K:$K,0),1))","v":""},null,{"$f":"IF(AF78=\"\",\"\",INDEX(REFERENTES!$D:$E,MATCH(AF78,REFERENTES!$E:$E,0),1))","v":""}]
[null,null,1,{"$f":"IF(Q79=\"\",\"\",IF(COUNTIF($Q79:Q79, Q79)>1, \"\", Q79))","v":""},null,null,"","","",null,{"$f":"IF(J79=\"\",\"\",INDEX(REFERENTES!$Y:$Z,MATCH(J79,REFERENTES!$Z:$Z,0),1))","v":""},"",null,null,75,"",{"$f":"IF(E79<>\"\",CONCATENATE($A$2,DIGITADOR!$B$2,DIGITADOR!$M$1,ROW()-4),\"\")","v":""},null,null,{"$f":"IF(S79=\"\",\"\",INDEX('OTRAS REFERENCIAS'!$L$5:$M$150,MATCH(S79,'OTRAS REFERENCIAS'!$L$5:$L$150,0),2))","v":""},null,null,null,{"$f":"IF(W79=\"\",\"\",VLOOKUP(W79,'OTRAS REFERENCIAS'!$A$7:$B$9,2,FALSE))","v":""},null,"",null,null,{"$f":"IF(AD79=\"\",\"\",INDEX(REFERENTES!$J:$K,MATCH(AD79,REFERENTES!$K:$K,0),2))","v":""},null,{"$f":"IF(AD79=\"\",\"\",INDEX(REFERENTES!$J:$L,MATCH(AD79,REFERENTES!$K:$K,0),1))","v":""},null,{"$f":"IF(AF79=\"\",\"\",INDEX(REFERENTES!$D:$E,MATCH(AF79,REFERENTES!$E:$E,0),1))","v":""}]
[null,null,1,{"$f":"IF(Q80=\"\",\"\",IF(COUNTIF($Q80:Q80, Q80)>1, \"\", Q80))","v":""},null,null,"","","",null,{"$f":"IF(J80=\"\",\"\",INDEX(REFERENTES!$Y:$Z,MATCH(J80,REFERENTES!$Z:$Z,0),1))","v":""},"",null,null,76,"",{"$f":"IF(E80<>\"\",CONCATENATE($A$2,DIGITADOR!$B$2,DIGITADOR!$M$1,ROW()-4),\"\")","v":""},null,null,{"$f":"IF(S80=\"\",\"\",INDEX('OTRAS REFERENCIAS'!$L$5:$M$150,MATCH(S80,'OTRAS REFERENCIAS'!$L$5:$L$150,0),2))","v":""},null,null,null,{"$f":"IF(W80=\"\",\"\",VLOOKUP(W80,'OTRAS REFERENCIAS'!$A$7:$B$9,2,FALSE))","v":""},null,"",null,null,{"$f":"IF(AD80=\"\",\"\",INDEX(REFERENTES!$J:$K,MATCH(AD80,REFERENTES!$K:$K,0),2))","v":""},null,{"$f":"IF(AD80=\"\",\"\",INDEX(REFERENTES!$J:$L,MATCH(AD80,REFERENTES!$K:$K,0),1))","v":""},null,{"$f":"IF(AF80=\"\",\"\",INDEX(REFERENTES!$D:$E,MATCH(AF80,REFERENTES!$E:$E,0),1))","v":""}]
[null,null,1,{"$f":"IF(Q81=\"\",\"\",IF(COUNTIF($Q81:Q81, Q81)>1, \"\", Q81))","v":""},null,null,"","","",null,{"$f":"IF(J81=\"\",\"\",INDEX(REFERENTES!$Y:$Z,MATCH(J81,REFERENTES!$Z:$Z,0),1))","v":""},"",null,null,77,"",{"$f":"IF(E81<>\"\",CONCATENATE($A$2,DIGITADOR!$B$2,DIGITADOR!$M$1,ROW()-4),\"\")","v":""},null,null,{"$f":"IF(S81=\"\",\"\",INDEX('OTRAS REFERENCIAS'!$L$5:$M$150,MATCH(S81,'OTRAS REFERENCIAS'!$L$5:$L$150,0),2))","v":""},null,null,null,{"$f":"IF(W81=\"\",\"\",VLOOKUP(W81,'OTRAS REFERENCIAS'!$A$7:$B$9,2,FALSE))","v":""},null,"",null,null,{"$f":"IF(AD81=\"\",\"\",INDEX(REFERENTES!$J:$K,MATCH(AD81,REFERENTES!$K:$K,0),2))","v":""},null,{"$f":"IF(AD81=\"\",\"\",INDEX(REFERENTES!$J:$L,MATCH(AD81,REFERENTES!$K:$K,0),1))","v":""},null,{"$f":"IF(AF81=\"\",\"\",INDEX(REFERENTES!$D:$E,MATCH(AF81,REFERENTES!$E:$E,0),1))","v":""}]
[null,null,1,{"$f":"IF(Q82=\"\",\"\",IF(COUNTIF($Q82:Q82, Q82)>1, \"\", Q82))","v":""},null,null,"","","",null,{"$f":"IF(J82=\"\",\"\",INDEX(REFERENTES!$Y:$Z,MATCH(J82,REFERENTES!$Z:$Z,0),1))","v":""},"",null,null,78,"",{"$f":"IF(E82<>\"\",CONCATENATE($A$2,DIGITADOR!$B$2,DIGITADOR!$M$1,ROW()-4),\"\")","v":""},null,null,{"$f":"IF(S82=\"\",\"\",INDEX('OTRAS REFERENCIAS'!$L$5:$M$150,MATCH(S82,'OTRAS REFERENCIAS'!$L$5:$L$150,0),2))","v":""},null,null,null,{"$f":"IF(W82=\"\",\"\",VLOOKUP(W82,'OTRAS REFERENCIAS'!$A$7:$B$9,2,FALSE))","v":""},null,"",null,null,{"$f":"IF(AD82=\"\",\"\",INDEX(REFERENTES!$J:$K,MATCH(AD82,REFERENTES!$K:$K,0),2))","v":""},null,{"$f":"IF(AD82=\"\",\"\",INDEX(REFERENTES!$J:$L,MATCH(AD82,REFERENTES!$K:$K,0),1))","v":""},null,{"$f":"IF(AF82=\"\",\"\",INDEX(REFERENTES!$D:$E,MATCH(AF82,REFERENTES!$E:$E,0),1))","v":""}]
[null,null,1,{"$f":"IF(Q83=\"\",\"\",IF(COUNTIF($Q83:Q83, Q83)>1, \"\", Q83))","v":""},null,null,"","","",null,{"$f":"IF(J83=\"\",\"\",INDEX(REFERENTES!$Y:$Z,MATCH(J83,REFERENTES!$Z:$Z,0),1))","v":""},"",null,null,79,"",{"$f":"IF(E83<>\"\",CONCATENATE($A$2,DIGITADOR!$B$2,DIGITADOR!$M$1,ROW()-4),\"\")","v":""},null,null,{"$f":"IF(S83=\"\",\"\",INDEX('OTRAS REFERENCIAS'!$L$5:$M$150,MATCH(S83,'OTRAS REFERENCIAS'!$L$5:$L$150,0),2))","v":""},null,null,null,{"$f":"IF(W83=\"\",\"\",VLOOKUP(W83,'OTRAS REFERENCIAS'!$A$7:$B$9,2,FALSE))","v":""},null,"",null,null,{"$f":"IF(AD83=\"\",\"\",INDEX(REFERENTES!$J:$K,MATCH(AD83,REFERENTES!$K:$K,0),2))","v":""},null,{"$f":"IF(AD83=\"\",\"\",INDEX(REFERENTES!$J:$L,MATCH(AD83,REFERENTES!$K:$K,0),1))","v":""},null,{"$f":"IF(AF83=\"\",\"\",INDEX(REFERENTES!$D:$E,MATCH(AF83,REFERENTES!$E:$E,0),1))","v":""}]
[null,null,1,{"$f":"IF(Q84=\"\",\"\",IF(COUNTIF($Q84:Q84, Q84)>1, \"\", Q84))","v":""},null,null,"","","",null,{"$f":"IF(J84=\"\",\"\",INDEX(REFERENTES!$Y:$Z,MATCH(J84,REFERENTES!$Z:$Z,0),1))","v":""},"",null,null,80,"",{"$f":"IF(E84<>\"\",CONCATENATE($A$2,DIGITADOR!$B$2,DIGITADOR!$M$1,ROW()-4),\"\")","v":""},null,null,{"$f":"IF(S84=\"\",\"\",INDEX('OTRAS REFERENCIAS'!$L$5:$M$150,MATCH(S84,'OTRAS REFERENCIAS'!$L$5:$L$150,0),2))","v":""},null,null,null,{"$f":"IF(W84=\"\",\"\",VLOOKUP(W84,'OTRAS REFERENCIAS'!$A$7:$B$9,2,FALSE))","v":""},null,"",null,null,{"$f":"IF(AD84=\"\",\"\",INDEX(REFERENTES!$J:$K,MATCH(AD84,REFERENTES!$K:$K,0),2))","v":""},null,{"$f":"IF(AD84=\"\",\"\",INDEX(REFERENTES!$J:$L,MATCH(AD84,REFERENTES!$K:$K,0),1))","v":""},null,{"$f":"IF(AF84=\"\",\"\",INDEX(REFERENTES!$D:$E,MATCH(AF84,REFERENTES!$E:$E,0),1))","v":""}]
[null,null,1,{"$f":"IF(Q85=\"\",\"\",IF(COUNTIF($Q85:Q85, Q85)>1, \"\", Q85))","v":""},null,null,"","","",null,{"$f":"IF(J85=\"\",\"\",INDEX(REFERENTES!$Y:$Z,MATCH(J85,REFERENTES!$Z:$Z,0),1))","v":""},"",null,null,81,"",{"$f":"IF(E85<>\"\",CONCATENATE($A$2,DIGITADOR!$B$2,DIGITADOR!$M$1,ROW()-4),\"\")","v":""},null,null,{"$f":"IF(S85=\"\",\"\",INDEX('OTRAS REFERENCIAS'!$L$5:$M$150,MATCH(S85,'OTRAS REFERENCIAS'!$L$5:$L$150,0),2))","v":""},null,null,null,{"$f":"IF(W85=\"\",\"\",VLOOKUP(W85,'OTRAS REFERENCIAS'!$A$7:$B$9,2,FALSE))","v":""},null,"",null,null,{"$f":"IF(AD85=\"\",\"\",INDEX(REFERENTES!$J:$K,MATCH(AD85,REFERENTES!$K:$K,0),2))","v":""},null,{"$f":"IF(AD85=\"\",\"\",INDEX(REFERENTES!$J:$L,MATCH(AD85,REFERENTES!$K:$K,0),1))","v":""},null,{"$f":"IF(AF85=\"\",\"\",INDEX(REFERENTES!$D:$E,MATCH(AF85,REFERENTES!$E:$E,0),1))","v":""}]
[null,null,1,{"$f":"IF(Q86=\"\",\"\",IF(COUNTIF($Q86:Q86, Q86)>1, \"\", Q86))","v":""},null,null,"","","",null,{"$f":"IF(J86=\"\",\"\",INDEX(REFERENTES!$Y:$Z,MATCH(J86,REFERENTES!$Z:$Z,0),1))","v":""},"",null,null,82,"",{"$f":"IF(E86<>\"\",CONCATENATE($A$2,DIGITADOR!$B$2,DIGITADOR!$M$1,ROW()-4),\"\")","v":""},null,null,{"$f":"IF(S86=\"\",\"\",INDEX('OTRAS REFERENCIAS'!$L$5:$M$150,MATCH(S86,'OTRAS REFERENCIAS'!$L$5:$L$150,0),2))","v":""},null,null,null,{"$f":"IF(W86=\"\",\"\",VLOOKUP(W86,'OTRAS REFERENCIAS'!$A$7:$B$9,2,FALSE))","v":""},null,"",null,null,{"$f":"IF(AD86=\"\",\"\",INDEX(REFERENTES!$J:$K,MATCH(AD86,REFERENTES!$K:$K,0),2))","v":""},null,{"$f":"IF(AD86=\"\",\"\",INDEX(REFERENTES!$J:$L,MATCH(AD86,REFERENTES!$K:$K,0),1))","v":""},null,{"$f":"IF(AF86=\"\",\"\",INDEX(REFERENTES!$D:$E,MATCH(AF86,REFERENTES!$E:$E,0),1))","v":""}]
[null,null,1,{"$f":"IF(Q87=\"\",\"\",IF(COUNTIF($Q87:Q87, Q87)>1, \"\", Q87))","v":""},null,null,"","","",null,{"$f":"IF(J87=\"\",\"\",INDEX(REFERENTES!$Y:$Z,MATCH(J87,REFERENTES!$Z:$Z,0),1))","v":""},"",null,null,83,"",{"$f":"IF(E87<>\"\",CONCATENATE($A$2,DIGITADOR!$B$2,DIGITADOR!$M$1,ROW()-4),\"\")","v":""},null,null,{"$f":"IF(S87=\"\",\"\",INDEX('OTRAS REFERENCIAS'!$L$5:$M$150,MATCH(S87,'OTRAS REFERENCIAS'!$L$5:$L$150,0),2))","v":""},null,null,null,{"$f":"IF(W87=\"\",\"\",VLOOKUP(W87,'OTRAS REFERENCIAS'!$A$7:$B$9,2,FALSE))","v":""},null,"",null,null,{"$f":"IF(AD87=\"\",\"\",INDEX(REFERENTES!$J:$K,MATCH(AD87,REFERENTES!$K:$K,0),2))","v":""},null,{"$f":"IF(AD87=\"\",\"\",INDEX(REFERENTES!$J:$L,MATCH(AD87,REFERENTES!$K:$K,0),1))","v":""},null,{"$f":"IF(AF87=\"\",\"\",INDEX(REFERENTES!$D:$E,MATCH(AF87,REFERENTES!$E:$E,0),1))","v":""}]
[null,null,1,{"$f":"IF(Q88=\"\",\"\",IF(COUNTIF($Q88:Q88, Q88)>1, \"\", Q88))","v":""},null,null,"","","",null,{"$f":"IF(J88=\"\",\"\",INDEX(REFERENTES!$Y:$Z,MATCH(J88,REFERENTES!$Z:$Z,0),1))","v":""},"",null,null,84,"",{"$f":"IF(E88<>\"\",CONCATENATE($A$2,DIGITADOR!$B$2,DIGITADOR!$M$1,ROW()-4),\"\")","v":""},null,null,{"$f":"IF(S88=\"\",\"\",INDEX('OTRAS REFERENCIAS'!$L$5:$M$150,MATCH(S88,'OTRAS REFERENCIAS'!$L$5:$L$150,0),2))","v":""},null,null,null,{"$f":"IF(W88=\"\",\"\",VLOOKUP(W88,'OTRAS REFERENCIAS'!$A$7:$B$9,2,FALSE))","v":""},null,"",null,null,{"$f":"IF(AD88=\"\",\"\",INDEX(REFERENTES!$J:$K,MATCH(AD88,REFERENTES!$K:$K,0),2))","v":""},null,{"$f":"IF(AD88=\"\",\"\",INDEX(REFERENTES!$J:$L,MATCH(AD88,REFERENTES!$K:$K,0),1))","v":""},null,{"$f":"IF(AF88=\"\",\"\",INDEX(REFERENTES!$D:$E,MATCH(AF88,REFERENTES!$E:$E,0),1))","v":""}]
[null,null,1,{"$f":"IF(Q89=\"\",\"\",IF(COUNTIF($Q89:Q89, Q89)>1, \"\", Q89))","v":""},null,null,"","","",null,{"$f":"IF(J89=\"\",\"\",INDEX(REFERENTES!$Y:$Z,MATCH(J89,REFERENTES!$Z:$Z,0),1))","v":""},"",null,null,85,"",{"$f":"IF(E89<>\"\",CONCATENATE($A$2,DIGITADOR!$B$2,DIGITADOR!$M$1,ROW()-4),\"\")","v":""},null,null,{"$f":"IF(S89=\"\",\"\",INDEX('OTRAS REFERENCIAS'!$L$5:$M$150,MATCH(S89,'OTRAS REFERENCIAS'!$L$5:$L$150,0),2))","v":""},null,null,null,{"$f":"IF(W89=\"\",\"\",VLOOKUP(W89,'OTRAS REFERENCIAS'!$A$7:$B$9,2,FALSE))","v":""},null,"",null,null,{"$f":"IF(AD89=\"\",\"\",INDEX(REFERENTES!$J:$K,MATCH(AD89,REFERENTES!$K:$K,0),2))","v":""},null,{"$f":"IF(AD89=\"\",\"\",INDEX(REFERENTES!$J:$L,MATCH(AD89,REFERENTES!$K:$K,0),1))","v":""},null,{"$f":"IF(AF89=\"\",\"\",INDEX(REFERENTES!$D:$E,MATCH(AF89,REFERENTES!$E:$E,0),1))","v":""}]
[null,null,1,{"$f":"IF(Q90=\"\",\"\",IF(COUNTIF($Q90:Q90, Q90)>1, \"\", Q90))","v":""},null,null,"","","",null,{"$f":"IF(J90=\"\",\"\",INDEX(REFERENTES!$Y:$Z,MATCH(J90,REFERENTES!$Z:$Z,0),1))","v":""},"",null,null,86,"",{"$f":"IF(E90<>\"\",CONCATENATE($A$2,DIGITADOR!$B$2,DIGITADOR!$M$1,ROW()-4),\"\")","v":""},null,null,{"$f":"IF(S90=\"\",\"\",INDEX('OTRAS REFERENCIAS'!$L$5:$M$150,MATCH(S90,'OTRAS REFERENCIAS'!$L$5:$L$150,0),2))","v":""},null,null,null,{"$f":"IF(W90=\"\",\"\",VLOOKUP(W90,'OTRAS REFERENCIAS'!$A$7:$B$9,2,FALSE))","v":""},null,"",null,null,{"$f":"IF(AD90=\"\",\"\",INDEX(REFERENTES!$J:$K,MATCH(AD90,REFERENTES!$K:$K,0),2))","v":""},null,{"$f":"IF(AD90=\"\",\"\",INDEX(REFERENTES!$J:$L,MATCH(AD90,REFERENTES!$K:$K,0),1))","v":""},null,{"$f":"IF(AF90=\"\",\"\",INDEX(REFERENTES!$D:$E,MATCH(AF90,REFERENTES!$E:$E,0),1))","v":""}]
[null,null,1,{"$f":"IF(Q91=\"\",\"\",IF(COUNTIF($Q91:Q91, Q91)>1, \"\", Q91))","v":""},null,null,"","","",null,{"$f":"IF(J91=\"\",\"\",INDEX(REFERENTES!$Y:$Z,MATCH(J91,REFERENTES!$Z:$Z,0),1))","v":""},"",null,null,87,"",{"$f":"IF(E91<>\"\",CONCATENATE($A$2,DIGITADOR!$B$2,DIGITADOR!$M$1,ROW()-4),\"\")","v":""},null,null,{"$f":"IF(S91=\"\",\"\",INDEX('OTRAS REFERENCIAS'!$L$5:$M$150,MATCH(S91,'OTRAS REFERENCIAS'!$L$5:$L$150,0),2))","v":""},null,null,null,{"$f":"IF(W91=\"\",\"\",VLOOKUP(W91,'OTRAS REFERENCIAS'!$A$7:$B$9,2,FALSE))","v":""},null,"",null,null,{"$f":"IF(AD91=\"\",\"\",INDEX(REFERENTES!$J:$K,MATCH(AD91,REFERENTES!$K:$K,0),2))","v":""},null,{"$f":"IF(AD91=\"\",\"\",INDEX(REFERENTES!$J:$L,MATCH(AD91,REFERENTES!$K:$K,0),1))","v":""},null,{"$f":"IF(AF91=\"\",\"\",INDEX(REFERENTES!$D:$E,MATCH(AF91,REFERENTES!$E:$E,0),1))","v":""}]
[null,null,1,{"$f":"IF(Q92=\"\",\"\",IF(COUNTIF($Q92:Q92, Q92)>1, \"\", Q92))","v":""},null,null,"","","",null,{"$f":"IF(J92=\"\",\"\",INDEX(REFERENTES!$Y:$Z,MATCH(J92,REFERENTES!$Z:$Z,0),1))","v":""},"",null,null,88,"",{"$f":"IF(E92<>\"\",CONCATENATE($A$2,DIGITADOR!$B$2,DIGITADOR!$M$1,ROW()-4),\"\")","v":""},null,null,{"$f":"IF(S92=\"\",\"\",INDEX('OTRAS REFERENCIAS'!$L$5:$M$150,MATCH(S92,'OTRAS REFERENCIAS'!$L$5:$L$150,0),2))","v":""},null,null,null,{"$f":"IF(W92=\"\",\"\",VLOOKUP(W92,'OTRAS REFERENCIAS'!$A$7:$B$9,2,FALSE))","v":""},null,"",null,null,{"$f":"IF(AD92=\"\",\"\",INDEX(REFERENTES!$J:$K,MATCH(AD92,REFERENTES!$K:$K,0),2))","v":""},null,{"$f":"IF(AD92=\"\",\"\",INDEX(REFERENTES!$J:$L,MATCH(AD92,REFERENTES!$K:$K,0),1))","v":""},null,{"$f":"IF(AF92=\"\",\"\",INDEX(REFERENTES!$D:$E,MATCH(AF92,REFERENTES!$E:$E,0),1))","v":""}]
[null,null,1,{"$f":"IF(Q93=\"\",\"\",IF(COUNTIF($Q93:Q93, Q93)>1, \"\", Q93))","v":""},null,null,"","","",null,{"$f":"IF(J93=\"\",\"\",INDEX(REFERENTES!$Y:$Z,MATCH(J93,REFERENTES!$Z:$Z,0),1))","v":""},"",null,null,89,"",{"$f":"IF(E93<>\"\",CONCATENATE($A$2,DIGITADOR!$B$2,DIGITADOR!$M$1,ROW()-4),\"\")","v":""},null,null,{"$f":"IF(S93=\"\",\"\",INDEX('OTRAS REFERENCIAS'!$L$5:$M$150,MATCH(S93,'OTRAS REFERENCIAS'!$L$5:$L$150,0),2))","v":""},null,null,null,{"$f":"IF(W93=\"\",\"\",VLOOKUP(W93,'OTRAS REFERENCIAS'!$A$7:$B$9,2,FALSE))","v":""},null,"",null,null,{"$f":"IF(AD93=\"\",\"\",INDEX(REFERENTES!$J:$K,MATCH(AD93,REFERENTES!$K:$K,0),2))","v":""},null,{"$f":"IF(AD93=\"\",\"\",INDEX(REFERENTES!$J:$L,MATCH(AD93,REFERENTES!$K:$K,0),1))","v":""},null,{"$f":"IF(AF93=\"\",\"\",INDEX(REFERENTES!$D:$E,MATCH(AF93,REFERENTES!$E:$E,0),1))","v":""}]
[null,null,1,{"$f":"IF(Q94=\"\",\"\",IF(COUNTIF($Q94:Q94, Q94)>1, \"\", Q94))","v":""},null,null,"","","",null,{"$f":"IF(J94=\"\",\"\",INDEX(REFERENTES!$Y:$Z,MATCH(J94,REFERENTES!$Z:$Z,0),1))","v":""},"",null,null,90,"",{"$f":"IF(E94<>\"\",CONCATENATE($A$2,DIGITADOR!$B$2,DIGITADOR!$M$1,ROW()-4),\"\")","v":""},null,null,{"$f":"IF(S94=\"\",\"\",INDEX('OTRAS REFERENCIAS'!$L$5:$M$150,MATCH(S94,'OTRAS REFERENCIAS'!$L$5:$L$150,0),2))","v":""},null,null,null,{"$f":"IF(W94=\"\",\"\",VLOOKUP(W94,'OTRAS REFERENCIAS'!$A$7:$B$9,2,FALSE))","v":""},null,"",null,null,{"$f":"IF(AD94=\"\",\"\",INDEX(REFERENTES!$J:$K,MATCH(AD94,REFERENTES!$K:$K,0),2))","v":""},null,{"$f":"IF(AD94=\"\",\"\",INDEX(REFERENTES!$J:$L,MATCH(AD94,REFERENTES!$K:$K,0),1))","v":""},null,{"$f":"IF(AF94=\"\",\"\",INDEX(REFERENTES!$D:$E,MATCH(AF94,REFERENTES!$E:$E,0),1))","v":""}]
[null,null,1,{"$f":"IF(Q95=\"\",\"\",IF(COUNTIF($Q95:Q95, Q95)>1, \"\", Q95))","v":""},null,null,"","","",null,{"$f":"IF(J95=\"\",\"\",INDEX(REFERENTES!$Y:$Z,MATCH(J95,REFERENTES!$Z:$Z,0),1))","v":""},"",null,null,91,"",{"$f":"IF(E95<>\"\",CONCATENATE($A$2,DIGITADOR!$B$2,DIGITADOR!$M$1,ROW()-4),\"\")","v":""},null,null,{"$f":"IF(S95=\"\",\"\",INDEX('OTRAS REFERENCIAS'!$L$5:$M$150,MATCH(S95,'OTRAS REFERENCIAS'!$L$5:$L$150,0),2))","v":""},null,null,null,{"$f":"IF(W95=\"\",\"\",VLOOKUP(W95,'OTRAS REFERENCIAS'!$A$7:$B$9,2,FALSE))","v":""},null,"",null,null,{"$f":"IF(AD95=\"\",\"\",INDEX(REFERENTES!$J:$K,MATCH(AD95,REFERENTES!$K:$K,0),2))","v":""},null,{"$f":"IF(AD95=\"\",\"\",INDEX(REFERENTES!$J:$L,MATCH(AD95,REFERENTES!$K:$K,0),1))","v":""},null,{"$f":"IF(AF95=\"\",\"\",INDEX(REFERENTES!$D:$E,MATCH(AF95,REFERENTES!$E:$E,0),1))","v":""}]
[null,null,1,{"$f":"IF(Q96=\"\",\"\",IF(COUNTIF($Q96:Q96, Q96)>1, \"\", Q96))","v":""},null,null,"","","",null,{"$f":"IF(J96=\"\",\"\",INDEX(REFERENTES!$Y:$Z,MATCH(J96,REFERENTES!$Z:$Z,0),1))","v":""},"",null,null,92,"",{"$f":"IF(E96<>\"\",CONCATENATE($A$2,DIGITADOR!$B$2,DIGITADOR!$M$1,ROW()-4),\"\")","v":""},null,null,{"$f":"IF(S96=\"\",\"\",INDEX('OTRAS REFERENCIAS'!$L$5:$M$150,MATCH(S96,'OTRAS REFERENCIAS'!$L$5:$L$150,0),2))","v":""},null,null,null,{"$f":"IF(W96=\"\",\"\",VLOOKUP(W96,'OTRAS REFERENCIAS'!$A$7:$B$9,2,FALSE))","v":""},null,"",null,null,{"$f":"IF(AD96=\"\",\"\",INDEX(REFERENTES!$J:$K,MATCH(AD96,REFERENTES!$K:$K,0),2))","v":""},null,{"$f":"IF(AD96=\"\",\"\",INDEX(REFERENTES!$J:$L,MATCH(AD96,REFERENTES!$K:$K,0),1))","v":""},null,{"$f":"IF(AF96=\"\",\"\",INDEX(REFERENTES!$D:$E,MATCH(AF96,REFERENTES!$E:$E,0),1))","v":""}]
[null,null,1,{"$f":"IF(Q97=\"\",\"\",IF(COUNTIF($Q97:Q97, Q97)>1, \"\", Q97))","v":""},null,null,"","","",null,{"$f":"IF(J97=\"\",\"\",INDEX(REFERENTES!$Y:$Z,MATCH(J97,REFERENTES!$Z:$Z,0),1))","v":""},"",null,null,93,"",{"$f":"IF(E97<>\"\",CONCATENATE($A$2,DIGITADOR!$B$2,DIGITADOR!$M$1,ROW()-4),\"\")","v":""},null,null,{"$f":"IF(S97=\"\",\"\",INDEX('OTRAS REFERENCIAS'!$L$5:$M$150,MATCH(S97,'OTRAS REFERENCIAS'!$L$5:$L$150,0),2))","v":""},null,null,null,{"$f":"IF(W97=\"\",\"\",VLOOKUP(W97,'OTRAS REFERENCIAS'!$A$7:$B$9,2,FALSE))","v":""},null,"",null,null,{"$f":"IF(AD97=\"\",\"\",INDEX(REFERENTES!$J:$K,MATCH(AD97,REFERENTES!$K:$K,0),2))","v":""},null,{"$f":"IF(AD97=\"\",\"\",INDEX(REFERENTES!$J:$L,MATCH(AD97,REFERENTES!$K:$K,0),1))","v":""},null,{"$f":"IF(AF97=\"\",\"\",INDEX(REFERENTES!$D:$E,MATCH(AF97,REFERENTES!$E:$E,0),1))","v":""}]
[null,null,1,{"$f":"IF(Q98=\"\",\"\",IF(COUNTIF($Q98:Q98, Q98)>1, \"\", Q98))","v":""},null,null,"","","",null,{"$f":"IF(J98=\"\",\"\",INDEX(REFERENTES!$Y:$Z,MATCH(J98,REFERENTES!$Z:$Z,0),1))","v":""},"",null,null,94,"",{"$f":"IF(E98<>\"\",CONCATENATE($A$2,DIGITADOR!$B$2,DIGITADOR!$M$1,ROW()-4),\"\")","v":""},null,null,{"$f":"IF(S98=\"\",\"\",INDEX('OTRAS REFERENCIAS'!$L$5:$M$150,MATCH(S98,'OTRAS REFERENCIAS'!$L$5:$L$150,0),2))","v":""},null,null,null,{"$f":"IF(W98=\"\",\"\",VLOOKUP(W98,'OTRAS REFERENCIAS'!$A$7:$B$9,2,FALSE))","v":""},null,"",null,null,{"$f":"IF(AD98=\"\",\"\",INDEX(REFERENTES!$J:$K,MATCH(AD98,REFERENTES!$K:$K,0),2))","v":""},null,{"$f":"IF(AD98=\"\",\"\",INDEX(REFERENTES!$J:$L,MATCH(AD98,REFERENTES!$K:$K,0),1))","v":""},null,{"$f":"IF(AF98=\"\",\"\",INDEX(REFERENTES!$D:$E,MATCH(AF98,REFERENTES!$E:$E,0),1))","v":""}]
[null,null,1,{"$f":"IF(Q99=\"\",\"\",IF(COUNTIF($Q99:Q99, Q99)>1, \"\", Q99))","v":""},null,null,"","","",null,{"$f":"IF(J99=\"\",\"\",INDEX(REFERENTES!$Y:$Z,MATCH(J99,REFERENTES!$Z:$Z,0),1))","v":""},"",null,null,95,"",{"$f":"IF(E99<>\"\",CONCATENATE($A$2,DIGITADOR!$B$2,DIGITADOR!$M$1,ROW()-4),\"\")","v":""},null,null,{"$f":"IF(S99=\"\",\"\",INDEX('OTRAS REFERENCIAS'!$L$5:$M$150,MATCH(S99,'OTRAS REFERENCIAS'!$L$5:$L$150,0),2))","v":""},null,null,null,{"$f":"IF(W99=\"\",\"\",VLOOKUP(W99,'OTRAS REFERENCIAS'!$A$7:$B$9,2,FALSE))","v":""},null,"",null,null,{"$f":"IF(AD99=\"\",\"\",INDEX(REFERENTES!$J:$K,MATCH(AD99,REFERENTES!$K:$K,0),2))","v":""},null,{"$f":"IF(AD99=\"\",\"\",INDEX(REFERENTES!$J:$L,MATCH(AD99,REFERENTES!$K:$K,0),1))","v":""},null,{"$f":"IF(AF99=\"\",\"\",INDEX(REFERENTES!$D:$E,MATCH(AF99,REFERENTES!$E:$E,0),1))","v":""}]
[null,null,1,{"$f":"IF(Q100=\"\",\"\",IF(COUNTIF($Q100:Q100, Q100)>1, \"\", Q100))","v":""},null,null,"","","",null,{"$f":"IF(J100=\"\",\"\",INDEX(REFERENTES!$Y:$Z,MATCH(J100,REFERENTES!$Z:$Z,0),1))","v":""},"",null,null,96,"",{"$f":"IF(E100<>\"\",CONCATENATE($A$2,DIGITADOR!$B$2,DIGITADOR!$M$1,ROW()-4),\"\")","v":""},null,null,{"$f":"IF(S100=\"\",\"\",INDEX('OTRAS REFERENCIAS'!$L$5:$M$150,MATCH(S100,'OTRAS REFERENCIAS'!$L$5:$L$150,0),2))","v":""},null,null,null,{"$f":"IF(W100=\"\",\"\",VLOOKUP(W100,'OTRAS REFERENCIAS'!$A$7:$B$9,2,FALSE))","v":""},null,"",null,null,{"$f":"IF(AD100=\"\",\"\",INDEX(REFERENTES!$J:$K,MATCH(AD100,REFERENTES!$K:$K,0),2))","v":""},null,{"$f":"IF(AD100=\"\",\"\",INDEX(REFERENTES!$J:$L,MATCH(AD100,REFERENTES!$K:$K,0),1))","v":""},null,{"$f":"IF(AF100=\"\",\"\",INDEX(REFERENTES!$D:$E,MATCH(AF100,REFERENTES!$E:$E,0),1))","v":""}]
[null,null,1,{"$f":"IF(Q101=\"\",\"\",IF(COUNTIF($Q101:Q101, Q101)>1, \"\", Q101))","v":""},null,null,"","","",null,{"$f":"IF(J101=\"\",\"\",INDEX(REFERENTES!$Y:$Z,MATCH(J101,REFERENTES!$Z:$Z,0),1))","v":""},{"$f":"IF(G101=\"\",\"\",CONCATENATE(G101,T101,K101,AB101))","v":""},null,null,97,"",{"$f":"IF(E101<>\"\",CONCATENATE($A$2,DIGITADOR!$B$2,DIGITADOR!$M$1,ROW()-4),\"\")","v":""},null,null,{"$f":"IF(S101=\"\",\"\",INDEX('OTRAS REFERENCIAS'!$L$5:$M$150,MATCH(S101,'OTRAS REFERENCIAS'!$L$5:$L$150,0),2))","v":""},null,null,null,{"$f":"IF(W101=\"\",\"\",VLOOKUP(W101,'OTRAS REFERENCIAS'!$A$7:$B$9,2,FALSE))","v":""},null,"",null,null,{"$f":"IF(AD101=\"\",\"\",INDEX(REFERENTES!$J:$K,MATCH(AD101,REFERENTES!$K:$K,0),2))","v":""},null,{"$f":"IF(AD101=\"\",\"\",INDEX(REFERENTES!$J:$L,MATCH(AD101,REFERENTES!$K:$K,0),1))","v":""},null,{"$f":"IF(AF101=\"\",\"\",INDEX(REFERENTES!$D:$E,MATCH(AF101,REFERENTES!$E:$E,0),1))","v":""}]
[null,null,1,{"$f":"IF(Q102=\"\",\"\",IF(COUNTIF($Q102:Q102, Q102)>1, \"\", Q102))","v":""},null,null,"","","",null,{"$f":"IF(J102=\"\",\"\",INDEX(REFERENTES!$Y:$Z,MATCH(J102,REFERENTES!$Z:$Z,0),1))","v":""},{"$f":"IF(G102=\"\",\"\",CONCATENATE(G102,T102,K102,AB102))","v":""},null,null,98,"",{"$f":"IF(E102<>\"\",CONCATENATE($A$2,DIGITADOR!$B$2,DIGITADOR!$M$1,ROW()-4),\"\")","v":""},null,null,{"$f":"IF(S102=\"\",\"\",INDEX('OTRAS REFERENCIAS'!$L$5:$M$150,MATCH(S102,'OTRAS REFERENCIAS'!$L$5:$L$150,0),2))","v":""},null,null,null,{"$f":"IF(W102=\"\",\"\",VLOOKUP(W102,'OTRAS REFERENCIAS'!$A$7:$B$9,2,FALSE))","v":""},null,"",null,null,{"$f":"IF(AD102=\"\",\"\",INDEX(REFERENTES!$J:$K,MATCH(AD102,REFERENTES!$K:$K,0),2))","v":""},null,{"$f":"IF(AD102=\"\",\"\",INDEX(REFERENTES!$J:$L,MATCH(AD102,REFERENTES!$K:$K,0),1))","v":""},null,{"$f":"IF(AF102=\"\",\"\",INDEX(REFERENTES!$D:$E,MATCH(AF102,REFERENTES!$E:$E,0),1))","v":""}]
[null,null,1,{"$f":"IF(Q103=\"\",\"\",IF(COUNTIF($Q103:Q103, Q103)>1, \"\", Q103))","v":""},null,null,"","","",null,{"$f":"IF(J103=\"\",\"\",INDEX(REFERENTES!$Y:$Z,MATCH(J103,REFERENTES!$Z:$Z,0),1))","v":""},{"$f":"IF(G103=\"\",\"\",CONCATENATE(G103,T103,K103,AB103))","v":""},null,null,99,"",{"$f":"IF(E103<>\"\",CONCATENATE($A$2,DIGITADOR!$B$2,DIGITADOR!$M$1,ROW()-4),\"\")","v":""},null,null,{"$f":"IF(S103=\"\",\"\",INDEX('OTRAS REFERENCIAS'!$L$5:$M$150,MATCH(S103,'OTRAS REFERENCIAS'!$L$5:$L$150,0),2))","v":""},null,null,null,{"$f":"IF(W103=\"\",\"\",VLOOKUP(W103,'OTRAS REFERENCIAS'!$A$7:$B$9,2,FALSE))","v":""},null,"",null,null,{"$f":"IF(AD103=\"\",\"\",INDEX(REFERENTES!$J:$K,MATCH(AD103,REFERENTES!$K:$K,0),2))","v":""},null,{"$f":"IF(AD103=\"\",\"\",INDEX(REFERENTES!$J:$L,MATCH(AD103,REFERENTES!$K:$K,0),1))","v":""},null,{"$f":"IF(AF103=\"\",\"\",INDEX(REFERENTES!$D:$E,MATCH(AF103,REFERENTES!$E:$E,0),1))","v":""}]
[null,null,1,{"$f":"IF(Q104=\"\",\"\",IF(COUNTIF($Q104:Q104, Q104)>1, \"\", Q104))","v":""},null,null,"","","",null,{"$f":"IF(J104=\"\",\"\",INDEX(REFERENTES!$Y:$Z,MATCH(J104,REFERENTES!$Z:$Z,0),1))","v":""},{"$f":"IF(G104=\"\",\"\",CONCATENATE(G104,T104,K104,AB104))","v":""},null,null,100,"",{"$f":"IF(E104<>\"\",CONCATENATE($A$2,DIGITADOR!$B$2,DIGITADOR!$M$1,ROW()-4),\"\")","v":""},null,null,{"$f":"IF(S104=\"\",\"\",INDEX('OTRAS REFERENCIAS'!$L$5:$M$150,MATCH(S104,'OTRAS REFERENCIAS'!$L$5:$L$150,0),2))","v":""},null,null,null,{"$f":"IF(W104=\"\",\"\",VLOOKUP(W104,'OTRAS REFERENCIAS'!$A$7:$B$9,2,FALSE))","v":""},null,"",null,null,{"$f":"IF(AD104=\"\",\"\",INDEX(REFERENTES!$J:$K,MATCH(AD104,REFERENTES!$K:$K,0),2))","v":""},null,{"$f":"IF(AD104=\"\",\"\",INDEX(REFERENTES!$J:$L,MATCH(AD104,REFERENTES!$K:$K,0),1))","v":""},null,{"$f":"IF(AF104=\"\",\"\",INDEX(REFERENTES!$D:$E,MATCH(AF104,REFERENTES!$E:$E,0),1))","v":""}]

{"sheet":"REFERENTES","index":4,"n_rows":363,"n_cols":26,"rows_kept":363,"cut":false,"hidden":false,"merged":[]}
["AG_ESPECIES",148025,null,"AG_LOV",1036,null,"AG_LOV",1030,null,"descripcion","cod_letras",null,null,null,null,null,null,null,"secuencia_loc","prefijo_cdg_est_loc","codigo_estacion_loc","descripcion_estacion_loc","lugar"]
["Pterogorgia anceps","Panc",null,"Sana","SAN",null,"CORALINA","CORALINA",null,"Agaricia agaricites","Aaga","8.55.2460","CNIDARIA",null,null,null,null,null,14311,"ACU",1,null,"Acuario 1",null,3907,"Ameth  Vargas Campo"]
["Parazoanthus sp.","Para",null,"Pálida","PAL",null,"F. Malpelo","Fundacion Malpelo",null,"Antipathes atlantica","Aatl","8.55.1300","CNIDARIA",null,null,null,null,null,14312,"ACU",2,null,"Acuario 2",null,593,"Andrea Polanco"]
["Porites astreoides","Past",null,"Blanqueamiento","BLA",null,"INVEMAR","Instituto de Investigaciones Marinas y Costeras",null,"Antipathes barbadensis","Abar","8.55.6730","CNIDARIA",null,null,null,null,null,14338,"AGU",1,"se encuentra localizada bien al fondo de la ensenada","Aguacate S",null,4408,"Andres Felipe Acosta Chaparro"]
["Pavona sp.","Pavo",null,"Plaga Blanca","WPD",null,"UNIVALLE","Universidad del Valle",null,"Actinia bermudensis","Aber","8.55.1680","CNIDARIA",null,null,null,null,null,14341,"AZU",1,"A unos 60 metros de la costa en marea baja. localizada a 2º 57' 30.6\" N - 78º 10' 41.0\" O","Azufrada 1",null,3956,"Carlos Aponte"]
["Padina boergesenii","Pboe",null,"Lunares Oscuros","ELO",null,"PNN_GORGONA","PNN_GORGONA",null,"Amphiroa brasiliana","Abra","4026.55.320",null,null,null,null,null,null,14342,"AZU",2,"A unos 70m de la costa en marea baja","Azufrada 2",null,1834,"Diana Isabel Gómez López"]
["Porites branneri","Pbra",null,"Depredación","DEP",null,"UJTL","Universidad Jorge Tadeo Lozano",null,"Acropora cervicornis","Acer","8.55.2380","CNIDARIA",null,null,null,null,null,43726,"POR",1,"Bahía Portete","Bahía Portete",null,1775,"Diego Duque"]
["Porites californica","Pcal",null,"Banda Negra","BBD",null,"UNal","Universidad Nacional",null,"Agelas clathrodes","Acla","4.55.196",null,null,null,null,null,null,55425,"BGO",1,null,"Bonito Gordo (PNN Tayrona)",null,3646,"Elizabeth Galeano Galeano"]
["Pocillopora capitata","Pcap",null,"Banda Amarilla","YBD",null,"ParquesNacionales","Parques Nacionales",null,"Agelas conifera","Acon","4.55.197",null,null,null,null,null,null,14333,"CTI",2,"incluye una parcela en el nivel medio de prof","Cabo Tiburón M",null,1784,"Johanna Carolina Vega Sequeda"]
["Palythoa caribaeorum","Pcar",null,"Banda Roja","RBD",null,null,null,null,"Acropora sp.","Acro","8.46.820","CNIDARIA",null,null,null,null,null,14334,"CTI",1,"la estación es una parcela somera (3 m) forma","Cabo Tiburón S",null,6356,"Jose Francisco Campo Campo"]
["Pavona chirriquiensis","Pchi",null,"Shut Down Reaction","SDR",null,null,null,null,"Agelas dispar","Adis","4.55.198",null,null,null,null,null,null,14336,"CAP",1,null,"Capurganá 1",null,3905,"Juan David González Corredor"]
["Pterogorgia citrina","Pcit",null,"Otras","OTR",null,null,null,null,"Actinoporus elegans","Aele","8.55.6819","CNIDARIA",null,null,null,null,null,14337,"CAP",2,null,"Capurganá 2",null,5705,"Katherine Johanna Mejía Quintero"]
["Pavona clavus","Pcla",null,"Muerte Actual","MA",null,null,null,null,"Agaricia fragilis","Afra","8.55.2520","CNIDARIA",null,null,null,null,null,58217,"FAN",1,"Estación de monitoreo de Corales en la cara del fantasma","Cara del Fantasma",null,8265,"Kevin Samuel Moreno"]
["Porites colonensis","Pcol",null,"White Pox","WPX",null,null,null,null,"Aplysina fulva","Aful","4.55.149",null,null,null,null,null,null,14331,"CEY",1,"Estación está conformada por  una parcela","Ceycen 1",null,4227,"Laura Sanchez Valencia"]
["Phormidium corallyticum","Pcor",null,"Muerte Reciente","MR",null,null,null,null,"Agaricia sp.","Agar","8.46.830","CNIDARIA",null,null,null,null,null,14308,"CEY",2,null,"Ceycen 2",null,3281,"Leonardo José Arias Alemán (2022)"]
["Pseudoplexaura crucis","Pcru",null,"Invasión Algas","IA",null,null,null,null,"Agelas sp.","Agel","4.46.440",null,null,null,null,null,null,41651,"CEY",3,null,"Ceycen 3",null,287,"Marcela Cano Correa"]
["Pocillopora damicornis","Pdam",null,"Lunares Blancos","ELB",null,null,null,null,"Agaricia grahamae","Agra","8.55.6396","CNIDARIA",null,null,null,null,null,41705,"CHE",4,null,"Chengue Acropora",null,5021,"Maria Juliana Vanegas Gonzalez"]
["Plexaurella dichotoma","Pdic",null,"Banda Blanca","WBD",null,null,null,null,"Amphiroa hancockii","Ahan","4026.55.350",null,null,null,null,null,null,15508,"CHE",3,null,"Chengue Pastos",null,1809,"Raul Navas Camacho"]
["Porites divaricata","Pdiv",null,null,null,null,null,null,null,"Antipathes hirta","Ahir","8.55.6630","CNIDARIA",null,null,null,null,null,14297,"CHE",1,"Compartida con CARICOMP.La parcela del nivel somero (3-5 m) presenta una cobertura coralina _x000D_\r\r\naproximada del 29% dada principalmente por Montastraea faveolata y esqueletos de _x000D_\r\r\nAcropora palmata (algunas colonias vivas). _x000D_\r\r\nLas parcelas media (9-10 m) y profunda (15-16) tienen coberturas de 22% y 21%_x000D_\r\r\n respectivamente y están dominadas por una franja amplia de pendiente suave conformada por _x000D_\r\r\n corales masivos e incrustantes de Diploria spp, Montastraea faveolata y M. cavernosa principalmente._x000D_\r\r\n  El relieve de éstas dos últimas parcelas no es fuerte ya que no hay tamaños de colonias considerables, _x000D_\r\r\n  pero si hay una zona de relieve complejo muy cerca de los transectos la cual es dominada por colonias _x000D_\r\r\n  muy grandes de crecimiento montañoso de M. faveolata. En la parcela media se pueden observar además _x000D_\r\r\n  abundantes colonias medianas de gorgonáceos de la especie Eunicea fusca","Chengue..C1",null,5749,"Shanly Carolina Coneo Gómez"]
["Pocillopora elegans","Pele",null,null,null,null,null,null,null,"Agaricia humilis","Ahum","8.55.6398","CNIDARIA",null,null,null,null,null,14298,"CHE",2,"Las formaciones coralinas y el tipo de relieve son similares a los de C1 exceptuando _x000D_\r\r\nque en el nivel somero (3-6 m) de C2 hay mayor cobertura coralina (38%), _x000D_\r\r\nse pueden observar además cabezas grandes de Siderastrea siderea y _x000D_\r\r\nlos arrecifes de las parcelas media (9-11 m) y profunda (15-17 m), _x000D_\r\r\ndescienden como un talud de pendiente más fuerte. _x000D_\r\r\nLa cobertura de las parcelas media y profunda es de 40% y 31% _x000D_\r\r\nrespectivamente y dichos niveles presentan abundantes cabezas de Montastraea cavernosa_x000D_\r\r\ny Diploria strigosa, así como algunas colonias de gorgonáceos de tamaño considerable principalmente _x000D_\r\r\ndel género Plexaura sp. Debido a que las parcelas media y profunda están ubicados más hacia afuera _x000D_\r\r\nde la bahía, presentan un poco de oleaje de diciembre a abril por la fuerte acción de los _x000D_\r\r\nvientos alisios, lo cual dificulta el muestreo de los transectos de cadena durante esa _x000D_\r\r\népoca","Chengue..C2",null,8266,"Zulay Saudith González Herrera"]
["Pseudopterogorgia elizabethae","Peli",null,null,null,null,null,null,null,"Anthopleura krebsi","Akre","8.55.6822","CNIDARIA",null,null,null,null,null,41704,"CIN",2,"Cinto expuesto  Occidente","Cinto expuesto"]
["Penicillus sp.","Peni",null,null,null,null,null,null,null,"Agaricia lamarcki","Alam","8.55.2500","CNIDARIA",null,null,null,null,null,41703,"CIN",1,"Cinto protegido Oriente","Cinto protegido"]
["Pocillopora eydouxi","Peyd",null,null,null,null,null,null,null,"Antipathes lenta","Alen","8.55.5980","CNIDARIA",null,null,null,null,null,14325,"MAL",1,null,"El Arrecife"]
["Peyssonnelia sp.","Peys",null,null,null,null,null,null,null,"Amphiroa fragilissima","Amfr","4026.55.340",null,null,null,null,null,null,14315,"CAN",1,null,"El Canal 1"]
["Pseudoplexaura flagellosa","Pfla",null,null,null,null,null,null,null,"Alicia mirabilis","Amir","8.55.1640","CNIDARIA",null,null,null,null,null,14316,"CAN",2,null,"El Canal 2"]
["Plexaura flexuosa","Pfle",null,null,null,null,null,null,null,"Amphiroa sp.","Amph","4026.46.370",null,null,null,null,null,null,14303,"MRO",1,null,"El Morro"]
["Phacelocyathus flos","Pflo",null,null,null,null,null,null,null,"Antipathes gracilis","Angr","8.55.1280","CNIDARIA",null,null,null,null,null,14309,"EMI",1,null,"Emisario 1"]
["Pavona frondifera","Pfro",null,null,null,null,null,null,null,"Arachnanthus nocturnus","Anoc","8.18.80","CNIDARIA",null,null,null,null,null,14310,"EMI",2,null,"Emisario 2"]
["Porites furcata","Pfur",null,null,null,null,null,null,null,"Antipathes sp.","Anti","8.46.510","CNIDARIA",null,null,null,null,null,14302,"GAY",1,null,"Gayraca 1"]
["Pavona gigantea","Pgig",null,null,null,null,null,null,null,"Acropora palmata","Apal","8.55.2400","CNIDARIA",null,null,null,null,null,14323,"GAY",2,null,"Gayraca 2"]
["Palythoa grandis","Pgra",null,null,null,null,null,null,null,"Aplysina archeri","Apar","4.55.146",null,null,null,null,null,null,14324,"GRA",1,null,"Granate 1"]
["Plexaurella grisea","Pgri",null,null,null,null,null,null,null,"Antipathes pennacea","Apen","8.55.1320","CNIDARIA",null,null,null,null,null,14339,"IGU",1,null,"Iguana"]
["Pterogorgia guadalupensis","Pgua",null,null,null,null,null,null,null,"Aplysina sp.","Aply","4.46.320",null,null,null,null,null,null,41546,"ARE",1,null,"Isla Arena"]
["Padina gymnospora","Pgym",null,null,null,null,null,null,null,"Acropora prolifera","Apro","8.55.2420","CNIDARIA",null,null,null,null,null,41545,"IGR",1,null,"Isla Grande"]
["Phymanthus crucifer","Phcr",null,null,null,null,null,null,null,"Amphiroa rigida","Arig","4026.55.370",null,null,null,null,null,null,48967,"JCA",1,"Johnny Cay","Johnny Cay"]
["Phyllactis flosculifera","Phfl",null,null,null,null,null,null,null,"Agelas schmidti","Asch","4.55.233",null,null,null,null,null,null,14296,"CHO",1,"ubicada a 6º","La Chola 1"]
["Plexaura homomalla","Phom",null,null,null,null,null,null,null,"Astrangia solitaria","Asol","8.55.3400","CNIDARIA",null,null,null,null,null,14326,"CHO",2,"Parcela media localizada a 6º 0' 47.04","La Chola 2"]
["Padina jamaicensis","Pjam",null,null,null,null,null,null,null,"Ascidia sydneiensis","Asyd","70.46.1059",null,null,null,null,null,null,14304,"CHO",3,"es una parcela somera localizada a 6º 0' 40.9","La Chola 3"]
["Plexaura sp.","Plex",null,null,null,null,null,null,null,"Aiptasia tagetes","Atag","8.55.6820","CNIDARIA",null,null,null,null,null,14327,"CHO",4,"Cobertura del 33%","La Chola 4"]
["Plexaurella sp.","Plla",null,null,null,null,null,null,null,"Antipathes tanacetum","Atan","8.55.6632","CNIDARIA",null,null,null,null,null,14328,"CHO",5,null,"La Chola 5"]
["Porites lobata","Plob",null,null,null,null,null,null,null,"Agaricia tenuifolia","Aten","8.55.2480","CNIDARIA",null,null,null,null,null,14329,"CHO",6,null,"La Chola 6"]
["Pavona maldiviensis","Pmal",null,null,null,null,null,null,null,"Amphiroa tribulus","Atri","4026.55.390",null,null,null,null,null,null,37122,"COC",1,null,"La Coca"]
["Palythoa mammillosa","Pmam",null,null,null,null,null,null,null,"Agaricia undata","Aund","8.55.2540","CNIDARIA",null,null,null,null,null,43098,"MAL",2,null,"La Nevera"]
["Pocillopora meandrites","Pmea",null,null,null,null,null,null,null,"Agelas wiedenmyeri","Awie","4.55.202",null,null,null,null,null,null,41695,"VEN",4,null,"La Ventana Norte Externa -VEN 4"]
["Plexaura nina","Pnin",null,null,null,null,null,null,null,"Balanophyllia sp.","Bala","8.46.1300","CNIDARIA",null,null,null,null,null,41694,"VEN",3,null,"La Ventana Norte Interna -VEN 3"]
["Plexaurella nutans","Pnut",null,null,null,null,null,null,null,"Bartholomea annulata","Bann","8.55.1900","CNIDARIA",null,null,null,null,null,41692,"VEN",1,null,"La Ventana Sur Externa -VEN 1"]
["Pocillopora sp.","Poci",null,null,null,null,null,null,null,"Bartholomea sp.","Bart","8.46.720","CNIDARIA",null,null,null,null,null,41693,"VEN",2,null,"La Ventana Sur Interna -VEN 2"]
["Psammocora sp.","Pora",null,null,null,null,null,null,null,"Briareum asbestinum","Basb","8.55.60","CNIDARIA",null,null,null,null,null,41547,"PAL",1,null,"Las Palmas"]
["Porites sp.","Pori",null,null,null,null,null,null,null,"Balanophyllia floridana","Bflo","8.55.6832","CNIDARIA",null,null,null,null,null,41699,"MAR",1,null,"MARACAIBO"]
["Porolithon sp.","Poro",null,null,null,null,null,null,null,"Bunodosoma granuliferum","Bgra","8.55.1720","CNIDARIA",null,null,null,null,null,14305,"MAN",1,"ubicada frente a Isla Mangle en dirección N. Parcela en el nivel somero (4.5-6 m) que presenta una cobertura del 48%. _x000D_\r\r\nSe caracteriza porque la pendiente del fondo es imperceptible y porque presenta un relieve arrecifal _x000D_\r\r\ncomplejo compuesto por colonias muy grandes de Montastraea annularis y M. faveolata principalmente;_x000D_\r\r\n también es posible observar comúnmente Porites astreoides, P. porites y Millepora alcicornis. _x000D_\r\r\n El arrecife no es compacto y por lo tanto pueden observarse frecuentemente considerables parches _x000D_\r\r\n de sedimentos gruesos.","Mangle 1"]
["Porolithon pachydermum","Ppac",null,null,null,null,null,null,null,"Bostrychia montagnei","Bmon","4026.55.3600",null,null,null,null,null,null,14307,"MAN",2,"La estación Mangle 2. Parcela en el nivel medio (9-11.5 m), _x000D_\r\r\nubicada sobre un arrecife muy compacto de relieve complejo, la pendiente del fondo es_x000D_\r\r\n suave y tiene una cobertura coralina del 31% aproximadamente. Se pueden observar corales de _x000D_\r\r\n 19 especies pero los más abundantes son M. franksi, P. astreoides y Agaricia tenuifolia y _x000D_\r\r\n también hay otras importantes como M. annularis, M. faveolata y P. porites entre otros. Después_x000D_\r\r\n de este arrecife, el fondo se precipita en un talud mayor que termina en amplios canales de arena _x000D_\r\r\n a los 15-18 m","Mangle 2"]
["Porites panamensis","Ppan",null,null,null,null,null,null,null,"Briareum sp.","Bria","8.46.50","CNIDARIA",null,null,null,null,null,14317,"MAZ",1,null,"Manzanillo 1"]
["Parazoanthus parasiticus","Ppar",null,null,null,null,null,null,null,"Cinachyra alloclada","Call","4.55.238",null,null,null,null,null,null,14318,"MAZ",2,null,"Manzanillo 2"]
["Porites porites","Ppor",null,null,null,null,null,null,null,"Caryophyllia maculata","Cama","8.46.1140","CNIDARIA",null,null,null,null,null,41698,"MRC",1,"Marcelas place","Marcela's place"]
["Parazoanthus puertoricense","Ppue",null,null,null,null,null,null,null,"Cladocora arbuscula","Carb","8.55.3200","CNIDARIA",null,null,null,null,null,14306,"MIN",1,"Ubicada hacia el noroeste de Isla Mucura._x000D_\r\r\nEsta estación es una parcela somera (6-7 m)_x000D_\r\r\n con una cobertura coralina del 33% cuyo fondo tiene una pendiente imperceptible y forma _x000D_\r\r\n parte de una terraza muy extensa. Sus arrecifes forman parches alargados que algunas veces _x000D_\r\r\n se conectan entre sí o están separados por áreas de sedimento de origen calcáreo y aparentemente _x000D_\r\r\n son arenas gruesas. Los corales pueden ser cabezas de variados tamaños de Montastraea spp, _x000D_\r\r\n Siderastrea siderea, Colpophyllia natans, Diploria spp. y Porites porites. Las algas y los_x000D_\r\r\n  octocorales son muy abundantes y estos últimos alcanzan tamaños considerables","Minalta"]
["Pseudopterogorgia americana","Psam",null,null,null,null,null,null,null,"Caryophyllia sp.","Cary","8.46.1140","CNIDARIA",null,null,null,null,null,56790,"4400147CORA100",1,null,"Morro Acropora (MRAC)"]
["Padina sanctae-crucis","Psan",null,null,null,null,null,null,null,"Caulerpa sertularioides","Case","4020.55.17671",null,null,null,null,null,null,42263,"NCH",1,"Narrow Channel","Narrow Channel"]
["Pseudopterogorgia bipinnata","Psbi",null,null,null,null,null,null,null,"Caulerpa sp.","Caul","4020.46.569",null,null,null,null,null,null,41702,"NEG",2,null,"Neguanje expuesto"]
["Pseudocorynactis caribbeorum","Psca",null,null,null,null,null,null,null,"Colpophyllia breviserialis","Cbre","8.55.2980","CNIDARIA",null,null,null,null,null,41701,"NEG",1,null,"Neguanje protegido"]
["Pseudoceratina sp.","Pseu",null,null,null,null,null,null,null,"Caulerpa cupressoides","Ccup","4020.55.3578",null,null,null,null,null,null,37120,"NET",1,"Bajo coralino en la barrera de providencia, alejado varios km al noroeste de la isla","No Entry"]
["Pseudopterogorgia sp.","Psia",null,null,null,null,null,null,null,"Caryophyllia flos","Cflo","8.55.6460","CNIDARIA",null,null,null,null,null,52325,"NET",2,"Bajo coralino en la barrera de providencia, alejado varios km al noroeste de la isla","No Entry 2"]
["Pseudoplexaura porosa","Pspo",null,null,null,null,null,null,null,"Condylactis gigantea","Cgig","8.55.1740","CNIDARIA",null,null,null,null,null,14300,"PAV",1,"Isla Rosario, Pavitos. El ambiente de esta estación en los tres niveles de profundidad difiere considerablemente al de tesoro _x000D_\r\r\npues pavitos está dominado por corales de crecimiento foliáceo del tipo Agaricia sp,_x000D_\r\r\n los gorgonáceos están prácticamente ausentes y se presentan gran cantidad de esponjas de variados _x000D_\r\r\n tamaños, formas de crecimiento y colores. La parcela somera de monitoreo está ubicada_x000D_\r\r\n  sobre la plataforma o terraza que rodea la Isla Pavitos y presenta una cobertura coralina _x000D_\r\r\n  del 31% y cerca se observa un talud de pendiente fuerte y de sustrato frágil donde _x000D_\r\r\n  se localizan las parcelas de los niveles medio (9-12 m) y profundo (16-18 m)._x000D_\r\r\n  En el nivel somero también pueden observarse comúnmente algunas cabezas medianas de _x000D_\r\r\n  Montastraea annularis y M. faveolata mientras en el profundo hay abundantes colonias _x000D_\r\r\n  de M. franksi. Los niveles medio y profundo presenta una cobertura coralina del 40% y 30%_x000D_\r\r\n   respectivamente_x000D_","Pavitos"]
["Pseudoplexaura sp.","Psra",null,null,null,null,null,null,null,"Colangia immersa","Cimm","8.55.6486","CNIDARIA",null,null,null,null,null,14295,"PLA",2,"A unos 150m de la costa en marea baja","Playa Blanca norte medio 2"]
["Psammocora stellata","Pste",null,null,null,null,null,null,null,"Cinachyra sp.","Cina","4.46.469",null,null,null,null,null,null,41690,"PLA",3,"Ubicada al norte de la formación coralina","Playa Blanca norte somero 3"]
["Parazoanthus swiftii","Pswi",null,null,null,null,null,null,null,"Codium intertextum","Cint","4020.55.2573",null,null,null,null,null,null,41691,"PLA",4,"Ubicada al norte de la formación coralina","Playa Blanca sur medio 4"]
["Pterogorgia sp.","Pter",null,null,null,null,null,null,null,"Cladopsammia sp.","Clad","8.46.1915","CNIDARIA",null,null,null,null,null,14343,"PLA",1,"Ubicada al sur de la formación coralina","Playa Blanca sur somero 1"]
["Parazoanthus tunicans","Ptun",null,null,null,null,null,null,null,"Caulerpa lanuginosa","Clan","4020.55.21640",null,null,null,null,null,null,52865,"PBLA",1,null,"Playa Blanca-Barú (PNN Corales del Rosario y San Bernardo)"]
["Pavona varians","Pvar",null,null,null,null,null,null,null,"Cladocora sp.","Cldo","8.46.970","CNIDARIA",null,null,null,null,null,41548,"PBR",1,null,"Punta Brava"]
["Pseudoplexaura wagenaari","Pwag",null,null,null,null,null,null,null,"Cirrhipathes leutkeni","Cleu","8.55.1360","CNIDARIA",null,null,null,null,null,14321,"SFE",1,null,"San Felipe 1"]
["Ricordia florida","Rflo",null,null,null,null,null,null,null,"Cliona sp.","Clio","4.46.375",null,null,null,null,null,null,14322,"SFE",2,null,"San Felipe 2"]
["Rhipocephalus sp.","Rhip",null,null,null,null,null,null,null,"Caulerpa mexicana","Cmex","4020.55.10593",null,null,null,null,null,null,14299,"TES",1,"Isla Rosario, el Tesoro. está ubicada en una cuenca lagunar de poca pendiente y relieve complejo, _x000D_\r\r\npresenta una cobertura aproximada del 45% y se observan cabezas coralinas _x000D_\r\r\ngrandes dominadas por Montastraea annularis. Es posible observar también _x000D_\r\r\notros corales de crecimiento masivo y cobertura importante como M. faveolata, _x000D_\r\r\nDiploria labyrinthiformis y Colpophyllia natans mezclados con parches amplios de arena._x000D_\r\r\n También se presentan abundantes gorgonáceos de los géneros Briareum sp. y Pseudoplexaura sp. _x000D_\r\r\n Después del plano se presenta hacia afuera un talud de pendiente media y relieve complejo donde _x000D_\r\r\n están ubicados las parcelas de los niveles medio (9-12 m) y profundo (16-19 m). El nivel medio _x000D_\r\r\n tiene una cobertura coralina del 24% y es un ambiente de corales masivos mixtos como M. annularis, _x000D_\r\r\n M franksi y C. natans, mientras el profundo presenta una cobertura mayor (35%) y está dominado por M. _x000D_\r\r\n franksi que forma colonias grandes con bordes tipo terraza. En la parcela profunda se presentan colonias _x000D_\r\r\n aisladas de látigos del género Ellisella sp","Tesoro 1"]
["Ricordia sp.","Rico",null,null,null,null,null,null,null,"Colpophyllia natans","Cnat","8.55.3000","CNIDARIA",null,null,null,null,null,41549,"TES",2,null,"Tesoro Oriental"]
["Rhizosmilia maculata","Rmac",null,null,null,null,null,null,null,"Codium sp.","Codi","4020.46.570",null,null,null,null,null,null,14319,"BAR",1,null,"The Bar 1"]
["Rhodactis sanctithomae","Rsan",null,null,null,null,null,null,null,"Coenocyathus sp.","Coen","8.46.1250","CNIDARIA",null,null,null,null,null,14320,"BAR",2,null,"The Bar 2"]
["Sargassum sp.","Sarg",null,null,null,null,null,null,null,"Colangia sp.","Cola","8.46.1900","CNIDARIA",null,null,null,null,null,41697,"TNT",1,"Tintipan 1 Somero","Tintipan 1 Somero"]
["Solenastrea bournoni","Sbou",null,null,null,null,null,null,null,"Colpophyllia sp.","Colp","8.46.950","CNIDARIA",null,null,null,null,null,41696,"TNT",2,"Tintipan 2 Medio","Tintipan 2 Medio"]
["Scolymia sp.","Scol",null,null,null,null,null,null,null,"Condylactis sp.","Cond","8.46.660","CNIDARIA",null,null,null,null,null,14332,"TIO",1,"localizada al noroeste de Isla Tintipan a 9º","Tiosolda"]
["Scolymia cubensis","Scub",null,null,null,null,null,null,null,"Caulerpa paspaloides","Cpas","4020.55.21645",null,null,null,null,null,null,49084,"VAR",1,"Varadero 1","Varadero 1"]
["Swiftia exserta","Sexs",null,null,null,null,null,null,null,"Caulerpa prolifera","Cpro","4020.55.14599",null,null,null,null,null,null,49085,"VAR",2,"Varadero 2","Varadero 2"]
["Solenastrea hyades","Shya",null,null,null,null,null,null,null,"Caulerpa racemosa","Crac","4020.55.16602",null,null,null,null,null,null,49086,"VAR",3,"Varadero 3","Varadero 3"]
["Siderastrea sp.","Side",null,null,null,null,null,null,null,"Carijoa riisei","Crii","8.55.40","CNIDARIA",null,null,null,null,null,41700,"WHI",1,null,"White  Shoal"]
["Stephanocoenia intersepta","Sint",null,null,null,null,null,null,null,"Caulerpa serrulata","Cser","4020.55.18613",null,null,null,null,null,null,14340,"WLF",1,"La parcela somera está localizada a 12º 30' 4","Wild Life"]
["Scolymia lacera","Slac",null,null,null,null,null,null,null,"Colangia simplex","Csim","8.55.6834","CNIDARIA",null,null,null,null,null,14335,"ZAP",1,"Ubicada afuera de la punta rocosa que cierra la ensenada","Zapsurro M"]
["Stichopathes lutkeni","Slut",null,null,null,null,null,null,null,"Caulerpa taxifolia","Ctax","4020.55.19620"]
["Stephanocoenia michelini","Smic",null,null,null,null,null,null,null,"Calliactis tricolor","Ctri","8.55.1880","CNIDARIA"]
["Solenastrea sp.","Sole",null,null,null,null,null,null,null,"Caulerpa verticillata","Cver","4020.55.20621"]
["Siderastrea radians","Srad",null,null,null,null,null,null,null,"Discosoma carlgreni","Dcar","8.55.4500","CNIDARIA"]
["Stylaster roseus","Sros",null,null,null,null,null,null,null,"Dictyosphaeria cavernosa","Dcav","4020.55.750"]
["Siderastrea siderea","Ssid",null,null,null,null,null,null,null,"Diploria clivosa","Dcli","8.55.2860","CNIDARIA"]
["Stereotelesto corallina","Stco",null,null,null,null,null,null,null,"Dendrogyra cylindricus","Dcyl","8.55.3580","CNIDARIA"]
["Stephanocoenia sp.","Step",null,null,null,null,null,null,null,"Dictyota dichotoma","Ddic","4024.55.265"]
["Stoichactis helianthus","Sthe",null,null,null,null,null,null,null,"Dichocoenia sp.","Dich","8.46.1070","CNIDARIA"]
["Stichodactyla sp.","stic",null,null,null,null,null,null,null,"Dictyota sp.","Dict","4024.46.115"]
["Stoichactis sp.","Stoi",null,null,null,null,null,null,null,"Dictyosphaeria sp.","Diia","4020.46.743"]
["Scolymia wellsi","Swel",null,null,null,null,null,null,null,"Dictyopteris sp.","Diis","4024.46.105"]
["Swiftia sp.","Swif",null,null,null,null,null,null,null,"Diploria sp.","Dipl","8.46.930","CNIDARIA"]
["Stypopodium zonale","Szon",null,null,null,null,null,null,null,"Discosoma sp.","Disc","8.46.1340","CNIDARIA"]
["Tubastraea aurea","Taur",null,null,null,null,null,null,null,"Diploria labyrinthiformis","Dlab","8.55.2900","CNIDARIA"]
["Telesto sp.","Tele",null,null,null,null,null,null,null,"Discosoma neglecta","Dneg","8.55.4460","CNIDARIA"]
["Telmatactis sp.","Telm",null,null,null,null,null,null,null,"Diodogorgia nodulifera","Dnod","8.55.100","CNIDARIA"]
["Telesto fruticulosa","Tfru",null,null,null,null,null,null,null,"Discosoma sanctithomae","Dsan","8.55.4480","CNIDARIA"]
["Titanoderma sp.","Tita",null,null,null,null,null,null,null,"Dichocoenia stellaris","Dste","8.55.3560","CNIDARIA"]
["Thesea nivea","Tniv",null,null,null,null,null,null,null,"Dichocoenia stokesii","Dsto","8.55.3540","CNIDARIA"]
["Turbinaria tricostata","Ttri",null,null,null,null,null,null,null,"Diploria strigosa","Dstr","8.55.2920","CNIDARIA"]
["Turbinaria turbinata","Ttur",null,null,null,null,null,null,null,"Ellisella barbadensis","Ebar","8.55.1180","CNIDARIA"]
["Tubastraea sp.","Tuba",null,null,null,null,null,null,null,"Eunicea calyculata","Ecal","8.55.420","CNIDARIA"]
["Turbinaria sp.","Turb",null,null,null,null,null,null,null,"Erythropodium caribaeorum","Ecar","8.55.120","CNIDARIA"]
["Ulosa hispida","Uhis",null,null,null,null,null,null,null,"Ectyoplasia ferox","Ecfe","4.55.76"]
["Valonia sp.","Valo",null,null,null,null,null,null,null,"Eunicea clavigera","Ecla","8.55.500","CNIDARIA"]
["Ventricaria sp.","Vent",null,null,null,null,null,null,null,"Epicystis crucifer","Ecru","8.55.1780","CNIDARIA"]
["Viatrix sp.","Viat",null,null,null,null,null,null,null,"Ellisella elongata","Eelo","8.55.1160","CNIDARIA"]
["Valonia macrophysa","Vmac",null,null,null,null,null,null,null,"Eusmilia fastigiata","Efas","8.55.4000","CNIDARIA"]
["Ventricaria ventricosa","Vven",null,null,null,null,null,null,null,"Eunicea fusca","Efus","8.55.520","CNIDARIA"]
["Wrangelia sp.","Wran",null,null,null,null,null,null,null,"Eunicea laciniata","Elac","8.55.480","CNIDARIA"]
["Xestospongia muta","Xmut",null,null,null,null,null,null,null,"Ellisella sp.","Elli","8.46.430","CNIDARIA"]
["Zoanthus sp.","Zoan",null,null,null,null,null,null,null,"Eunicea mammosa","Emam","8.55.400","CNIDARIA"]
["Zoanthus pulchellus","Zpul",null,null,null,null,null,null,null,"Eunicea palmeri","Epal","8.55.6836","CNIDARIA"]
["Agaricia agaricites","Aaga",null,null,null,null,null,null,null,"Eunicea pinta","Epin","8.55.6838","CNIDARIA"]
["Antipathes atlantica","Aatl",null,null,null,null,null,null,null,"Erythropodium sp.","Eryt","8.46.100","CNIDARIA"]
["Antipathes barbadensis","Abar",null,null,null,null,null,null,null,"Eunicea succinea","Esuc","8.55.340","CNIDARIA"]
["Actinia bermudensis","Aber",null,null,null,null,null,null,null,"Eunicea tourneforti","Etou","8.55.440","CNIDARIA"]
["Amphiroa brasiliana","Abra",null,null,null,null,null,null,null,"Eunicea sp.","Euni","8.46.310","CNIDARIA"]
["Acropora cervicornis","Acer",null,null,null,null,null,null,null,"Eusmilia sp.","Eusm","8.46.1180","CNIDARIA"]
["Agelas clathrodes","Acla",null,null,null,null,null,null,null,"Favia sp.","Favi","8.46.920","CNIDARIA"]
["Agelas conifera","Acon",null,null,null,null,null,null,null,"Favia fragum","Ffra","8.55.2840","CNIDARIA"]
["Acropora sp.","Acro",null,null,null,null,null,null,null,"Galaxaura sp.","Gala","4026.46.590"]
["Agelas dispar","Adis",null,null,null,null,null,null,null,"Gardineroseris sp.","Gard","8.46.870","CNIDARIA"]
["Actinoporus elegans","Aele",null,null,null,null,null,null,null,"Gorgonia flabellum","Gfla","8.55.1080","CNIDARIA"]
["Agaricia fragilis","Afra",null,null,null,null,null,null,null,"Galaxaura marginata","Gmar","4026.55.600"]
["Aplysina fulva","Aful",null,null,null,null,null,null,null,"Galaxaura oblongata","Gobl","4026.55.660"]
["Agaricia sp.","Agar",null,null,null,null,null,null,null,"Gorgonia mariae","Goma","8.55.6840","CNIDARIA"]
["Agelas sp.","Agel",null,null,null,null,null,null,null,"Gorgonia sp.","Gorg","8.46.400","CNIDARIA"]
["Agaricia grahamae","Agra",null,null,null,null,null,null,null,"Gardineroseris planulata","Gpla","8.55.2680","CNIDARIA"]
["Amphiroa hancockii","Ahan",null,null,null,null,null,null,null,"Gracilaria sp.","Grac","4026.46.1150"]
["Antipathes hirta","Ahir",null,null,null,null,null,null,null,"Galaxaura subverticillata","Gsub","4026.55.630"]
["Agaricia humilis","Ahum",null,null,null,null,null,null,null,"Gorgonia ventalina","Gven","8.55.1040","CNIDARIA"]
["Anthopleura krebsi","Akre",null,null,null,null,null,null,null,"Halimeda sp.","Hali","4020.46.783"]
["Agaricia lamarcki","Alam",null,null,null,null,null,null,null,"Halimeda copiosa","Hcop","4020.55.654"]
["Antipathes lenta","Alen",null,null,null,null,null,null,null,"Helioseris cucullata","Hcuc","8.55.2580","CNIDARIA"]
["Amphiroa fragilissima","Amfr",null,null,null,null,null,null,null,"Halimeda discoidea","Hdis","4020.55.1655","CHLOROPHYTA",null,null,"HALIMEDACEAE"]
["Alicia mirabilis","Amir",null,null,null,null,null,null,null,"Helioseris sp.","Heli","8.46.850","CNIDARIA"]
["Amphiroa sp.","Amph",null,null,null,null,null,null,null,"Hippopodina feegeensis","Hfee","40.18.10"]
["Antipathes gracilis","Angr",null,null,null,null,null,null,null,"Halimeda goreaui","Hgor","4020.55.2656"]
["Arachnanthus nocturnus","Anoc",null,null,null,null,null,null,null,"Halimeda incrassata","Hinc","4020.55.4658"]
["Antipathes sp.","Anti",null,null,null,null,null,null,null,"Halimeda lacrimosa","Hlac","4020.55.21670"]
["Acropora palmata","Apal",null,null,null,null,null,null,null,"Halimeda monile","Hmon","4020.55.5659"]
["Aplysina archeri","Apar",null,null,null,null,null,null,null,"Halimeda opuntia","Hopu","4020.55.7660"]
["Antipathes pennacea","Apen",null,null,null,null,null,null,null,"Hypnogorgia pendula","Hpen","8.55.6660","CNIDARIA"]
["Aplysina sp.","Aply",null,null,null,null,null,null,null,"Hydroides spongicola","Hspo","54.55.3180"]
["Acropora prolifera","Apro",null,null,null,null,null,null,null,"Halimeda tuna","Htun","4020.55.9662"]
["Amphiroa rigida","Arig",null,null,null,null,null,null,null,"Heterogorgia uatumani","Huat","8.55.6842","CNIDARIA"]
["Agelas schmidti","Asch",null,null,null,null,null,null,null,"Iotrochota birotulata","Ibir","4.55.55","Porifera",null,null,"IOTROCHOTIDAE"]
["Astrangia solitaria","Asol",null,null,null,null,null,null,null,"Iciligorgia sp.","Icil","8.46.60","CNIDARIA"]
["Ascidia sydneiensis","Asyd",null,null,null,null,null,null,null,"Iotrochota birotulata","Iobi","4.55.55"]
["Aiptasia tagetes","Atag",null,null,null,null,null,null,null,"Ircinia sp.","Irci","4.46.475"]
["Antipathes tanacetum","Atan",null,null,null,null,null,null,null,"Isophyllastrea rigida","Irig","8.55.3700","CNIDARIA"]
["Agaricia tenuifolia","Aten",null,null,null,null,null,null,null,"Iciligorgia schrammi","Isch","8.55.80","CNIDARIA"]
["Amphiroa tribulus","Atri",null,null,null,null,null,null,null,"Isophyllia sp.","Isia","8.46.1110","CNIDARIA"]
["Agaricia undata","Aund",null,null,null,null,null,null,null,"Isophyllia sinuosa","Isin","8.55.3680","CNIDARIA"]
["Agelas wiedenmyeri","Awie",null,null,null,null,null,null,null,"Isophyllastrea sp.","Isop","8.46.1120","CNIDARIA"]
["Balanophyllia sp.","Bala",null,null,null,null,null,null,null,"Ircinia strobilina","Istr","4.55.131"]
["Bartholomea annulata","Bann",null,null,null,null,null,null,null,"Jania adherens","Jadh","4026.55.240"]
["Bartholomea sp.","Bart",null,null,null,null,null,null,null,"Jania sp.","Jani","4026.46.330"]
["Briareum asbestinum","Basb",null,null,null,null,null,null,null,"Jania rubens","Jrub","4026.55.260"]
["Balanophyllia floridana","Bflo",null,null,null,null,null,null,null,"Lophogorgia alba","Lalb","8.55.6848","CNIDARIA"]
["Bunodosoma granuliferum","Bgra",null,null,null,null,null,null,null,"Liagora ceranoides","Lcer","4026.55.540"]
["Bostrychia montagnei","Bmon",null,null,null,null,null,null,null,"Lebrunia coralligens","Lcor","8.55.1600","CNIDARIA"]
["Briareum sp.","Bria",null,null,null,null,null,null,null,"Leptoseris cucullata","Lcuc","8.55.2580","CNIDARIA"]
["Cinachyra alloclada","Call",null,null,null,null,null,null,null,"Lebrunia danae","Ldan","8.55.1620","CNIDARIA"]
["Caryophyllia maculata","Cama",null,null,null,null,null,null,null,"Lebrunia sp.","Lebr","8.46.580","CNIDARIA"]
["Cladocora arbuscula","Carb",null,null,null,null,null,null,null,"Leptoseris sp.","Lept","8.46.840","CNIDARIA"]
["Caryophyllia sp.","Cary",null,null,null,null,null,null,null,"Liagora farinosa","Lfar","4026.55.530"]
["Caulerpa sertularioides","Case",null,null,null,null,null,null,null,"Lophogorgia sp.","Lgia","8.46.360","CNIDARIA"]
["Caulerpa sp.","Caul",null,null,null,null,null,null,null,"Lophogorgia hebes","Lheb","8.55.6844","CNIDARIA"]
["Colpophyllia breviserialis","Cbre",null,null,null,null,null,null,null,"Liagora sp.","Liag","4026.46.530"]
["Caulerpa cupressoides","Ccup",null,null,null,null,null,null,null,"Lophogorgia miniata","Lmin","8.55.860","CNIDARIA"]
["Caryophyllia flos","Cflo",null,null,null,null,null,null,null,"Liagora mucosa","Lmuc","4026.55.3590"]
["Condylactis gigantea","Cgig",null,null,null,null,null,null,null,"Lobophora sp.","Lobo","4024.46.125"]
["Colangia immersa","Cimm",null,null,null,null,null,null,null,"Lophogorgi sp.","Loph","8.46.360","CNIDARIA"]
["Cinachyra sp.","Cina",null,null,null,null,null,null,null,"Liagora pinnata","Lpin","4026.55.3595"]
["Codium intertextum","Cint",null,null,null,null,null,null,null,"Lobophora variegata","Lvar","4024.55.295"]
["Cladopsammia sp.","Clad",null,null,null,null,null,null,null,"Lophogorgia virgulata","Lvir","8.55.6846","CNIDARIA"]
["Caulerpa lanuginosa","Clan",null,null,null,null,null,null,null,"Madracis sp.","Madr","8.46.800","CNIDARIA"]
["Cladocora sp.","Cldo",null,null,null,null,null,null,null,"Millepora alcicornis","Malc","8.55.5600","CNIDARIA"]
["Cirrhipathes leutkeni","Cleu",null,null,null,null,null,null,null,"Mycetophyllia aliciae","Mali","8.55.3800","CNIDARIA"]
["Cliona sp.","Clio",null,null,null,null,null,null,null,"Mussa angulosa","Mang","8.55.3640","CNIDARIA"]
["Caulerpa mexicana","Cmex",null,null,null,null,null,null,null,"Manicina sp.","Mani","8.46.940","CNIDARIA"]
["Colpophyllia natans","Cnat",null,null,null,null,null,null,null,"Montastraea annularis","Mann","8.55.3120","CNIDARIA"]
["Codium sp.","Codi",null,null,null,null,null,null,null,"Manicina areolata","Mare","8.55.2940","CNIDARIA"]
["Coenocyathus sp.","Coen",null,null,null,null,null,null,null,"Martensia sp.","Mart","4026.46.1930"]
["Colangia sp.","Cola",null,null,null,null,null,null,null,"Muricea atlantica","Matl","8.55.740","CNIDARIA"]
["Colpophyllia sp.","Colp",null,null,null,null,null,null,null,"Montastraea cavernosa","Mcav","8.55.3140","CNIDARIA"]
["Condylactis sp.","Cond",null,null,null,null,null,null,null,"Millepora complanata","Mcom","8.55.5620","CNIDARIA"]
["Caulerpa paspaloides","Cpas",null,null,null,null,null,null,null,"Mycetophyllia danaana","Mdan","8.55.3820","CNIDARIA"]
["Caulerpa prolifera","Cpro",null,null,null,null,null,null,null,"Madracis decactis","Mdec","8.55.2140","CNIDARIA"]
["Caulerpa racemosa","Crac",null,null,null,null,null,null,null,"Meandrina sp.","Mean","8.46.1060","CNIDARIA"]
["Carijoa riisei","Crii",null,null,null,null,null,null,null,"Muricea elongata","Melo","8.55.720","CNIDARIA"]
["Caulerpa serrulata","Cser",null,null,null,null,null,null,null,"Montastraea faveolata","Mfav","8.55.3160","CNIDARIA"]
["Colangia simplex","Csim",null,null,null,null,null,null,null,"Mycetophyllia ferox","Mfer","8.55.3720","CNIDARIA"]
["Caulerpa taxifolia","Ctax",null,null,null,null,null,null,null,"Muriceopsis flavida","Mfla","8.55.560","CNIDARIA"]
["Calliactis tricolor","Ctri",null,null,null,null,null,null,null,"Madracis formosa","Mfor","8.55.2120","CNIDARIA"]
["Caulerpa verticillata","Cver",null,null,null,null,null,null,null,"Montastraea franksi","Mfra","8.55.3180","CNIDARIA"]
["Discosoma carlgreni","Dcar",null,null,null,null,null,null,null,"Millepora sp.","Mill","8.46.1720","CNIDARIA"]
["Dictyosphaeria cavernosa","Dcav",null,null,null,null,null,null,null,"Meandrina jacksoni","Mjak","8.46.1060"]
["Diploria clivosa","Dcli",null,null,null,null,null,null,null,"Mycetophyllia lamarckiana","Mlam","8.55.3840"]
["Dendrogyra cylindricus","Dcyl",null,null,null,null,null,null,null,"Manicina mayori","Mmay","8.55.6850"]
["Dictyota dichotoma","Ddic",null,null,null,null,null,null,null,"Meandrina meandrites","Mmea","8.55.3520"]
["Dichocoenia sp.","Dich",null,null,null,null,null,null,null,"Madracis mirabilis","Mmir","8.55.2160"]
["Dictyota sp.","Dict",null,null,null,null,null,null,null,"Muricea muricata","Mmur","8.55.800"]
["Dictyosphaeria sp.","Diia",null,null,null,null,null,null,null,"Montastraea sp.","Mont","8.46.960"]
["Dictyopteris sp.","Diis",null,null,null,null,null,null,null,"Muricea pendula","Mpen","8.55.780"]
["Diploria sp.","Dipl",null,null,null,null,null,null,null,"Muriceopsis petila","Mpet","8.55.6852"]
["Discosoma sp.","Disc",null,null,null,null,null,null,null,"Madracis pharensis","Mpha","8.55.2180"]
["Diploria labyrinthiformis","Dlab",null,null,null,null,null,null,null,"Muricea pinnata","Mpin","8.55.700"]
["Discosoma neglecta","Dneg",null,null,null,null,null,null,null,"Mycetophyllia reesi","Mree","8.55.3860"]
["Diodogorgia nodulifera","Dnod",null,null,null,null,null,null,null,"Madracis senaria","Msen","8.55.2220"]
["Discosoma sanctithomae","Dsan",null,null,null,null,null,null,null,"Muriceopsis sp.","Msis","8.46.320"]
["Dichocoenia stellaris","Dste",null,null,null,null,null,null,null,"Millepora squarrosa","Msqu","8.55.5640"]
["Dichocoenia stokesii","Dsto",null,null,null,null,null,null,null,"Muricea laxa","Mula","8.55.760"]
["Diploria strigosa","Dstr",null,null,null,null,null,null,null,"Muricea sp.","Muri","8.46.340"]
["Ellisella barbadensis","Ebar",null,null,null,null,null,null,null,"Mycetophyllia sp.","Myce","8.46.1130"]
["Eunicea calyculata","Ecal",null,null,null,null,null,null,null,"Niphates erecta","Nere","4.55.97"]
["Erythropodium caribaeorum","Ecar",null,null,null,null,null,null,null,"Nicella goreaui","Ngor","8.55.6854"]
["Ectyoplasia ferox","Ecfe",null,null,null,null,null,null,null,"Nicella sp.","Nice","8.46.440"]
["Eunicea clavigera","Ecla",null,null,null,null,null,null,null,"Niphates sp.","Niph","4.46.220"]
["Epicystis crucifer","Ecru",null,null,null,null,null,null,null,"Neospongodes portoricensis","Npor","8.55.6210"]
["Ellisella elongata","Eelo",null,null,null,null,null,null,null,"Nicella schmitti","Nsch","8.55.1200"]
["Eusmilia fastigiata","Efas",null,null,null,null,null,null,null,"Neogoniolithon spectabile","Nspe","4026.55.190"]
["Eunicea fusca","Efus",null,null,null,null,null,null,null,"Neogoniolithon strictum","Nstr","4026.55.3283"]
["Eunicea laciniata","Elac",null,null,null,null,null,null,null,"Oculina sp.","Ocul","8.46.1040"]
["Ellisella sp.","Elli",null,null,null,null,null,null,null,"Oculina diffusa","Odif","8.55.3480"]
["Eunicea mammosa","Emam",null,null,null,null,null,null,null,"Oculina robusta","Orob","8.55.6856"]
["Eunicea palmeri","Epal",null,null,null,null,null,null,null,"Oculina tenella","Oten","8.55.6568"]
["Eunicea pinta","Epin",null,null,null,null,null,null,null,"Oculina valenciennesi","Oval","8.55.6858"]
["Erythropodium sp.","Eryt",null,null,null,null,null,null,null,"Oculina varicosa","Ovar","8.55.6570"]
["Eunicea succinea","Esuc",null,null,null,null,null,null,null,"Pseudopterogorgia acerosa","Pace","8.55.980"]
["Eunicea tourneforti","Etou",null,null,null,null,null,null,null,"Padina sp.","Padi","4024.46.135"]
["Eunicea sp.","Euni",null,null,null,null,null,null,null,"Palythoa sp.","Paly","8.46.570"]
["Eusmilia sp.","Eusm",null,null,null,null,null,null,null,"Phyllangia americana","Pame","8.55.3260"]
["Favia sp.","Favi",null,null,null,null,null,null,null,"Pterogorgia anceps","Panc","8.55.1120"]
["Favia fragum","Ffra",null,null,null,null,null,null,null,"Parazoanthus sp.","Para","8.46.530"]
["Galaxaura sp.","Gala",null,null,null,null,null,null,null,"Porites astreoides","Past","8.55.5960"]
["Gardineroseris sp.","Gard",null,null,null,null,null,null,null,"Pavona sp.","Pavo","8.46.860"]
["Gorgonia flabellum","Gfla",null,null,null,null,null,null,null,"Padina boergesenii","Pboe","4024.55.401"]
["Galaxaura marginata","Gmar",null,null,null,null,null,null,null,"Porites branneri","Pbra","8.55.2780"]
["Galaxaura oblongata","Gobl",null,null,null,null,null,null,null,"Porites californica","Pcal","8.55.2820"]
["Gorgonia mariae","Goma",null,null,null,null,null,null,null,"Pocillopora capitata","Pcap","8.55.2300"]
["Gorgonia sp.","Gorg",null,null,null,null,null,null,null,"Palythoa caribaeorum","Pcar","8.55.1560"]
["Gardineroseris planulata","Gpla",null,null,null,null,null,null,null,"Pavona chirriquiensis","Pchi","8.55.6640"]
["Gracilaria sp.","Grac",null,null,null,null,null,null,null,"Pterogorgia citrina","Pcit","8.55.1140"]
["Galaxaura subverticillata","Gsub",null,null,null,null,null,null,null,"Pavona clavus","Pcla","8.55.2600"]
["Gorgonia ventalina","Gven",null,null,null,null,null,null,null,"Porites colonensis","Pcol","8.55.6582"]
["Halimeda sp.","Hali",null,null,null,null,null,null,null,"Phormidium corallyticum","Pcor","5040.55.40"]
["Halimeda copiosa","Hcop",null,null,null,null,null,null,null,"Pseudoplexaura crucis","Pcru","8.55.6866"]
["Helioseris cucullata","Hcuc",null,null,null,null,null,null,null,"Pocillopora damicornis","Pdam","8.55.2260"]
["Halimeda discoidea","Hdis",null,null,null,null,null,null,null,"Plexaurella dichotoma","Pdic","8.55.640"]
["Helioseris sp.","Heli",null,null,null,null,null,null,null,"Porites divaricata","Pdiv","8.55.6584"]
["Hippopodina feegeensis","Hfee",null,null,null,null,null,null,null,"Pocillopora elegans","Pele","8.55.2340"]
["Halimeda goreaui","Hgor",null,null,null,null,null,null,null,"Pseudopterogorgia elizabethae","Peli","8.55.6722"]
["Halimeda incrassata","Hinc",null,null,null,null,null,null,null,"Penicillus sp.","Peni","4020.46.2663"]
["Halimeda lacrimosa","Hlac",null,null,null,null,null,null,null,"Pocillopora eydouxi","Peyd","8.55.2360"]
["Halimeda monile","Hmon",null,null,null,null,null,null,null,"Peyssonnelia sp.","Peys","4026.46.830"]
["Halimeda opuntia","Hopu",null,null,null,null,null,null,null,"Pseudoplexaura flagellosa","Pfla","8.55.320"]
["Hypnogorgia pendula","Hpen",null,null,null,null,null,null,null,"Plexaura flexuosa","Pfle","8.55.180"]
["Hydroides spongicola","Hspo",null,null,null,null,null,null,null,"Phacelocyathus flos","Pflo","8.55.6460"]
["Halimeda tuna","Htun",null,null,null,null,null,null,null,"Pavona frondifera","Pfro","8.55.6862"]
["Heterogorgia uatumani","Huat",null,null,null,null,null,null,null,"Porites furcata","Pfur","8.55.6586"]
["Iotrochota birotulata","Ibir",null,null,null,null,null,null,null,"Pavona gigantea","Pgig","8.55.2620"]
["Iciligorgia sp.","Icil",null,null,null,null,null,null,null,"Palythoa grandis","Pgra","8.55.1580"]
["Iotrochota birotulata","Iobi",null,null,null,null,null,null,null,"Plexaurella grisea","Pgri","8.55.680"]
["Ircinia sp.","Irci",null,null,null,null,null,null,null,"Pterogorgia guadalupensis","Pgua","8.55.1100"]
["Isophyllastrea rigida","Irig",null,null,null,null,null,null,null,"Padina gymnospora","Pgym","4024.55.300"]
["Iciligorgia schrammi","Isch",null,null,null,null,null,null,null,"Phymanthus crucifer","Phcr","8.55.1780"]
["Isophyllia sp.","Isia",null,null,null,null,null,null,null,"Phyllactis flosculifera","Phfl","8.55.6864"]
["Isophyllia sinuosa","Isin",null,null,null,null,null,null,null,"Plexaura homomalla","Phom","8.55.200"]
["Isophyllastrea sp.","Isop",null,null,null,null,null,null,null,"Padina jamaicensis","Pjam","4024.46.135"]
["Ircinia strobilina","Istr",null,null,null,null,null,null,null,"Plexaura sp.","Plex","8.46.280"]
["Jania adherens","Jadh",null,null,null,null,null,null,null,"Plexaurella sp.","Plla","8.46.330"]
["Jania sp.","Jani",null,null,null,null,null,null,null,"Porites lobata","Plob","8.55.2790"]
["Jania rubens","Jrub",null,null,null,null,null,null,null,"Pavona maldiviensis","Pmal","8.55.2600"]
["Lophogorgia alba","Lalb",null,null,null,null,null,null,null,"Palythoa mammillosa","Pmam","8.55.1540"]
["Liagora ceranoides","Lcer",null,null,null,null,null,null,null,"Pocillopora meandrites","Pmea","8.55.6814"]
["Lebrunia coralligens","Lcor",null,null,null,null,null,null,null,"Plexaura nina","Pnin","8.55.260"]
["Leptoseris cucullata","Lcuc",null,null,null,null,null,null,null,"Plexaurella nutans","Pnut","8.55.620"]
["Lebrunia danae","Ldan",null,null,null,null,null,null,null,"Pocillopora sp.","Poci","8.46.810"]
["Lebrunia sp.","Lebr",null,null,null,null,null,null,null,"Psammocora sp.","Pora","8.46.790"]
["Leptoseris sp.","Lept",null,null,null,null,null,null,null,"Porites sp.","Pori","8.46.910"]
["Liagora farinosa","Lfar",null,null,null,null,null,null,null,"Porolithon sp.","Poro","4026.46.2320"]
["Lophogorgia sp.","Lgia",null,null,null,null,null,null,null,"Porolithon pachydermum","Ppac","4026.55.3285"]
["Lophogorgia hebes","Lheb",null,null,null,null,null,null,null,"Porites panamensis","Ppan","8.55.2800"]
["Liagora sp.","Liag",null,null,null,null,null,null,null,"Parazoanthus parasiticus","Ppar","8.55.1420"]
["Lophogorgia miniata","Lmin",null,null,null,null,null,null,null,"Porites porites","Ppor","8.55.2760"]
["Liagora mucosa","Lmuc",null,null,null,null,null,null,null,"Parazoanthus puertoricense","Ppue","8.55.1440"]
["Lobophora sp.","Lobo",null,null,null,null,null,null,null,"Pseudopterogorgia americana","Psam","8.55.920"]
["Lophogorgi sp.","Loph",null,null,null,null,null,null,null,"Padina sanctae-crucis","Psan","4024.55.315"]
["Liagora pinnata","Lpin",null,null,null,null,null,null,null,"Pseudopterogorgia bipinnata","Psbi","8.55.960"]
["Lobophora variegata","Lvar",null,null,null,null,null,null,null,"Pseudocorynactis caribbeorum","Psca","8.55.4440"]
["Lophogorgia virgulata","Lvir",null,null,null,null,null,null,null,"Pseudoceratina sp.","Pseu","4.46.310"]
["Madracis sp.","Madr",null,null,null,null,null,null,null,"Pseudopterogorgia sp.","Psia","8.46.390"]
["Millepora alcicornis","Malc",null,null,null,null,null,null,null,"Pseudoplexaura porosa","Pspo","8.55.280"]
["Mycetophyllia aliciae","Mali",null,null,null,null,null,null,null,"Pseudoplexaura sp.","Psra","8.46.290"]
["Mussa angulosa","Mang",null,null,null,null,null,null,null,"Psammocora stellata","Pste","8.55.2000"]
["Manicina sp.","Mani",null,null,null,null,null,null,null,"Parazoanthus swiftii","Pswi","8.55.1380"]
["Montastraea annularis","Mann",null,null,null,null,null,null,null,"Pterogorgia sp.","Pter","8.46.420"]
["Manicina areolata","Mare",null,null,null,null,null,null,null,"Parazoanthus tunicans","Ptun","8.55.6860"]
["Martensia sp.","Mart",null,null,null,null,null,null,null,"Pavona varians","Pvar","8.55.2640"]
["Muricea atlantica","Matl",null,null,null,null,null,null,null,"Pseudoplexaura wagenaari","Pwag","8.55.300"]
["Montastraea cavernosa","Mcav",null,null,null,null,null,null,null,"Ricordia florida","Rflo","8.55.4500"]
["Millepora complanata","Mcom",null,null,null,null,null,null,null,"Rhipocephalus sp.","Rhip","4020.46.5688"]
["Mycetophyllia danaana","Mdan",null,null,null,null,null,null,null,"Ricordia sp.","Rico","8.46.1350"]
["Madracis decactis","Mdec",null,null,null,null,null,null,null,"Rhizosmilia maculata","Rmac","8.55.4180"]
["Meandrina sp.","Mean",null,null,null,null,null,null,null,"Rhodactis sanctithomae","Rsan","8.55.4480"]
["Muricea elongata","Melo",null,null,null,null,null,null,null,"Sargassum sp.","Sarg","4024.46.175"]
["Montastraea faveolata","Mfav",null,null,null,null,null,null,null,"Solenastrea bournoni","Sbou","8.55.3240"]
["Mycetophyllia ferox","Mfer",null,null,null,null,null,null,null,"Scolymia sp.","Scol","8.46.1090"]
["Muriceopsis flavida","Mfla",null,null,null,null,null,null,null,"Scolymia cubensis","Scub","8.55.3600"]
["Madracis formosa","Mfor",null,null,null,null,null,null,null,"Swiftia exserta","Sexs","8.55.6662"]
["Montastraea franksi","Mfra",null,null,null,null,null,null,null,"Stichodactyla helianthus","Shel","8.40.650"]
["Millepora sp.","Mill",null,null,null,null,null,null,null,"Solenastrea hyades","Shya","8.55.3220"]
["Meandrina jacksoni","Mjak",null,null,null,null,null,null,null,"Siderastrea sp.","Side","8.46.900"]
["Mycetophyllia lamarckiana","Mlam",null,null,null,null,null,null,null,"Stephanocoenia intersepta","Sint","8.55.1980"]
["Manicina mayori","Mmay",null,null,null,null,null,null,null,"Scolymia lacera","Slac","8.55.3620"]
["Meandrina meandrites","Mmea",null,null,null,null,null,null,null,"Stichopathes lutkeni","Slut","8.55.1360"]
["Madracis mirabilis","Mmir",null,null,null,null,null,null,null,"Stephanocoenia michelini","Smic","8.55.1960"]
["Muricea muricata","Mmur",null,null,null,null,null,null,null,"Solenastrea sp.","Sole","8.46.980"]
["Montastraea sp.","Mont",null,null,null,null,null,null,null,"Siderastrea radians","Srad","8.55.2740"]
["Muricea pendula","Mpen",null,null,null,null,null,null,null,"Stylaster roseus","Sros","8.55.5900"]
["Muriceopsis petila","Mpet",null,null,null,null,null,null,null,"Siderastrea siderea","Ssid","8.55.2740"]
["Madracis pharensis","Mpha",null,null,null,null,null,null,null,"Stereotelesto corallina","Stco","8.55.6870"]
["Muricea pinnata","Mpin",null,null,null,null,null,null,null,"Stephanocoenia sp.","Step","8.46.780"]
["Mycetophyllia reesi","Mree",null,null,null,null,null,null,null,"Stoichactis helianthus","Sthe","8.55.1820"]
["Madracis senaria","Msen",null,null,null,null,null,null,null,"Stoichactis sp.","Stoi","8.46.680"]
["Muriceopsis sp.","Msis",null,null,null,null,null,null,null,"Stylaster sp.","Styl","8.46.1750"]
["Millepora squarrosa","Msqu",null,null,null,null,null,null,null,"Scolymia wellsi","Swel","8.55.6562"]
["Muricea laxa","Mula",null,null,null,null,null,null,null,"Swiftia sp.","Swif","8.46.250"]
["Muricea sp.","Muri",null,null,null,null,null,null,null,"Stypopodium zonale","Szon","4024.55.330"]
["Mycetophyllia sp.","Myce",null,null,null,null,null,null,null,"Telmatactis americana","Tame","8.55.1860","CNIDARIA"]
["Niphates erecta","Nere",null,null,null,null,null,null,null,"Tubastraea aurea","Taur","8.55.4260","CNIDARIA"]
["Nicella goreaui","Ngor",null,null,null,null,null,null,null,"Tubastraea coccinea","Tcoc","8.55.4280","CNIDARIA"]
["Nicella sp.","Nice",null,null,null,null,null,null,null,"Telesto sp.","Tele","8.46.10","CNIDARIA"]
["Niphates sp.","Niph",null,null,null,null,null,null,null,"Telmatactis sp.","Telm","8.46.700","CNIDARIA"]
["Neospongodes portoricensis","Npor",null,null,null,null,null,null,null,"Telesto fruticulosa","Tfru","8.55.6872","CNIDARIA"]
["Nicella schmitti","Nsch",null,null,null,null,null,null,null,"Titanoderma sp.","Tita","4026.46.2325"]
["Neogoniolithon spectabile","Nspe",null,null,null,null,null,null,null,"Thesea nivea","Tniv","8.55.6874","CNIDARIA"]
["Neogoniolithon strictum","Nstr",null,null,null,null,null,null,null,"Trididemnum solidum","Trso","70.12.70","CHORDATA"]
["Oculina sp.","Ocul",null,null,null,null,null,null,null,"Turbinaria tricostata","Ttri","4024.55.395"]
["Oculina diffusa","Odif",null,null,null,null,null,null,null,"Turbinaria turbinata","Ttur","4024.55.400"]
["Oculina robusta","Orob",null,null,null,null,null,null,null,"Tubastraea sp.","Tuba","8.46.1280"]
["Oculina tenella","Oten",null,null,null,null,null,null,null,"Turbinaria sp.","Turb","4024.46.185"]
["Oculina valenciennesi","Oval",null,null,null,null,null,null,null,"Udotea sp.","Udot","4020.46.6692"]
["Oculina varicosa","Ovar",null,null,null,null,null,null,null,"Ulosa hispida","Uhis","4.55.247"]
["Pseudopterogorgia acerosa","Pace",null,null,null,null,null,null,null,"Valonia sp.","Valo","4020.46.2747"]
["Padina sp.","Padi",null,null,null,null,null,null,null,"Ventricaria sp.","Vent","4020.46.3745"]
["Palythoa sp.","Paly",null,null,null,null,null,null,null,"Viatrix globulifera","Vglo","8.55.6391"]
["Phyllangia americana","Pame",null,null,null,null,null,null,null,"Viatrix sp.","Viat","8.46.2062"]
["Trididemnum solidum","Trso",null,null,null,null,null,null,null,"Valonia macrophysa","Vmac","4020.55.756"]
["Stichodactyla helianthus","Shel",null,null,null,null,null,null,null,"Ventricaria ventricosa","Vven","4020.55.754"]
["Stylaster sp.","Styl",null,null,null,null,null,null,null,"Wrangelia sp.","Wran","4026.46.1790"]
["Telmatactis americana","Tame",null,null,null,null,null,null,null,"Xestospongia muta","Xmut","4.55.118"]
["Tubastraea coccinea","Tcoc",null,null,null,null,null,null,null,"Zoanthus sp.","Zoan","8.46.540"]
["Udotea sp.","Udot",null,null,null,null,null,null,null,"Zoanthus pulchellus","Zpul","8.55.1500"]
["Viatrix globulifera","Vglo",null,null,null,null,null,null,null,"Zoanthus sociatus","Zsoc","8.55.1480"]
["Zoanthus sociatus","Zsoc",null,null,null,null,null,null,null,"Stichodactyla sp.","stic","8.40.650"]

{"sheet":"OTRAS REFERENCIAS","index":5,"n_rows":150,"n_cols":13,"rows_kept":150,"cut":false,"hidden":false,"merged":[[0,0,2,10],[4,0,4,1],[26,0,26,2]]}
["Estas son listas para variables con valores que no se encuentran codificados, pero que deben manejarse de manera estandarizada. \nSi se requiere agregar un valor nuevo hagalo debajo de la lista correspondiente"]
[]
[]
[]
["PROFUNDIDAD",null,null,"METODOS",null,null,null,null,null,null,null,{"$f":"IF(AND(REFERENTES!U2<>\"\",          REFERENTES!U2<>96321,    REFERENTES!U2<>96222            ),CONCATENATE(REFERENTES!T2,\"-\",REFERENTES!U2),\"\")","v":"ACU-1"},{"$f":"REFERENTES!S2","v":14311}]
["Descripcion","Codigo",null,"NOMBRE_MT","CODIGO",null,null,null,null,null,null,{"$f":"IF(AND(REFERENTES!U3<>\"\",          REFERENTES!U3<>96321,    REFERENTES!U3<>96222            ),CONCATENATE(REFERENTES!T3,\"-\",REFERENTES!U3),\"\")","v":"ACU-2"},{"$f":"REFERENTES!S3","v":14312}]
["Somero","S",null,"Manual de métodos de SIMAC: Cadena rotulada cada diez eslabones","Car",null,null,null,null,null,null,{"$f":"IF(AND(REFERENTES!U4<>\"\",          REFERENTES!U4<>96321,    REFERENTES!U4<>96222            ),CONCATENATE(REFERENTES!T4,\"-\",REFERENTES!U4),\"\")","v":"AGU-1"},{"$f":"REFERENTES!S4","v":14338}]
["Medio","M",null,null,null,null,null,null,null,null,null,{"$f":"IF(AND(REFERENTES!U5<>\"\",          REFERENTES!U5<>96321,    REFERENTES!U5<>96222            ),CONCATENATE(REFERENTES!T5,\"-\",REFERENTES!U5),\"\")","v":"AZU-1"},{"$f":"REFERENTES!S5","v":14341}]
["Profundo","P",null,null,null,null,null,null,null,null,null,{"$f":"IF(AND(REFERENTES!U6<>\"\",          REFERENTES!U6<>96321,    REFERENTES!U6<>96222            ),CONCATENATE(REFERENTES!T6,\"-\",REFERENTES!U6),\"\")","v":"AZU-2"},{"$f":"REFERENTES!S6","v":14342}]
[null,null,null,null,null,null,null,null,null,null,null,{"$f":"IF(AND(REFERENTES!U7<>\"\",          REFERENTES!U7<>96321,    REFERENTES!U7<>96222            ),CONCATENATE(REFERENTES!T7,\"-\",REFERENTES!U7),\"\")","v":"POR-1"},{"$f":"REFERENTES!S7","v":43726}]
[null,null,null,null,null,null,null,null,null,null,null,{"$f":"IF(AND(REFERENTES!U8<>\"\",          REFERENTES!U8<>96321,    REFERENTES!U8<>96222            ),CONCATENATE(REFERENTES!T8,\"-\",REFERENTES!U8),\"\")","v":"BGO-1"},{"$f":"REFERENTES!S8","v":55425}]
[null,null,null,null,null,null,null,null,null,null,null,{"$f":"IF(AND(REFERENTES!U9<>\"\",          REFERENTES!U9<>96321,    REFERENTES!U9<>96222            ),CONCATENATE(REFERENTES!T9,\"-\",REFERENTES!U9),\"\")","v":"CTI-2"},{"$f":"REFERENTES!S9","v":14333}]
[null,null,null,null,null,null,null,null,null,null,null,{"$f":"IF(AND(REFERENTES!U10<>\"\",          REFERENTES!U10<>96321,    REFERENTES!U10<>96222            ),CONCATENATE(REFERENTES!T10,\"-\",REFERENTES!U10),\"\")","v":"CTI-1"},{"$f":"REFERENTES!S10","v":14334}]
[null,null,null,null,null,null,null,null,null,null,null,{"$f":"IF(AND(REFERENTES!U11<>\"\",          REFERENTES!U11<>96321,    REFERENTES!U11<>96222            ),CONCATENATE(REFERENTES!T11,\"-\",REFERENTES!U11),\"\")","v":"CAP-1"},{"$f":"REFERENTES!S11","v":14336}]
[null,null,null,null,null,null,null,null,null,null,null,{"$f":"IF(AND(REFERENTES!U12<>\"\",          REFERENTES!U12<>96321,    REFERENTES!U12<>96222            ),CONCATENATE(REFERENTES!T12,\"-\",REFERENTES!U12),\"\")","v":"CAP-2"},{"$f":"REFERENTES!S12","v":14337}]
[null,null,null,null,null,null,null,null,null,null,null,{"$f":"IF(AND(REFERENTES!U13<>\"\",          REFERENTES!U13<>96321,    REFERENTES!U13<>96222            ),CONCATENATE(REFERENTES!T13,\"-\",REFERENTES!U13),\"\")","v":"FAN-1"},{"$f":"REFERENTES!S13","v":58217}]
[null,null,null,null,null,null,null,null,null,null,null,{"$f":"IF(AND(REFERENTES!U14<>\"\",          REFERENTES!U14<>96321,    REFERENTES!U14<>96222            ),CONCATENATE(REFERENTES!T14,\"-\",REFERENTES!U14),\"\")","v":"CEY-1"},{"$f":"REFERENTES!S14","v":14331}]
[null,null,null,null,null,null,null,null,null,null,null,{"$f":"IF(AND(REFERENTES!U15<>\"\",          REFERENTES!U15<>96321,    REFERENTES!U15<>96222            ),CONCATENATE(REFERENTES!T15,\"-\",REFERENTES!U15),\"\")","v":"CEY-2"},{"$f":"REFERENTES!S15","v":14308}]
[null,null,null,null,null,null,null,null,null,null,null,{"$f":"IF(AND(REFERENTES!U16<>\"\",          REFERENTES!U16<>96321,    REFERENTES!U16<>96222            ),CONCATENATE(REFERENTES!T16,\"-\",REFERENTES!U16),\"\")","v":"CEY-3"},{"$f":"REFERENTES!S16","v":41651}]
[null,null,null,null,null,null,null,null,null,null,null,{"$f":"IF(AND(REFERENTES!U17<>\"\",          REFERENTES!U17<>96321,    REFERENTES!U17<>96222            ),CONCATENATE(REFERENTES!T17,\"-\",REFERENTES!U17),\"\")","v":"CHE-4"},{"$f":"REFERENTES!S17","v":41705}]
[null,null,null,null,null,null,null,null,null,null,null,{"$f":"IF(AND(REFERENTES!U18<>\"\",          REFERENTES!U18<>96321,    REFERENTES!U18<>96222            ),CONCATENATE(REFERENTES!T18,\"-\",REFERENTES!U18),\"\")","v":"CHE-3"},{"$f":"REFERENTES!S18","v":15508}]
[null,null,null,null,null,null,null,null,null,null,null,{"$f":"IF(AND(REFERENTES!U19<>\"\",          REFERENTES!U19<>96321,    REFERENTES!U19<>96222            ),CONCATENATE(REFERENTES!T19,\"-\",REFERENTES!U19),\"\")","v":"CHE-1"},{"$f":"REFERENTES!S19","v":14297}]
[null,null,null,null,null,null,null,null,null,null,null,{"$f":"IF(AND(REFERENTES!U20<>\"\",          REFERENTES!U20<>96321,    REFERENTES!U20<>96222            ),CONCATENATE(REFERENTES!T20,\"-\",REFERENTES!U20),\"\")","v":"CHE-2"},{"$f":"REFERENTES!S20","v":14298}]
[null,null,null,null,null,null,null,null,null,null,null,{"$f":"IF(AND(REFERENTES!U21<>\"\",          REFERENTES!U21<>96321,    REFERENTES!U21<>96222            ),CONCATENATE(REFERENTES!T21,\"-\",REFERENTES!U21),\"\")","v":"CIN-2"},{"$f":"REFERENTES!S21","v":41704}]
[null,null,null,null,null,null,null,null,null,null,null,{"$f":"IF(AND(REFERENTES!U22<>\"\",          REFERENTES!U22<>96321,    REFERENTES!U22<>96222            ),CONCATENATE(REFERENTES!T22,\"-\",REFERENTES!U22),\"\")","v":"CIN-1"},{"$f":"REFERENTES!S22","v":41703}]
[null,null,null,null,null,null,null,null,null,null,null,{"$f":"IF(AND(REFERENTES!U23<>\"\",          REFERENTES!U23<>96321,    REFERENTES!U23<>96222            ),CONCATENATE(REFERENTES!T23,\"-\",REFERENTES!U23),\"\")","v":"MAL-1"},{"$f":"REFERENTES!S23","v":14325}]
["CODIGOS LOV",null,null,null,null,null,null,null,null,null,null,{"$f":"IF(AND(REFERENTES!U24<>\"\",          REFERENTES!U24<>96321,    REFERENTES!U24<>96222            ),CONCATENATE(REFERENTES!T24,\"-\",REFERENTES!U24),\"\")","v":"CAN-1"},{"$f":"REFERENTES!S24","v":14315}]
["DESCRIPCIÓN","CÓDIGO","GRUPO",null,null,null,null,null,null,null,null,{"$f":"IF(AND(REFERENTES!U25<>\"\",          REFERENTES!U25<>96321,    REFERENTES!U25<>96222            ),CONCATENATE(REFERENTES!T25,\"-\",REFERENTES!U25),\"\")","v":"CAN-2"},{"$f":"REFERENTES!S25","v":14316}]
["Departamento",10,2,null,null,null,null,null,null,null,null,{"$f":"IF(AND(REFERENTES!U26<>\"\",          REFERENTES!U26<>96321,    REFERENTES!U26<>96222            ),CONCATENATE(REFERENTES!T26,\"-\",REFERENTES!U26),\"\")","v":"MRO-1"},{"$f":"REFERENTES!S26","v":14303}]
["Sector",20,2,null,null,null,null,null,null,null,null,{"$f":"IF(AND(REFERENTES!U27<>\"\",          REFERENTES!U27<>96321,    REFERENTES!U27<>96222            ),CONCATENATE(REFERENTES!T27,\"-\",REFERENTES!U27),\"\")","v":"EMI-1"},{"$f":"REFERENTES!S27","v":14309}]
["Punto",30,2,null,null,null,null,null,null,null,null,{"$f":"IF(AND(REFERENTES!U28<>\"\",          REFERENTES!U28<>96321,    REFERENTES!U28<>96222            ),CONCATENATE(REFERENTES!T28,\"-\",REFERENTES!U28),\"\")","v":"EMI-2"},{"$f":"REFERENTES!S28","v":14310}]
["Parcela",35,2,null,null,null,null,null,null,null,null,{"$f":"IF(AND(REFERENTES!U29<>\"\",          REFERENTES!U29<>96321,    REFERENTES!U29<>96222            ),CONCATENATE(REFERENTES!T29,\"-\",REFERENTES!U29),\"\")","v":"GAY-1"},{"$f":"REFERENTES!S29","v":14302}]
["Estaciones",40,2,null,null,null,null,null,null,null,null,{"$f":"IF(AND(REFERENTES!U30<>\"\",          REFERENTES!U30<>96321,    REFERENTES!U30<>96222            ),CONCATENATE(REFERENTES!T30,\"-\",REFERENTES!U30),\"\")","v":"GAY-2"},{"$f":"REFERENTES!S30","v":14323}]
["Region",50,2,null,null,null,null,null,null,null,null,{"$f":"IF(AND(REFERENTES!U31<>\"\",          REFERENTES!U31<>96321,    REFERENTES!U31<>96222            ),CONCATENATE(REFERENTES!T31,\"-\",REFERENTES!U31),\"\")","v":"GRA-1"},{"$f":"REFERENTES!S31","v":14324}]
["Unidad_de_Manejo",60,2,null,null,null,null,null,null,null,null,{"$f":"IF(AND(REFERENTES!U32<>\"\",          REFERENTES!U32<>96321,    REFERENTES!U32<>96222            ),CONCATENATE(REFERENTES!T32,\"-\",REFERENTES!U32),\"\")","v":"IGU-1"},{"$f":"REFERENTES!S32","v":14339}]
["Unidad_Ambiental_Costera",70,2,null,null,null,null,null,null,null,null,{"$f":"IF(AND(REFERENTES!U33<>\"\",          REFERENTES!U33<>96321,    REFERENTES!U33<>96222            ),CONCATENATE(REFERENTES!T33,\"-\",REFERENTES!U33),\"\")","v":"ARE-1"},{"$f":"REFERENTES!S33","v":41546}]
["Localidad",80,2,null,null,null,null,null,null,null,null,{"$f":"IF(AND(REFERENTES!U34<>\"\",          REFERENTES!U34<>96321,    REFERENTES!U34<>96222            ),CONCATENATE(REFERENTES!T34,\"-\",REFERENTES!U34),\"\")","v":"IGR-1"},{"$f":"REFERENTES!S34","v":41545}]
["Bloque_Exploracion",85,2,null,null,null,null,null,null,null,null,{"$f":"IF(AND(REFERENTES!U35<>\"\",          REFERENTES!U35<>96321,    REFERENTES!U35<>96222            ),CONCATENATE(REFERENTES!T35,\"-\",REFERENTES!U35),\"\")","v":"JCA-1"},{"$f":"REFERENTES!S35","v":48967}]
["Area",90,2,null,null,null,null,null,null,null,null,{"$f":"IF(AND(REFERENTES!U36<>\"\",          REFERENTES!U36<>96321,    REFERENTES!U36<>96222            ),CONCATENATE(REFERENTES!T36,\"-\",REFERENTES!U36),\"\")","v":"CHO-1"},{"$f":"REFERENTES!S36","v":14296}]
[null,null,null,null,null,null,null,null,null,null,null,{"$f":"IF(AND(REFERENTES!U37<>\"\",          REFERENTES!U37<>96321,    REFERENTES!U37<>96222            ),CONCATENATE(REFERENTES!T37,\"-\",REFERENTES!U37),\"\")","v":"CHO-2"},{"$f":"REFERENTES!S37","v":14326}]
[null,null,null,null,null,null,null,null,null,null,null,{"$f":"IF(AND(REFERENTES!U38<>\"\",          REFERENTES!U38<>96321,    REFERENTES!U38<>96222            ),CONCATENATE(REFERENTES!T38,\"-\",REFERENTES!U38),\"\")","v":"CHO-3"},{"$f":"REFERENTES!S38","v":14304}]
[null,null,null,null,null,null,null,null,null,null,null,{"$f":"IF(AND(REFERENTES!U39<>\"\",          REFERENTES!U39<>96321,    REFERENTES!U39<>96222            ),CONCATENATE(REFERENTES!T39,\"-\",REFERENTES!U39),\"\")","v":"CHO-4"},{"$f":"REFERENTES!S39","v":14327}]
[null,null,null,null,null,null,null,null,null,null,null,{"$f":"IF(AND(REFERENTES!U40<>\"\",          REFERENTES!U40<>96321,    REFERENTES!U40<>96222            ),CONCATENATE(REFERENTES!T40,\"-\",REFERENTES!U40),\"\")","v":"CHO-5"},{"$f":"REFERENTES!S40","v":14328}]
[null,null,null,null,null,null,null,null,null,null,null,{"$f":"IF(AND(REFERENTES!U41<>\"\",          REFERENTES!U41<>96321,    REFERENTES!U41<>96222            ),CONCATENATE(REFERENTES!T41,\"-\",REFERENTES!U41),\"\")","v":"CHO-6"},{"$f":"REFERENTES!S41","v":14329}]
[null,null,null,null,null,null,null,null,null,null,null,{"$f":"IF(AND(REFERENTES!U42<>\"\",          REFERENTES!U42<>96321,    REFERENTES!U42<>96222            ),CONCATENATE(REFERENTES!T42,\"-\",REFERENTES!U42),\"\")","v":"COC-1"},{"$f":"REFERENTES!S42","v":37122}]
[null,null,null,null,null,null,null,null,null,null,null,{"$f":"IF(AND(REFERENTES!U43<>\"\",          REFERENTES!U43<>96321,    REFERENTES!U43<>96222            ),CONCATENATE(REFERENTES!T43,\"-\",REFERENTES!U43),\"\")","v":"MAL-2"},{"$f":"REFERENTES!S43","v":43098}]
[null,null,null,null,null,null,null,null,null,null,null,{"$f":"IF(AND(REFERENTES!U44<>\"\",          REFERENTES!U44<>96321,    REFERENTES!U44<>96222            ),CONCATENATE(REFERENTES!T44,\"-\",REFERENTES!U44),\"\")","v":"VEN-4"},{"$f":"REFERENTES!S44","v":41695}]
[null,null,null,null,null,null,null,null,null,null,null,{"$f":"IF(AND(REFERENTES!U45<>\"\",          REFERENTES!U45<>96321,    REFERENTES!U45<>96222            ),CONCATENATE(REFERENTES!T45,\"-\",REFERENTES!U45),\"\")","v":"VEN-3"},{"$f":"REFERENTES!S45","v":41694}]
[null,null,null,null,null,null,null,null,null,null,null,{"$f":"IF(AND(REFERENTES!U46<>\"\",          REFERENTES!U46<>96321,    REFERENTES!U46<>96222            ),CONCATENATE(REFERENTES!T46,\"-\",REFERENTES!U46),\"\")","v":"VEN-1"},{"$f":"REFERENTES!S46","v":41692}]
[null,null,null,null,null,null,null,null,null,null,null,{"$f":"IF(AND(REFERENTES!U47<>\"\",          REFERENTES!U47<>96321,    REFERENTES!U47<>96222            ),CONCATENATE(REFERENTES!T47,\"-\",REFERENTES!U47),\"\")","v":"VEN-2"},{"$f":"REFERENTES!S47","v":41693}]
[null,null,null,null,null,null,null,null,null,null,null,{"$f":"IF(AND(REFERENTES!U48<>\"\",          REFERENTES!U48<>96321,    REFERENTES!U48<>96222            ),CONCATENATE(REFERENTES!T48,\"-\",REFERENTES!U48),\"\")","v":"PAL-1"},{"$f":"REFERENTES!S48","v":41547}]
[null,null,null,null,null,null,null,null,null,null,null,{"$f":"IF(AND(REFERENTES!U49<>\"\",          REFERENTES!U49<>96321,    REFERENTES!U49<>96222            ),CONCATENATE(REFERENTES!T49,\"-\",REFERENTES!U49),\"\")","v":"MAR-1"},{"$f":"REFERENTES!S49","v":41699}]
[null,null,null,null,null,null,null,null,null,null,null,{"$f":"IF(AND(REFERENTES!U50<>\"\",          REFERENTES!U50<>96321,    REFERENTES!U50<>96222            ),CONCATENATE(REFERENTES!T50,\"-\",REFERENTES!U50),\"\")","v":"MAN-1"},{"$f":"REFERENTES!S50","v":14305}]
[null,null,null,null,null,null,null,null,null,null,null,{"$f":"IF(AND(REFERENTES!U51<>\"\",          REFERENTES!U51<>96321,    REFERENTES!U51<>96222            ),CONCATENATE(REFERENTES!T51,\"-\",REFERENTES!U51),\"\")","v":"MAN-2"},{"$f":"REFERENTES!S51","v":14307}]
[null,null,null,null,null,null,null,null,null,null,null,{"$f":"IF(AND(REFERENTES!U52<>\"\",          REFERENTES!U52<>96321,    REFERENTES!U52<>96222            ),CONCATENATE(REFERENTES!T52,\"-\",REFERENTES!U52),\"\")","v":"MAZ-1"},{"$f":"REFERENTES!S52","v":14317}]
[null,null,null,null,null,null,null,null,null,null,null,{"$f":"IF(AND(REFERENTES!U53<>\"\",          REFERENTES!U53<>96321,    REFERENTES!U53<>96222            ),CONCATENATE(REFERENTES!T53,\"-\",REFERENTES!U53),\"\")","v":"MAZ-2"},{"$f":"REFERENTES!S53","v":14318}]
[null,null,null,null,null,null,null,null,null,null,null,{"$f":"IF(AND(REFERENTES!U54<>\"\",          REFERENTES!U54<>96321,    REFERENTES!U54<>96222            ),CONCATENATE(REFERENTES!T54,\"-\",REFERENTES!U54),\"\")","v":"MRC-1"},{"$f":"REFERENTES!S54","v":41698}]
[null,null,null,null,null,null,null,null,null,null,null,{"$f":"IF(AND(REFERENTES!U55<>\"\",          REFERENTES!U55<>96321,    REFERENTES!U55<>96222            ),CONCATENATE(REFERENTES!T55,\"-\",REFERENTES!U55),\"\")","v":"MIN-1"},{"$f":"REFERENTES!S55","v":14306}]
[null,null,null,null,null,null,null,null,null,null,null,{"$f":"IF(AND(REFERENTES!U56<>\"\",          REFERENTES!U56<>96321,    REFERENTES!U56<>96222            ),CONCATENATE(REFERENTES!T56,\"-\",REFERENTES!U56),\"\")","v":"4400147CORA100-1"},{"$f":"REFERENTES!S56","v":56790}]
[null,null,null,null,null,null,null,null,null,null,null,{"$f":"IF(AND(REFERENTES!U57<>\"\",          REFERENTES!U57<>96321,    REFERENTES!U57<>96222            ),CONCATENATE(REFERENTES!T57,\"-\",REFERENTES!U57),\"\")","v":"NCH-1"},{"$f":"REFERENTES!S57","v":42263}]
[null,null,null,null,null,null,null,null,null,null,null,{"$f":"IF(AND(REFERENTES!U58<>\"\",          REFERENTES!U58<>96321,    REFERENTES!U58<>96222            ),CONCATENATE(REFERENTES!T58,\"-\",REFERENTES!U58),\"\")","v":"NEG-2"},{"$f":"REFERENTES!S58","v":41702}]
[null,null,null,null,null,null,null,null,null,null,null,{"$f":"IF(AND(REFERENTES!U59<>\"\",          REFERENTES!U59<>96321,    REFERENTES!U59<>96222            ),CONCATENATE(REFERENTES!T59,\"-\",REFERENTES!U59),\"\")","v":"NEG-1"},{"$f":"REFERENTES!S59","v":41701}]
[null,null,null,null,null,null,null,null,null,null,null,{"$f":"IF(AND(REFERENTES!U60<>\"\",          REFERENTES!U60<>96321,    REFERENTES!U60<>96222            ),CONCATENATE(REFERENTES!T60,\"-\",REFERENTES!U60),\"\")","v":"NET-1"},{"$f":"REFERENTES!S60","v":37120}]
[null,null,null,null,null,null,null,null,null,null,null,{"$f":"IF(AND(REFERENTES!U61<>\"\",          REFERENTES!U61<>96321,    REFERENTES!U61<>96222            ),CONCATENATE(REFERENTES!T61,\"-\",REFERENTES!U61),\"\")","v":"NET-2"},{"$f":"REFERENTES!S61","v":52325}]
[null,null,null,null,null,null,null,null,null,null,null,{"$f":"IF(AND(REFERENTES!U62<>\"\",          REFERENTES!U62<>96321,    REFERENTES!U62<>96222            ),CONCATENATE(REFERENTES!T62,\"-\",REFERENTES!U62),\"\")","v":"PAV-1"},{"$f":"REFERENTES!S62","v":14300}]
[null,null,null,null,null,null,null,null,null,null,null,{"$f":"IF(AND(REFERENTES!U63<>\"\",          REFERENTES!U63<>96321,    REFERENTES!U63<>96222            ),CONCATENATE(REFERENTES!T63,\"-\",REFERENTES!U63),\"\")","v":"PLA-2"},{"$f":"REFERENTES!S63","v":14295}]
[null,null,null,null,null,null,null,null,null,null,null,{"$f":"IF(AND(REFERENTES!U64<>\"\",          REFERENTES!U64<>96321,    REFERENTES!U64<>96222            ),CONCATENATE(REFERENTES!T64,\"-\",REFERENTES!U64),\"\")","v":"PLA-3"},{"$f":"REFERENTES!S64","v":41690}]
[null,null,null,null,null,null,null,null,null,null,null,{"$f":"IF(AND(REFERENTES!U65<>\"\",          REFERENTES!U65<>96321,    REFERENTES!U65<>96222            ),CONCATENATE(REFERENTES!T65,\"-\",REFERENTES!U65),\"\")","v":"PLA-4"},{"$f":"REFERENTES!S65","v":41691}]
[null,null,null,null,null,null,null,null,null,null,null,{"$f":"IF(AND(REFERENTES!U66<>\"\",          REFERENTES!U66<>96321,    REFERENTES!U66<>96222            ),CONCATENATE(REFERENTES!T66,\"-\",REFERENTES!U66),\"\")","v":"PLA-1"},{"$f":"REFERENTES!S66","v":14343}]
[null,null,null,null,null,null,null,null,null,null,null,{"$f":"IF(AND(REFERENTES!U67<>\"\",          REFERENTES!U67<>96321,    REFERENTES!U67<>96222            ),CONCATENATE(REFERENTES!T67,\"-\",REFERENTES!U67),\"\")","v":"PBLA-1"},{"$f":"REFERENTES!S67","v":52865}]
[null,null,null,null,null,null,null,null,null,null,null,{"$f":"IF(AND(REFERENTES!U68<>\"\",          REFERENTES!U68<>96321,    REFERENTES!U68<>96222            ),CONCATENATE(REFERENTES!T68,\"-\",REFERENTES!U68),\"\")","v":"PBR-1"},{"$f":"REFERENTES!S68","v":41548}]
[null,null,null,null,null,null,null,null,null,null,null,{"$f":"IF(AND(REFERENTES!U69<>\"\",          REFERENTES!U69<>96321,    REFERENTES!U69<>96222            ),CONCATENATE(REFERENTES!T69,\"-\",REFERENTES!U69),\"\")","v":"SFE-1"},{"$f":"REFERENTES!S69","v":14321}]
[null,null,null,null,null,null,null,null,null,null,null,{"$f":"IF(AND(REFERENTES!U70<>\"\",          REFERENTES!U70<>96321,    REFERENTES!U70<>96222            ),CONCATENATE(REFERENTES!T70,\"-\",REFERENTES!U70),\"\")","v":"SFE-2"},{"$f":"REFERENTES!S70","v":14322}]
[null,null,null,null,null,null,null,null,null,null,null,{"$f":"IF(AND(REFERENTES!U71<>\"\",          REFERENTES!U71<>96321,    REFERENTES!U71<>96222            ),CONCATENATE(REFERENTES!T71,\"-\",REFERENTES!U71),\"\")","v":"TES-1"},{"$f":"REFERENTES!S71","v":14299}]
[null,null,null,null,null,null,null,null,null,null,null,{"$f":"IF(AND(REFERENTES!U72<>\"\",          REFERENTES!U72<>96321,    REFERENTES!U72<>96222            ),CONCATENATE(REFERENTES!T72,\"-\",REFERENTES!U72),\"\")","v":"TES-2"},{"$f":"REFERENTES!S72","v":41549}]
[null,null,null,null,null,null,null,null,null,null,null,{"$f":"IF(AND(REFERENTES!U73<>\"\",          REFERENTES!U73<>96321,    REFERENTES!U73<>96222            ),CONCATENATE(REFERENTES!T73,\"-\",REFERENTES!U73),\"\")","v":"BAR-1"},{"$f":"REFERENTES!S73","v":14319}]
[null,null,null,null,null,null,null,null,null,null,null,{"$f":"IF(AND(REFERENTES!U74<>\"\",          REFERENTES!U74<>96321,    REFERENTES!U74<>96222            ),CONCATENATE(REFERENTES!T74,\"-\",REFERENTES!U74),\"\")","v":"BAR-2"},{"$f":"REFERENTES!S74","v":14320}]
[null,null,null,null,null,null,null,null,null,null,null,{"$f":"IF(AND(REFERENTES!U75<>\"\",          REFERENTES!U75<>96321,    REFERENTES!U75<>96222            ),CONCATENATE(REFERENTES!T75,\"-\",REFERENTES!U75),\"\")","v":"TNT-1"},{"$f":"REFERENTES!S75","v":41697}]
[null,null,null,null,null,null,null,null,null,null,null,{"$f":"IF(AND(REFERENTES!U76<>\"\",          REFERENTES!U76<>96321,    REFERENTES!U76<>96222            ),CONCATENATE(REFERENTES!T76,\"-\",REFERENTES!U76),\"\")","v":"TNT-2"},{"$f":"REFERENTES!S76","v":41696}]
[null,null,null,null,null,null,null,null,null,null,null,{"$f":"IF(AND(REFERENTES!U77<>\"\",          REFERENTES!U77<>96321,    REFERENTES!U77<>96222            ),CONCATENATE(REFERENTES!T77,\"-\",REFERENTES!U77),\"\")","v":"TIO-1"},{"$f":"REFERENTES!S77","v":14332}]
[null,null,null,null,null,null,null,null,null,null,null,{"$f":"IF(AND(REFERENTES!U78<>\"\",          REFERENTES!U78<>96321,    REFERENTES!U78<>96222            ),CONCATENATE(REFERENTES!T78,\"-\",REFERENTES!U78),\"\")","v":"VAR-1"},{"$f":"REFERENTES!S78","v":49084}]
[null,null,null,null,null,null,null,null,null,null,null,{"$f":"IF(AND(REFERENTES!U79<>\"\",          REFERENTES!U79<>96321,    REFERENTES!U79<>96222            ),CONCATENATE(REFERENTES!T79,\"-\",REFERENTES!U79),\"\")","v":"VAR-2"},{"$f":"REFERENTES!S79","v":49085}]
[null,null,null,null,null,null,null,null,null,null,null,{"$f":"IF(AND(REFERENTES!U80<>\"\",          REFERENTES!U80<>96321,    REFERENTES!U80<>96222            ),CONCATENATE(REFERENTES!T80,\"-\",REFERENTES!U80),\"\")","v":"VAR-3"},{"$f":"REFERENTES!S80","v":49086}]
[null,null,null,null,null,null,null,null,null,null,null,{"$f":"IF(AND(REFERENTES!U81<>\"\",          REFERENTES!U81<>96321,    REFERENTES!U81<>96222            ),CONCATENATE(REFERENTES!T81,\"-\",REFERENTES!U81),\"\")","v":"WHI-1"},{"$f":"REFERENTES!S81","v":41700}]
[null,null,null,null,null,null,null,null,null,null,null,{"$f":"IF(AND(REFERENTES!U82<>\"\",          REFERENTES!U82<>96321,    REFERENTES!U82<>96222            ),CONCATENATE(REFERENTES!T82,\"-\",REFERENTES!U82),\"\")","v":"WLF-1"},{"$f":"REFERENTES!S82","v":14340}]
[null,null,null,null,null,null,null,null,null,null,null,{"$f":"IF(AND(REFERENTES!U83<>\"\",          REFERENTES!U83<>96321,    REFERENTES!U83<>96222            ),CONCATENATE(REFERENTES!T83,\"-\",REFERENTES!U83),\"\")","v":"ZAP-1"},{"$f":"REFERENTES!S83","v":14335}]
[null,null,null,null,null,null,null,null,null,null,null,{"$f":"IF(AND(REFERENTES!U84<>\"\",          REFERENTES!U84<>96321,    REFERENTES!U84<>96222            ),CONCATENATE(REFERENTES!T84,\"-\",REFERENTES!U84),\"\")","v":""},{"$f":"REFERENTES!S84","v":0}]
[null,null,null,null,null,null,null,null,null,null,null,{"$f":"IF(AND(REFERENTES!U85<>\"\",          REFERENTES!U85<>96321,    REFERENTES!U85<>96222            ),CONCATENATE(REFERENTES!T85,\"-\",REFERENTES!U85),\"\")","v":""},{"$f":"REFERENTES!S85","v":0}]
[null,null,null,null,null,null,null,null,null,null,null,{"$f":"IF(AND(REFERENTES!U86<>\"\",          REFERENTES!U86<>96321,    REFERENTES!U86<>96222            ),CONCATENATE(REFERENTES!T86,\"-\",REFERENTES!U86),\"\")","v":""},{"$f":"REFERENTES!S86","v":0}]
[null,null,null,null,null,null,null,null,null,null,null,{"$f":"IF(AND(REFERENTES!U87<>\"\",          REFERENTES!U87<>96321,    REFERENTES!U87<>96222            ),CONCATENATE(REFERENTES!T87,\"-\",REFERENTES!U87),\"\")","v":""},{"$f":"REFERENTES!S87","v":0}]
[null,null,null,null,null,null,null,null,null,null,null,{"$f":"IF(AND(REFERENTES!U88<>\"\",          REFERENTES!U88<>96321,    REFERENTES!U88<>96222            ),CONCATENATE(REFERENTES!T88,\"-\",REFERENTES!U88),\"\")","v":""},{"$f":"REFERENTES!S88","v":0}]
[null,null,null,null,null,null,null,null,null,null,null,{"$f":"IF(AND(REFERENTES!U89<>\"\",          REFERENTES!U89<>96321,    REFERENTES!U89<>96222            ),CONCATENATE(REFERENTES!T89,\"-\",REFERENTES!U89),\"\")","v":""},{"$f":"REFERENTES!S89","v":0}]
[null,null,null,null,null,null,null,null,null,null,null,{"$f":"IF(AND(REFERENTES!U90<>\"\",          REFERENTES!U90<>96321,    REFERENTES!U90<>96222            ),CONCATENATE(REFERENTES!T90,\"-\",REFERENTES!U90),\"\")","v":""},{"$f":"REFERENTES!S90","v":0}]
[null,null,null,null,null,null,null,null,null,null,null,{"$f":"IF(AND(REFERENTES!U91<>\"\",          REFERENTES!U91<>96321,    REFERENTES!U91<>96222            ),CONCATENATE(REFERENTES!T91,\"-\",REFERENTES!U91),\"\")","v":""},{"$f":"REFERENTES!S91","v":0}]
[null,null,null,null,null,null,null,null,null,null,null,{"$f":"IF(AND(REFERENTES!U92<>\"\",          REFERENTES!U92<>96321,    REFERENTES!U92<>96222            ),CONCATENATE(REFERENTES!T92,\"-\",REFERENTES!U92),\"\")","v":""},{"$f":"REFERENTES!S92","v":0}]
[null,null,null,null,null,null,null,null,null,null,null,{"$f":"IF(AND(REFERENTES!U93<>\"\",          REFERENTES!U93<>96321,    REFERENTES!U93<>96222            ),CONCATENATE(REFERENTES!T93,\"-\",REFERENTES!U93),\"\")","v":""},{"$f":"REFERENTES!S93","v":0}]
[null,null,null,null,null,null,null,null,null,null,null,{"$f":"IF(AND(REFERENTES!U94<>\"\",          REFERENTES!U94<>96321,    REFERENTES!U94<>96222            ),CONCATENATE(REFERENTES!T94,\"-\",REFERENTES!U94),\"\")","v":""},{"$f":"REFERENTES!S94","v":0}]
[null,null,null,null,null,null,null,null,null,null,null,{"$f":"IF(AND(REFERENTES!U95<>\"\",          REFERENTES!U95<>96321,    REFERENTES!U95<>96222            ),CONCATENATE(REFERENTES!T95,\"-\",REFERENTES!U95),\"\")","v":""},{"$f":"REFERENTES!S95","v":0}]
[null,null,null,null,null,null,null,null,null,null,null,{"$f":"IF(AND(REFERENTES!U96<>\"\",          REFERENTES!U96<>96321,    REFERENTES!U96<>96222            ),CONCATENATE(REFERENTES!T96,\"-\",REFERENTES!U96),\"\")","v":""},{"$f":"REFERENTES!S96","v":0}]
[null,null,null,null,null,null,null,null,null,null,null,{"$f":"IF(AND(REFERENTES!U97<>\"\",          REFERENTES!U97<>96321,    REFERENTES!U97<>96222            ),CONCATENATE(REFERENTES!T97,\"-\",REFERENTES!U97),\"\")","v":""},{"$f":"REFERENTES!S97","v":0}]
[null,null,null,null,null,null,null,null,null,null,null,{"$f":"IF(AND(REFERENTES!U98<>\"\",          REFERENTES!U98<>96321,    REFERENTES!U98<>96222            ),CONCATENATE(REFERENTES!T98,\"-\",REFERENTES!U98),\"\")","v":""},{"$f":"REFERENTES!S98","v":0}]
[null,null,null,null,null,null,null,null,null,null,null,{"$f":"IF(AND(REFERENTES!U99<>\"\",          REFERENTES!U99<>96321,    REFERENTES!U99<>96222            ),CONCATENATE(REFERENTES!T99,\"-\",REFERENTES!U99),\"\")","v":""},{"$f":"REFERENTES!S99","v":0}]
[null,null,null,null,null,null,null,null,null,null,null,{"$f":"IF(AND(REFERENTES!U100<>\"\",          REFERENTES!U100<>96321,    REFERENTES!U100<>96222            ),CONCATENATE(REFERENTES!T100,\"-\",REFERENTES!U100),\"\")","v":""},{"$f":"REFERENTES!S100","v":0}]
[null,null,null,null,null,null,null,null,null,null,null,{"$f":"IF(AND(REFERENTES!U101<>\"\",          REFERENTES!U101<>96321,    REFERENTES!U101<>96222            ),CONCATENATE(REFERENTES!T101,\"-\",REFERENTES!U101),\"\")","v":""},{"$f":"REFERENTES!S101","v":0}]
[null,null,null,null,null,null,null,null,null,null,null,{"$f":"IF(AND(REFERENTES!U102<>\"\",          REFERENTES!U102<>96321,    REFERENTES!U102<>96222            ),CONCATENATE(REFERENTES!T102,\"-\",REFERENTES!U102),\"\")","v":""},{"$f":"REFERENTES!S102","v":0}]
[null,null,null,null,null,null,null,null,null,null,null,{"$f":"IF(AND(REFERENTES!U103<>\"\",          REFERENTES!U103<>96321,    REFERENTES!U103<>96222            ),CONCATENATE(REFERENTES!T103,\"-\",REFERENTES!U103),\"\")","v":""},{"$f":"REFERENTES!S103","v":0}]
[null,null,null,null,null,null,null,null,null,null,null,{"$f":"IF(AND(REFERENTES!U104<>\"\",          REFERENTES!U104<>96321,    REFERENTES!U104<>96222            ),CONCATENATE(REFERENTES!T104,\"-\",REFERENTES!U104),\"\")","v":""},{"$f":"REFERENTES!S104","v":0}]
[null,null,null,null,null,null,null,null,null,null,null,{"$f":"IF(AND(REFERENTES!U105<>\"\",          REFERENTES!U105<>96321,    REFERENTES!U105<>96222            ),CONCATENATE(REFERENTES!T105,\"-\",REFERENTES!U105),\"\")","v":""},{"$f":"REFERENTES!S105","v":0}]
[null,null,null,null,null,null,null,null,null,null,null,{"$f":"IF(AND(REFERENTES!U106<>\"\",          REFERENTES!U106<>96321,    REFERENTES!U106<>96222            ),CONCATENATE(REFERENTES!T106,\"-\",REFERENTES!U106),\"\")","v":""},{"$f":"REFERENTES!S106","v":0}]
[null,null,null,null,null,null,null,null,null,null,null,{"$f":"IF(AND(REFERENTES!U107<>\"\",          REFERENTES!U107<>96321,    REFERENTES!U107<>96222            ),CONCATENATE(REFERENTES!T107,\"-\",REFERENTES!U107),\"\")","v":""},{"$f":"REFERENTES!S107","v":0}]
[null,null,null,null,null,null,null,null,null,null,null,{"$f":"IF(AND(REFERENTES!U108<>\"\",          REFERENTES!U108<>96321,    REFERENTES!U108<>96222            ),CONCATENATE(REFERENTES!T108,\"-\",REFERENTES!U108),\"\")","v":""},{"$f":"REFERENTES!S108","v":0}]
[null,null,null,null,null,null,null,null,null,null,null,{"$f":"IF(AND(REFERENTES!U109<>\"\",          REFERENTES!U109<>96321,    REFERENTES!U109<>96222            ),CONCATENATE(REFERENTES!T109,\"-\",REFERENTES!U109),\"\")","v":""},{"$f":"REFERENTES!S109","v":0}]
[null,null,null,null,null,null,null,null,null,null,null,{"$f":"IF(AND(REFERENTES!U110<>\"\",          REFERENTES!U110<>96321,    REFERENTES!U110<>96222            ),CONCATENATE(REFERENTES!T110,\"-\",REFERENTES!U110),\"\")","v":""},{"$f":"REFERENTES!S110","v":0}]
[null,null,null,null,null,null,null,null,null,null,null,{"$f":"IF(AND(REFERENTES!U111<>\"\",          REFERENTES!U111<>96321,    REFERENTES!U111<>96222            ),CONCATENATE(REFERENTES!T111,\"-\",REFERENTES!U111),\"\")","v":""},{"$f":"REFERENTES!S111","v":0}]
[null,null,null,null,null,null,null,null,null,null,null,{"$f":"IF(AND(REFERENTES!U112<>\"\",          REFERENTES!U112<>96321,    REFERENTES!U112<>96222            ),CONCATENATE(REFERENTES!T112,\"-\",REFERENTES!U112),\"\")","v":""},{"$f":"REFERENTES!S112","v":0}]
[null,null,null,null,null,null,null,null,null,null,null,{"$f":"IF(AND(REFERENTES!U113<>\"\",          REFERENTES!U113<>96321,    REFERENTES!U113<>96222            ),CONCATENATE(REFERENTES!T113,\"-\",REFERENTES!U113),\"\")","v":""},{"$f":"REFERENTES!S113","v":0}]
[null,null,null,null,null,null,null,null,null,null,null,{"$f":"IF(AND(REFERENTES!U114<>\"\",          REFERENTES!U114<>96321,    REFERENTES!U114<>96222            ),CONCATENATE(REFERENTES!T114,\"-\",REFERENTES!U114),\"\")","v":""},{"$f":"REFERENTES!S114","v":0}]
[null,null,null,null,null,null,null,null,null,null,null,{"$f":"IF(AND(REFERENTES!U115<>\"\",          REFERENTES!U115<>96321,    REFERENTES!U115<>96222            ),CONCATENATE(REFERENTES!T115,\"-\",REFERENTES!U115),\"\")","v":""},{"$f":"REFERENTES!S115","v":0}]
[null,null,null,null,null,null,null,null,null,null,null,{"$f":"IF(AND(REFERENTES!U116<>\"\",          REFERENTES!U116<>96321,    REFERENTES!U116<>96222            ),CONCATENATE(REFERENTES!T116,\"-\",REFERENTES!U116),\"\")","v":""},{"$f":"REFERENTES!S116","v":0}]
[null,null,null,null,null,null,null,null,null,null,null,{"$f":"IF(AND(REFERENTES!U117<>\"\",          REFERENTES!U117<>96321,    REFERENTES!U117<>96222            ),CONCATENATE(REFERENTES!T117,\"-\",REFERENTES!U117),\"\")","v":""},{"$f":"REFERENTES!S117","v":0}]
[null,null,null,null,null,null,null,null,null,null,null,{"$f":"IF(AND(REFERENTES!U118<>\"\",          REFERENTES!U118<>96321,    REFERENTES!U118<>96222            ),CONCATENATE(REFERENTES!T118,\"-\",REFERENTES!U118),\"\")","v":""},{"$f":"REFERENTES!S118","v":0}]
[null,null,null,null,null,null,null,null,null,null,null,{"$f":"IF(AND(REFERENTES!U119<>\"\",          REFERENTES!U119<>96321,    REFERENTES!U119<>96222            ),CONCATENATE(REFERENTES!T119,\"-\",REFERENTES!U119),\"\")","v":""},{"$f":"REFERENTES!S119","v":0}]
[null,null,null,null,null,null,null,null,null,null,null,{"$f":"IF(AND(REFERENTES!U120<>\"\",          REFERENTES!U120<>96321,    REFERENTES!U120<>96222            ),CONCATENATE(REFERENTES!T120,\"-\",REFERENTES!U120),\"\")","v":""},{"$f":"REFERENTES!S120","v":0}]
[null,null,null,null,null,null,null,null,null,null,null,{"$f":"IF(AND(REFERENTES!U121<>\"\",          REFERENTES!U121<>96321,    REFERENTES!U121<>96222            ),CONCATENATE(REFERENTES!T121,\"-\",REFERENTES!U121),\"\")","v":""},{"$f":"REFERENTES!S121","v":0}]
[null,null,null,null,null,null,null,null,null,null,null,{"$f":"IF(AND(REFERENTES!U122<>\"\",          REFERENTES!U122<>96321,    REFERENTES!U122<>96222            ),CONCATENATE(REFERENTES!T122,\"-\",REFERENTES!U122),\"\")","v":""},{"$f":"REFERENTES!S122","v":0}]
[null,null,null,null,null,null,null,null,null,null,null,{"$f":"IF(AND(REFERENTES!U123<>\"\",          REFERENTES!U123<>96321,    REFERENTES!U123<>96222            ),CONCATENATE(REFERENTES!T123,\"-\",REFERENTES!U123),\"\")","v":""},{"$f":"REFERENTES!S123","v":0}]
[null,null,null,null,null,null,null,null,null,null,null,{"$f":"IF(AND(REFERENTES!U124<>\"\",          REFERENTES!U124<>96321,    REFERENTES!U124<>96222            ),CONCATENATE(REFERENTES!T124,\"-\",REFERENTES!U124),\"\")","v":""},{"$f":"REFERENTES!S124","v":0}]
[null,null,null,null,null,null,null,null,null,null,null,{"$f":"IF(AND(REFERENTES!U125<>\"\",          REFERENTES!U125<>96321,    REFERENTES!U125<>96222            ),CONCATENATE(REFERENTES!T125,\"-\",REFERENTES!U125),\"\")","v":""},{"$f":"REFERENTES!S125","v":0}]
[null,null,null,null,null,null,null,null,null,null,null,{"$f":"IF(AND(REFERENTES!U126<>\"\",          REFERENTES!U126<>96321,    REFERENTES!U126<>96222            ),CONCATENATE(REFERENTES!T126,\"-\",REFERENTES!U126),\"\")","v":""},{"$f":"REFERENTES!S126","v":0}]
[null,null,null,null,null,null,null,null,null,null,null,{"$f":"IF(AND(REFERENTES!U127<>\"\",          REFERENTES!U127<>96321,    REFERENTES!U127<>96222            ),CONCATENATE(REFERENTES!T127,\"-\",REFERENTES!U127),\"\")","v":""},{"$f":"REFERENTES!S127","v":0}]
[null,null,null,null,null,null,null,null,null,null,null,{"$f":"IF(AND(REFERENTES!U128<>\"\",          REFERENTES!U128<>96321,    REFERENTES!U128<>96222            ),CONCATENATE(REFERENTES!T128,\"-\",REFERENTES!U128),\"\")","v":""},{"$f":"REFERENTES!S128","v":0}]
[null,null,null,null,null,null,null,null,null,null,null,{"$f":"IF(AND(REFERENTES!U129<>\"\",          REFERENTES!U129<>96321,    REFERENTES!U129<>96222            ),CONCATENATE(REFERENTES!T129,\"-\",REFERENTES!U129),\"\")","v":""},{"$f":"REFERENTES!S129","v":0}]
[null,null,null,null,null,null,null,null,null,null,null,{"$f":"IF(AND(REFERENTES!U130<>\"\",          REFERENTES!U130<>96321,    REFERENTES!U130<>96222            ),CONCATENATE(REFERENTES!T130,\"-\",REFERENTES!U130),\"\")","v":""},{"$f":"REFERENTES!S130","v":0}]
[null,null,null,null,null,null,null,null,null,null,null,{"$f":"IF(AND(REFERENTES!U131<>\"\",          REFERENTES!U131<>96321,    REFERENTES!U131<>96222            ),CONCATENATE(REFERENTES!T131,\"-\",REFERENTES!U131),\"\")","v":""},{"$f":"REFERENTES!S131","v":0}]
[null,null,null,null,null,null,null,null,null,null,null,{"$f":"IF(AND(REFERENTES!U132<>\"\",          REFERENTES!U132<>96321,    REFERENTES!U132<>96222            ),CONCATENATE(REFERENTES!T132,\"-\",REFERENTES!U132),\"\")","v":""},{"$f":"REFERENTES!S132","v":0}]
[null,null,null,null,null,null,null,null,null,null,null,{"$f":"IF(AND(REFERENTES!U133<>\"\",          REFERENTES!U133<>96321,    REFERENTES!U133<>96222            ),CONCATENATE(REFERENTES!T133,\"-\",REFERENTES!U133),\"\")","v":""},{"$f":"REFERENTES!S133","v":0}]
[null,null,null,null,null,null,null,null,null,null,null,{"$f":"IF(AND(REFERENTES!U134<>\"\",          REFERENTES!U134<>96321,    REFERENTES!U134<>96222            ),CONCATENATE(REFERENTES!T134,\"-\",REFERENTES!U134),\"\")","v":""},{"$f":"REFERENTES!S134","v":0}]
[null,null,null,null,null,null,null,null,null,null,null,{"$f":"IF(AND(REFERENTES!U135<>\"\",          REFERENTES!U135<>96321,    REFERENTES!U135<>96222            ),CONCATENATE(REFERENTES!T135,\"-\",REFERENTES!U135),\"\")","v":""},{"$f":"REFERENTES!S135","v":0}]
[null,null,null,null,null,null,null,null,null,null,null,{"$f":"IF(AND(REFERENTES!U136<>\"\",          REFERENTES!U136<>96321,    REFERENTES!U136<>96222            ),CONCATENATE(REFERENTES!T136,\"-\",REFERENTES!U136),\"\")","v":""},{"$f":"REFERENTES!S136","v":0}]
[null,null,null,null,null,null,null,null,null,null,null,{"$f":"IF(AND(REFERENTES!U137<>\"\",          REFERENTES!U137<>96321,    REFERENTES!U137<>96222            ),CONCATENATE(REFERENTES!T137,\"-\",REFERENTES!U137),\"\")","v":""},{"$f":"REFERENTES!S137","v":0}]
[null,null,null,null,null,null,null,null,null,null,null,{"$f":"IF(AND(REFERENTES!U138<>\"\",          REFERENTES!U138<>96321,    REFERENTES!U138<>96222            ),CONCATENATE(REFERENTES!T138,\"-\",REFERENTES!U138),\"\")","v":""},{"$f":"REFERENTES!S138","v":0}]
[null,null,null,null,null,null,null,null,null,null,null,{"$f":"IF(AND(REFERENTES!U139<>\"\",          REFERENTES!U139<>96321,    REFERENTES!U139<>96222            ),CONCATENATE(REFERENTES!T139,\"-\",REFERENTES!U139),\"\")","v":""},{"$f":"REFERENTES!S139","v":0}]
[null,null,null,null,null,null,null,null,null,null,null,{"$f":"IF(AND(REFERENTES!U140<>\"\",          REFERENTES!U140<>96321,    REFERENTES!U140<>96222            ),CONCATENATE(REFERENTES!T140,\"-\",REFERENTES!U140),\"\")","v":""},{"$f":"REFERENTES!S140","v":0}]
[null,null,null,null,null,null,null,null,null,null,null,{"$f":"IF(AND(REFERENTES!U141<>\"\",          REFERENTES!U141<>96321,    REFERENTES!U141<>96222            ),CONCATENATE(REFERENTES!T141,\"-\",REFERENTES!U141),\"\")","v":""},{"$f":"REFERENTES!S141","v":0}]
[null,null,null,null,null,null,null,null,null,null,null,{"$f":"IF(AND(REFERENTES!U142<>\"\",          REFERENTES!U142<>96321,    REFERENTES!U142<>96222            ),CONCATENATE(REFERENTES!T142,\"-\",REFERENTES!U142),\"\")","v":""},{"$f":"REFERENTES!S142","v":0}]
[null,null,null,null,null,null,null,null,null,null,null,{"$f":"IF(AND(REFERENTES!U143<>\"\",          REFERENTES!U143<>96321,    REFERENTES!U143<>96222            ),CONCATENATE(REFERENTES!T143,\"-\",REFERENTES!U143),\"\")","v":""},{"$f":"REFERENTES!S143","v":0}]
[null,null,null,null,null,null,null,null,null,null,null,{"$f":"IF(AND(REFERENTES!U144<>\"\",          REFERENTES!U144<>96321,    REFERENTES!U144<>96222            ),CONCATENATE(REFERENTES!T144,\"-\",REFERENTES!U144),\"\")","v":""},{"$f":"REFERENTES!S144","v":0}]
[null,null,null,null,null,null,null,null,null,null,null,{"$f":"IF(AND(REFERENTES!U145<>\"\",          REFERENTES!U145<>96321,    REFERENTES!U145<>96222            ),CONCATENATE(REFERENTES!T145,\"-\",REFERENTES!U145),\"\")","v":""},{"$f":"REFERENTES!S145","v":0}]
[null,null,null,null,null,null,null,null,null,null,null,{"$f":"IF(AND(REFERENTES!U146<>\"\",          REFERENTES!U146<>96321,    REFERENTES!U146<>96222            ),CONCATENATE(REFERENTES!T146,\"-\",REFERENTES!U146),\"\")","v":""},{"$f":"REFERENTES!S146","v":0}]
[null,null,null,null,null,null,null,null,null,null,null,{"$f":"IF(AND(REFERENTES!U147<>\"\",          REFERENTES!U147<>96321,    REFERENTES!U147<>96222            ),CONCATENATE(REFERENTES!T147,\"-\",REFERENTES!U147),\"\")","v":""},{"$f":"REFERENTES!S147","v":0}]

{"sheet":"Resumen","index":6,"n_rows":101,"n_cols":8,"rows_kept":101,"cut":false,"hidden":false,"merged":[[0,7,2,11]]}
["estacion","colonias","registros","Etiquetas de fila","Cuenta de registros","Suma de colonias",null,"Esta tabla debe ser actualizada cada vez que introduzca nuevos datos, para ello debe hacer clic sobre cualquier parte de la tabla y presionar las teclas ALT + F5 de manera conjunta."]
[{"$f":"IF(DATOS!S5=\"\",\"\",DATOS!S5)","v":""},{"$f":"IF(DATOS!AH5=\"\",\"\",DATOS!AH5)","v":""},{"$f":"IF(DATOS!Y5=\"\",\"\",DATOS!Y5)","v":""},null,100,0]
[{"$f":"IF(DATOS!S6=\"\",\"\",DATOS!S6)","v":""},{"$f":"IF(DATOS!AH6=\"\",\"\",DATOS!AH6)","v":""},{"$f":"IF(DATOS!Y6=\"\",\"\",DATOS!Y6)","v":""},"Total general",100,0]
[{"$f":"IF(DATOS!S7=\"\",\"\",DATOS!S7)","v":""},{"$f":"IF(DATOS!AH7=\"\",\"\",DATOS!AH7)","v":""},{"$f":"IF(DATOS!Y7=\"\",\"\",DATOS!Y7)","v":""}]
[{"$f":"IF(DATOS!S8=\"\",\"\",DATOS!S8)","v":""},{"$f":"IF(DATOS!AH8=\"\",\"\",DATOS!AH8)","v":""},{"$f":"IF(DATOS!Y8=\"\",\"\",DATOS!Y8)","v":""}]
[{"$f":"IF(DATOS!S9=\"\",\"\",DATOS!S9)","v":""},{"$f":"IF(DATOS!AH9=\"\",\"\",DATOS!AH9)","v":""},{"$f":"IF(DATOS!Y9=\"\",\"\",DATOS!Y9)","v":""}]
[{"$f":"IF(DATOS!S10=\"\",\"\",DATOS!S10)","v":""},{"$f":"IF(DATOS!AH10=\"\",\"\",DATOS!AH10)","v":""},{"$f":"IF(DATOS!Y10=\"\",\"\",DATOS!Y10)","v":""}]
[{"$f":"IF(DATOS!S11=\"\",\"\",DATOS!S11)","v":""},{"$f":"IF(DATOS!AH11=\"\",\"\",DATOS!AH11)","v":""},{"$f":"IF(DATOS!Y11=\"\",\"\",DATOS!Y11)","v":""}]
[{"$f":"IF(DATOS!S12=\"\",\"\",DATOS!S12)","v":""},{"$f":"IF(DATOS!AH12=\"\",\"\",DATOS!AH12)","v":""},{"$f":"IF(DATOS!Y12=\"\",\"\",DATOS!Y12)","v":""}]
[{"$f":"IF(DATOS!S13=\"\",\"\",DATOS!S13)","v":""},{"$f":"IF(DATOS!AH13=\"\",\"\",DATOS!AH13)","v":""},{"$f":"IF(DATOS!Y13=\"\",\"\",DATOS!Y13)","v":""}]
[{"$f":"IF(DATOS!S14=\"\",\"\",DATOS!S14)","v":""},{"$f":"IF(DATOS!AH14=\"\",\"\",DATOS!AH14)","v":""},{"$f":"IF(DATOS!Y14=\"\",\"\",DATOS!Y14)","v":""}]
[{"$f":"IF(DATOS!S15=\"\",\"\",DATOS!S15)","v":""},{"$f":"IF(DATOS!AH15=\"\",\"\",DATOS!AH15)","v":""},{"$f":"IF(DATOS!Y15=\"\",\"\",DATOS!Y15)","v":""}]
[{"$f":"IF(DATOS!S16=\"\",\"\",DATOS!S16)","v":""},{"$f":"IF(DATOS!AH16=\"\",\"\",DATOS!AH16)","v":""},{"$f":"IF(DATOS!Y16=\"\",\"\",DATOS!Y16)","v":""}]
[{"$f":"IF(DATOS!S17=\"\",\"\",DATOS!S17)","v":""},{"$f":"IF(DATOS!AH17=\"\",\"\",DATOS!AH17)","v":""},{"$f":"IF(DATOS!Y17=\"\",\"\",DATOS!Y17)","v":""}]
[{"$f":"IF(DATOS!S18=\"\",\"\",DATOS!S18)","v":""},{"$f":"IF(DATOS!AH18=\"\",\"\",DATOS!AH18)","v":""},{"$f":"IF(DATOS!Y18=\"\",\"\",DATOS!Y18)","v":""}]
[{"$f":"IF(DATOS!S19=\"\",\"\",DATOS!S19)","v":""},{"$f":"IF(DATOS!AH19=\"\",\"\",DATOS!AH19)","v":""},{"$f":"IF(DATOS!Y19=\"\",\"\",DATOS!Y19)","v":""}]
[{"$f":"IF(DATOS!S20=\"\",\"\",DATOS!S20)","v":""},{"$f":"IF(DATOS!AH20=\"\",\"\",DATOS!AH20)","v":""},{"$f":"IF(DATOS!Y20=\"\",\"\",DATOS!Y20)","v":""}]
[{"$f":"IF(DATOS!S21=\"\",\"\",DATOS!S21)","v":""},{"$f":"IF(DATOS!AH21=\"\",\"\",DATOS!AH21)","v":""},{"$f":"IF(DATOS!Y21=\"\",\"\",DATOS!Y21)","v":""}]
[{"$f":"IF(DATOS!S22=\"\",\"\",DATOS!S22)","v":""},{"$f":"IF(DATOS!AH22=\"\",\"\",DATOS!AH22)","v":""},{"$f":"IF(DATOS!Y22=\"\",\"\",DATOS!Y22)","v":""}]
[{"$f":"IF(DATOS!S23=\"\",\"\",DATOS!S23)","v":""},{"$f":"IF(DATOS!AH23=\"\",\"\",DATOS!AH23)","v":""},{"$f":"IF(DATOS!Y23=\"\",\"\",DATOS!Y23)","v":""}]
[{"$f":"IF(DATOS!S24=\"\",\"\",DATOS!S24)","v":""},{"$f":"IF(DATOS!AH24=\"\",\"\",DATOS!AH24)","v":""},{"$f":"IF(DATOS!Y24=\"\",\"\",DATOS!Y24)","v":""}]
[{"$f":"IF(DATOS!S25=\"\",\"\",DATOS!S25)","v":""},{"$f":"IF(DATOS!AH25=\"\",\"\",DATOS!AH25)","v":""},{"$f":"IF(DATOS!Y25=\"\",\"\",DATOS!Y25)","v":""}]
[{"$f":"IF(DATOS!S26=\"\",\"\",DATOS!S26)","v":""},{"$f":"IF(DATOS!AH26=\"\",\"\",DATOS!AH26)","v":""},{"$f":"IF(DATOS!Y26=\"\",\"\",DATOS!Y26)","v":""}]
[{"$f":"IF(DATOS!S27=\"\",\"\",DATOS!S27)","v":""},{"$f":"IF(DATOS!AH27=\"\",\"\",DATOS!AH27)","v":""},{"$f":"IF(DATOS!Y27=\"\",\"\",DATOS!Y27)","v":""}]
[{"$f":"IF(DATOS!S28=\"\",\"\",DATOS!S28)","v":""},{"$f":"IF(DATOS!AH28=\"\",\"\",DATOS!AH28)","v":""},{"$f":"IF(DATOS!Y28=\"\",\"\",DATOS!Y28)","v":""}]
[{"$f":"IF(DATOS!S29=\"\",\"\",DATOS!S29)","v":""},{"$f":"IF(DATOS!AH29=\"\",\"\",DATOS!AH29)","v":""},{"$f":"IF(DATOS!Y29=\"\",\"\",DATOS!Y29)","v":""}]
[{"$f":"IF(DATOS!S30=\"\",\"\",DATOS!S30)","v":""},{"$f":"IF(DATOS!AH30=\"\",\"\",DATOS!AH30)","v":""},{"$f":"IF(DATOS!Y30=\"\",\"\",DATOS!Y30)","v":""}]
[{"$f":"IF(DATOS!S31=\"\",\"\",DATOS!S31)","v":""},{"$f":"IF(DATOS!AH31=\"\",\"\",DATOS!AH31)","v":""},{"$f":"IF(DATOS!Y31=\"\",\"\",DATOS!Y31)","v":""}]
[{"$f":"IF(DATOS!S32=\"\",\"\",DATOS!S32)","v":""},{"$f":"IF(DATOS!AH32=\"\",\"\",DATOS!AH32)","v":""},{"$f":"IF(DATOS!Y32=\"\",\"\",DATOS!Y32)","v":""}]
[{"$f":"IF(DATOS!S33=\"\",\"\",DATOS!S33)","v":""},{"$f":"IF(DATOS!AH33=\"\",\"\",DATOS!AH33)","v":""},{"$f":"IF(DATOS!Y33=\"\",\"\",DATOS!Y33)","v":""}]
[{"$f":"IF(DATOS!S34=\"\",\"\",DATOS!S34)","v":""},{"$f":"IF(DATOS!AH34=\"\",\"\",DATOS!AH34)","v":""},{"$f":"IF(DATOS!Y34=\"\",\"\",DATOS!Y34)","v":""}]
[{"$f":"IF(DATOS!S35=\"\",\"\",DATOS!S35)","v":""},{"$f":"IF(DATOS!AH35=\"\",\"\",DATOS!AH35)","v":""},{"$f":"IF(DATOS!Y35=\"\",\"\",DATOS!Y35)","v":""}]
[{"$f":"IF(DATOS!S36=\"\",\"\",DATOS!S36)","v":""},{"$f":"IF(DATOS!AH36=\"\",\"\",DATOS!AH36)","v":""},{"$f":"IF(DATOS!Y36=\"\",\"\",DATOS!Y36)","v":""}]
[{"$f":"IF(DATOS!S37=\"\",\"\",DATOS!S37)","v":""},{"$f":"IF(DATOS!AH37=\"\",\"\",DATOS!AH37)","v":""},{"$f":"IF(DATOS!Y37=\"\",\"\",DATOS!Y37)","v":""}]
[{"$f":"IF(DATOS!S38=\"\",\"\",DATOS!S38)","v":""},{"$f":"IF(DATOS!AH38=\"\",\"\",DATOS!AH38)","v":""},{"$f":"IF(DATOS!Y38=\"\",\"\",DATOS!Y38)","v":""}]
[{"$f":"IF(DATOS!S39=\"\",\"\",DATOS!S39)","v":""},{"$f":"IF(DATOS!AH39=\"\",\"\",DATOS!AH39)","v":""},{"$f":"IF(DATOS!Y39=\"\",\"\",DATOS!Y39)","v":""}]
[{"$f":"IF(DATOS!S40=\"\",\"\",DATOS!S40)","v":""},{"$f":"IF(DATOS!AH40=\"\",\"\",DATOS!AH40)","v":""},{"$f":"IF(DATOS!Y40=\"\",\"\",DATOS!Y40)","v":""}]
[{"$f":"IF(DATOS!S41=\"\",\"\",DATOS!S41)","v":""},{"$f":"IF(DATOS!AH41=\"\",\"\",DATOS!AH41)","v":""},{"$f":"IF(DATOS!Y41=\"\",\"\",DATOS!Y41)","v":""}]
[{"$f":"IF(DATOS!S42=\"\",\"\",DATOS!S42)","v":""},{"$f":"IF(DATOS!AH42=\"\",\"\",DATOS!AH42)","v":""},{"$f":"IF(DATOS!Y42=\"\",\"\",DATOS!Y42)","v":""}]
[{"$f":"IF(DATOS!S43=\"\",\"\",DATOS!S43)","v":""},{"$f":"IF(DATOS!AH43=\"\",\"\",DATOS!AH43)","v":""},{"$f":"IF(DATOS!Y43=\"\",\"\",DATOS!Y43)","v":""}]
[{"$f":"IF(DATOS!S44=\"\",\"\",DATOS!S44)","v":""},{"$f":"IF(DATOS!AH44=\"\",\"\",DATOS!AH44)","v":""},{"$f":"IF(DATOS!Y44=\"\",\"\",DATOS!Y44)","v":""}]
[{"$f":"IF(DATOS!S45=\"\",\"\",DATOS!S45)","v":""},{"$f":"IF(DATOS!AH45=\"\",\"\",DATOS!AH45)","v":""},{"$f":"IF(DATOS!Y45=\"\",\"\",DATOS!Y45)","v":""}]
[{"$f":"IF(DATOS!S46=\"\",\"\",DATOS!S46)","v":""},{"$f":"IF(DATOS!AH46=\"\",\"\",DATOS!AH46)","v":""},{"$f":"IF(DATOS!Y46=\"\",\"\",DATOS!Y46)","v":""}]
[{"$f":"IF(DATOS!S47=\"\",\"\",DATOS!S47)","v":""},{"$f":"IF(DATOS!AH47=\"\",\"\",DATOS!AH47)","v":""},{"$f":"IF(DATOS!Y47=\"\",\"\",DATOS!Y47)","v":""}]
[{"$f":"IF(DATOS!S48=\"\",\"\",DATOS!S48)","v":""},{"$f":"IF(DATOS!AH48=\"\",\"\",DATOS!AH48)","v":""},{"$f":"IF(DATOS!Y48=\"\",\"\",DATOS!Y48)","v":""}]
[{"$f":"IF(DATOS!S49=\"\",\"\",DATOS!S49)","v":""},{"$f":"IF(DATOS!AH49=\"\",\"\",DATOS!AH49)","v":""},{"$f":"IF(DATOS!Y49=\"\",\"\",DATOS!Y49)","v":""}]
[{"$f":"IF(DATOS!S50=\"\",\"\",DATOS!S50)","v":""},{"$f":"IF(DATOS!AH50=\"\",\"\",DATOS!AH50)","v":""},{"$f":"IF(DATOS!Y50=\"\",\"\",DATOS!Y50)","v":""}]
[{"$f":"IF(DATOS!S51=\"\",\"\",DATOS!S51)","v":""},{"$f":"IF(DATOS!AH51=\"\",\"\",DATOS!AH51)","v":""},{"$f":"IF(DATOS!Y51=\"\",\"\",DATOS!Y51)","v":""}]
[{"$f":"IF(DATOS!S52=\"\",\"\",DATOS!S52)","v":""},{"$f":"IF(DATOS!AH52=\"\",\"\",DATOS!AH52)","v":""},{"$f":"IF(DATOS!Y52=\"\",\"\",DATOS!Y52)","v":""}]
[{"$f":"IF(DATOS!S53=\"\",\"\",DATOS!S53)","v":""},{"$f":"IF(DATOS!AH53=\"\",\"\",DATOS!AH53)","v":""},{"$f":"IF(DATOS!Y53=\"\",\"\",DATOS!Y53)","v":""}]
[{"$f":"IF(DATOS!S54=\"\",\"\",DATOS!S54)","v":""},{"$f":"IF(DATOS!AH54=\"\",\"\",DATOS!AH54)","v":""},{"$f":"IF(DATOS!Y54=\"\",\"\",DATOS!Y54)","v":""}]
[{"$f":"IF(DATOS!S55=\"\",\"\",DATOS!S55)","v":""},{"$f":"IF(DATOS!AH55=\"\",\"\",DATOS!AH55)","v":""},{"$f":"IF(DATOS!Y55=\"\",\"\",DATOS!Y55)","v":""}]
[{"$f":"IF(DATOS!S56=\"\",\"\",DATOS!S56)","v":""},{"$f":"IF(DATOS!AH56=\"\",\"\",DATOS!AH56)","v":""},{"$f":"IF(DATOS!Y56=\"\",\"\",DATOS!Y56)","v":""}]
[{"$f":"IF(DATOS!S57=\"\",\"\",DATOS!S57)","v":""},{"$f":"IF(DATOS!AH57=\"\",\"\",DATOS!AH57)","v":""},{"$f":"IF(DATOS!Y57=\"\",\"\",DATOS!Y57)","v":""}]
[{"$f":"IF(DATOS!S58=\"\",\"\",DATOS!S58)","v":""},{"$f":"IF(DATOS!AH58=\"\",\"\",DATOS!AH58)","v":""},{"$f":"IF(DATOS!Y58=\"\",\"\",DATOS!Y58)","v":""}]
[{"$f":"IF(DATOS!S59=\"\",\"\",DATOS!S59)","v":""},{"$f":"IF(DATOS!AH59=\"\",\"\",DATOS!AH59)","v":""},{"$f":"IF(DATOS!Y59=\"\",\"\",DATOS!Y59)","v":""}]
[{"$f":"IF(DATOS!S60=\"\",\"\",DATOS!S60)","v":""},{"$f":"IF(DATOS!AH60=\"\",\"\",DATOS!AH60)","v":""},{"$f":"IF(DATOS!Y60=\"\",\"\",DATOS!Y60)","v":""}]
[{"$f":"IF(DATOS!S61=\"\",\"\",DATOS!S61)","v":""},{"$f":"IF(DATOS!AH61=\"\",\"\",DATOS!AH61)","v":""},{"$f":"IF(DATOS!Y61=\"\",\"\",DATOS!Y61)","v":""}]
[{"$f":"IF(DATOS!S62=\"\",\"\",DATOS!S62)","v":""},{"$f":"IF(DATOS!AH62=\"\",\"\",DATOS!AH62)","v":""},{"$f":"IF(DATOS!Y62=\"\",\"\",DATOS!Y62)","v":""}]
[{"$f":"IF(DATOS!S63=\"\",\"\",DATOS!S63)","v":""},{"$f":"IF(DATOS!AH63=\"\",\"\",DATOS!AH63)","v":""},{"$f":"IF(DATOS!Y63=\"\",\"\",DATOS!Y63)","v":""}]
[{"$f":"IF(DATOS!S64=\"\",\"\",DATOS!S64)","v":""},{"$f":"IF(DATOS!AH64=\"\",\"\",DATOS!AH64)","v":""},{"$f":"IF(DATOS!Y64=\"\",\"\",DATOS!Y64)","v":""}]
[{"$f":"IF(DATOS!S65=\"\",\"\",DATOS!S65)","v":""},{"$f":"IF(DATOS!AH65=\"\",\"\",DATOS!AH65)","v":""},{"$f":"IF(DATOS!Y65=\"\",\"\",DATOS!Y65)","v":""}]
[{"$f":"IF(DATOS!S66=\"\",\"\",DATOS!S66)","v":""},{"$f":"IF(DATOS!AH66=\"\",\"\",DATOS!AH66)","v":""},{"$f":"IF(DATOS!Y66=\"\",\"\",DATOS!Y66)","v":""}]
[{"$f":"IF(DATOS!S67=\"\",\"\",DATOS!S67)","v":""},{"$f":"IF(DATOS!AH67=\"\",\"\",DATOS!AH67)","v":""},{"$f":"IF(DATOS!Y67=\"\",\"\",DATOS!Y67)","v":""}]
[{"$f":"IF(DATOS!S68=\"\",\"\",DATOS!S68)","v":""},{"$f":"IF(DATOS!AH68=\"\",\"\",DATOS!AH68)","v":""},{"$f":"IF(DATOS!Y68=\"\",\"\",DATOS!Y68)","v":""}]
[{"$f":"IF(DATOS!S69=\"\",\"\",DATOS!S69)","v":""},{"$f":"IF(DATOS!AH69=\"\",\"\",DATOS!AH69)","v":""},{"$f":"IF(DATOS!Y69=\"\",\"\",DATOS!Y69)","v":""}]
[{"$f":"IF(DATOS!S70=\"\",\"\",DATOS!S70)","v":""},{"$f":"IF(DATOS!AH70=\"\",\"\",DATOS!AH70)","v":""},{"$f":"IF(DATOS!Y70=\"\",\"\",DATOS!Y70)","v":""}]
[{"$f":"IF(DATOS!S71=\"\",\"\",DATOS!S71)","v":""},{"$f":"IF(DATOS!AH71=\"\",\"\",DATOS!AH71)","v":""},{"$f":"IF(DATOS!Y71=\"\",\"\",DATOS!Y71)","v":""}]
[{"$f":"IF(DATOS!S72=\"\",\"\",DATOS!S72)","v":""},{"$f":"IF(DATOS!AH72=\"\",\"\",DATOS!AH72)","v":""},{"$f":"IF(DATOS!Y72=\"\",\"\",DATOS!Y72)","v":""}]
[{"$f":"IF(DATOS!S73=\"\",\"\",DATOS!S73)","v":""},{"$f":"IF(DATOS!AH73=\"\",\"\",DATOS!AH73)","v":""},{"$f":"IF(DATOS!Y73=\"\",\"\",DATOS!Y73)","v":""}]
[{"$f":"IF(DATOS!S74=\"\",\"\",DATOS!S74)","v":""},{"$f":"IF(DATOS!AH74=\"\",\"\",DATOS!AH74)","v":""},{"$f":"IF(DATOS!Y74=\"\",\"\",DATOS!Y74)","v":""}]
[{"$f":"IF(DATOS!S75=\"\",\"\",DATOS!S75)","v":""},{"$f":"IF(DATOS!AH75=\"\",\"\",DATOS!AH75)","v":""},{"$f":"IF(DATOS!Y75=\"\",\"\",DATOS!Y75)","v":""}]
[{"$f":"IF(DATOS!S76=\"\",\"\",DATOS!S76)","v":""},{"$f":"IF(DATOS!AH76=\"\",\"\",DATOS!AH76)","v":""},{"$f":"IF(DATOS!Y76=\"\",\"\",DATOS!Y76)","v":""}]
[{"$f":"IF(DATOS!S77=\"\",\"\",DATOS!S77)","v":""},{"$f":"IF(DATOS!AH77=\"\",\"\",DATOS!AH77)","v":""},{"$f":"IF(DATOS!Y77=\"\",\"\",DATOS!Y77)","v":""}]
[{"$f":"IF(DATOS!S78=\"\",\"\",DATOS!S78)","v":""},{"$f":"IF(DATOS!AH78=\"\",\"\",DATOS!AH78)","v":""},{"$f":"IF(DATOS!Y78=\"\",\"\",DATOS!Y78)","v":""}]
[{"$f":"IF(DATOS!S79=\"\",\"\",DATOS!S79)","v":""},{"$f":"IF(DATOS!AH79=\"\",\"\",DATOS!AH79)","v":""},{"$f":"IF(DATOS!Y79=\"\",\"\",DATOS!Y79)","v":""}]
[{"$f":"IF(DATOS!S80=\"\",\"\",DATOS!S80)","v":""},{"$f":"IF(DATOS!AH80=\"\",\"\",DATOS!AH80)","v":""},{"$f":"IF(DATOS!Y80=\"\",\"\",DATOS!Y80)","v":""}]
[{"$f":"IF(DATOS!S81=\"\",\"\",DATOS!S81)","v":""},{"$f":"IF(DATOS!AH81=\"\",\"\",DATOS!AH81)","v":""},{"$f":"IF(DATOS!Y81=\"\",\"\",DATOS!Y81)","v":""}]
[{"$f":"IF(DATOS!S82=\"\",\"\",DATOS!S82)","v":""},{"$f":"IF(DATOS!AH82=\"\",\"\",DATOS!AH82)","v":""},{"$f":"IF(DATOS!Y82=\"\",\"\",DATOS!Y82)","v":""}]
[{"$f":"IF(DATOS!S83=\"\",\"\",DATOS!S83)","v":""},{"$f":"IF(DATOS!AH83=\"\",\"\",DATOS!AH83)","v":""},{"$f":"IF(DATOS!Y83=\"\",\"\",DATOS!Y83)","v":""}]
[{"$f":"IF(DATOS!S84=\"\",\"\",DATOS!S84)","v":""},{"$f":"IF(DATOS!AH84=\"\",\"\",DATOS!AH84)","v":""},{"$f":"IF(DATOS!Y84=\"\",\"\",DATOS!Y84)","v":""}]
[{"$f":"IF(DATOS!S85=\"\",\"\",DATOS!S85)","v":""},{"$f":"IF(DATOS!AH85=\"\",\"\",DATOS!AH85)","v":""},{"$f":"IF(DATOS!Y85=\"\",\"\",DATOS!Y85)","v":""}]
[{"$f":"IF(DATOS!S86=\"\",\"\",DATOS!S86)","v":""},{"$f":"IF(DATOS!AH86=\"\",\"\",DATOS!AH86)","v":""},{"$f":"IF(DATOS!Y86=\"\",\"\",DATOS!Y86)","v":""}]
[{"$f":"IF(DATOS!S87=\"\",\"\",DATOS!S87)","v":""},{"$f":"IF(DATOS!AH87=\"\",\"\",DATOS!AH87)","v":""},{"$f":"IF(DATOS!Y87=\"\",\"\",DATOS!Y87)","v":""}]
[{"$f":"IF(DATOS!S88=\"\",\"\",DATOS!S88)","v":""},{"$f":"IF(DATOS!AH88=\"\",\"\",DATOS!AH88)","v":""},{"$f":"IF(DATOS!Y88=\"\",\"\",DATOS!Y88)","v":""}]
[{"$f":"IF(DATOS!S89=\"\",\"\",DATOS!S89)","v":""},{"$f":"IF(DATOS!AH89=\"\",\"\",DATOS!AH89)","v":""},{"$f":"IF(DATOS!Y89=\"\",\"\",DATOS!Y89)","v":""}]
[{"$f":"IF(DATOS!S90=\"\",\"\",DATOS!S90)","v":""},{"$f":"IF(DATOS!AH90=\"\",\"\",DATOS!AH90)","v":""},{"$f":"IF(DATOS!Y90=\"\",\"\",DATOS!Y90)","v":""}]
[{"$f":"IF(DATOS!S91=\"\",\"\",DATOS!S91)","v":""},{"$f":"IF(DATOS!AH91=\"\",\"\",DATOS!AH91)","v":""},{"$f":"IF(DATOS!Y91=\"\",\"\",DATOS!Y91)","v":""}]
[{"$f":"IF(DATOS!S92=\"\",\"\",DATOS!S92)","v":""},{"$f":"IF(DATOS!AH92=\"\",\"\",DATOS!AH92)","v":""},{"$f":"IF(DATOS!Y92=\"\",\"\",DATOS!Y92)","v":""}]
[{"$f":"IF(DATOS!S93=\"\",\"\",DATOS!S93)","v":""},{"$f":"IF(DATOS!AH93=\"\",\"\",DATOS!AH93)","v":""},{"$f":"IF(DATOS!Y93=\"\",\"\",DATOS!Y93)","v":""}]
[{"$f":"IF(DATOS!S94=\"\",\"\",DATOS!S94)","v":""},{"$f":"IF(DATOS!AH94=\"\",\"\",DATOS!AH94)","v":""},{"$f":"IF(DATOS!Y94=\"\",\"\",DATOS!Y94)","v":""}]
[{"$f":"IF(DATOS!S95=\"\",\"\",DATOS!S95)","v":""},{"$f":"IF(DATOS!AH95=\"\",\"\",DATOS!AH95)","v":""},{"$f":"IF(DATOS!Y95=\"\",\"\",DATOS!Y95)","v":""}]
[{"$f":"IF(DATOS!S96=\"\",\"\",DATOS!S96)","v":""},{"$f":"IF(DATOS!AH96=\"\",\"\",DATOS!AH96)","v":""},{"$f":"IF(DATOS!Y96=\"\",\"\",DATOS!Y96)","v":""}]
[{"$f":"IF(DATOS!S97=\"\",\"\",DATOS!S97)","v":""},{"$f":"IF(DATOS!AH97=\"\",\"\",DATOS!AH97)","v":""},{"$f":"IF(DATOS!Y97=\"\",\"\",DATOS!Y97)","v":""}]
[{"$f":"IF(DATOS!S98=\"\",\"\",DATOS!S98)","v":""},{"$f":"IF(DATOS!AH98=\"\",\"\",DATOS!AH98)","v":""},{"$f":"IF(DATOS!Y98=\"\",\"\",DATOS!Y98)","v":""}]
[{"$f":"IF(DATOS!S99=\"\",\"\",DATOS!S99)","v":""},{"$f":"IF(DATOS!AH99=\"\",\"\",DATOS!AH99)","v":""},{"$f":"IF(DATOS!Y99=\"\",\"\",DATOS!Y99)","v":""}]
[{"$f":"IF(DATOS!S100=\"\",\"\",DATOS!S100)","v":""},{"$f":"IF(DATOS!AH100=\"\",\"\",DATOS!AH100)","v":""},{"$f":"IF(DATOS!Y100=\"\",\"\",DATOS!Y100)","v":""}]
[{"$f":"IF(DATOS!S101=\"\",\"\",DATOS!S101)","v":""},{"$f":"IF(DATOS!AH101=\"\",\"\",DATOS!AH101)","v":""},{"$f":"IF(DATOS!Y101=\"\",\"\",DATOS!Y101)","v":""}]
[{"$f":"IF(DATOS!S102=\"\",\"\",DATOS!S102)","v":""},{"$f":"IF(DATOS!AH102=\"\",\"\",DATOS!AH102)","v":""},{"$f":"IF(DATOS!Y102=\"\",\"\",DATOS!Y102)","v":""}]
[{"$f":"IF(DATOS!S103=\"\",\"\",DATOS!S103)","v":""},{"$f":"IF(DATOS!AH103=\"\",\"\",DATOS!AH103)","v":""},{"$f":"IF(DATOS!Y103=\"\",\"\",DATOS!Y103)","v":""}]
[{"$f":"IF(DATOS!S104=\"\",\"\",DATOS!S104)","v":""},{"$f":"IF(DATOS!AH104=\"\",\"\",DATOS!AH104)","v":""},{"$f":"IF(DATOS!Y104=\"\",\"\",DATOS!Y104)","v":""}]

{"sheet":"AGD_MUESTREOS","index":7,"n_rows":0,"n_cols":0,"rows_kept":0,"cut":false,"hidden":true,"merged":[]}

{"sheet":"AGD_PARAMETRO","index":8,"n_rows":0,"n_cols":0,"rows_kept":0,"cut":false,"hidden":true,"merged":[]}

{"sheet":"AGD_MUESTRAS","index":9,"n_rows":0,"n_cols":0,"rows_kept":0,"cut":false,"hidden":true,"merged":[]}

{"sheet":"AGD_MUESTRAS_VARIABLES","index":10,"n_rows":0,"n_cols":0,"rows_kept":0,"cut":false,"hidden":true,"merged":[]}

{"sheet":"AGD_AUTORIAS","index":11,"n_rows":0,"n_cols":0,"rows_kept":0,"cut":false,"hidden":true,"merged":[]}